Body name,Service Area,Dept,Capital/Revenue,Expenses Type,Detailed Expenses Type,Transaction number,Expense Code,Date,Amount,Supplier Name,Supplier ID
WANDSWORTH COUNCIL,CS,,Revenue,SERVICES,CONSULTANTS FEES,783499,100534200,30/10/2015,"7,815.00",JONES LANG LASALLE,SP0008111
WANDSWORTH COUNCIL,CS,,Revenue,PRINTING STAT & GEN OFFICE EXP,PRINTING REGISTRATION A FORM,769516,103033440,14/10/2015,"13,616.83",BANNER MANAGED COMMUNICATION,SP0003555
WANDSWORTH COUNCIL,CS,,Revenue,PRINTING STAT & GEN OFFICE EXP,PRINTING REGISTRATION A FORM,787497,103033440,30/10/2015,438.74,BANNER MANAGED COMMUNICATION,SP0003555
WANDSWORTH COUNCIL,CS,,Revenue,COMMUNICATIONS & COMP,COMMUNICATIONS - POSTAGE,769449,103036000,09/10/2015,"4,167.57",ROYAL MAIL,SP0001067
WANDSWORTH COUNCIL,CS,,Revenue,COMMUNICATIONS & COMP,COMMUNICATIONS - POSTAGE,769514,103036000,09/10/2015,"1,370.16",ROYAL MAIL,SP0001067
WANDSWORTH COUNCIL,CS,,Revenue,COMMUNICATIONS & COMP,COMMUNICATIONS - POSTAGE,772027,103036000,14/10/2015,"6,046.17",ROYAL MAIL,SP0001067
WANDSWORTH COUNCIL,CS,,Revenue,COMMUNICATIONS & COMP,COMMUNICATIONS - POSTAGE,776732,103036000,20/10/2015,"6,104.00",ROYAL MAIL,SP0001067
WANDSWORTH COUNCIL,CS,,Revenue,"EQUIPMENT, FURNITURE & MATS",FLOWERS,765675,103130170,06/10/2015,646.00,PATRICIA WONG,SP0002085
WANDSWORTH COUNCIL,CS,,Revenue,"EQUIPMENT, FURNITURE & MATS",FLOWERS,772958,103130170,14/10/2015,646.00,PATRICIA WONG,SP0002085
WANDSWORTH COUNCIL,CS,,Revenue,"EQUIPMENT, FURNITURE & MATS",FLOWERS,786039,103130170,29/10/2015,646.00,PATRICIA WONG,SP0002085
WANDSWORTH COUNCIL,CS,,Revenue,PRINTING STAT & GEN OFFICE EXP,CONSULTATION FEES,764296,103433110,05/10/2015,"27,056.00",BOSTOCK MARKETING GROUP,SP0003042
WANDSWORTH COUNCIL,PH,,Revenue,HEALTH,HIV RAPID TESTING PILOT,765616,105141710,06/10/2015,976.00,PASSANTE HEALTHCARE LTD,SP0006465
WANDSWORTH COUNCIL,PH,,Revenue,HEALTH,COMMUNITY OUTREACH HEALTH CHCK,769527,105341300,14/10/2015,"5,000.00",SOLUTIONS 4 HEALTH LTD,SP0008222
WANDSWORTH COUNCIL,PH,,Revenue,HEALTH,PRESCRIBING SERVICES,765630,106340550,07/10/2015,479.10,PEARL CHEMIST LTD,SP0004997
WANDSWORTH COUNCIL,PH,,Revenue,HEALTH,PRESCRIBING SERVICES,765630,106340550,07/10/2015,44.00,PEARL CHEMIST LTD,SP0004997
WANDSWORTH COUNCIL,PH,,Revenue,HEALTH,PRESCRIBING SERVICES,731397,106340550,07/10/2015,"1,221.17",PEARL CHEMIST LTD FDV93 T/A LORDS PHARMA,SP0008419
WANDSWORTH COUNCIL,PH,,Revenue,HEALTH,PRESCRIBING SERVICES,731397,106340550,07/10/2015,100.00,PEARL CHEMIST LTD FDV93 T/A LORDS PHARMA,SP0008419
WANDSWORTH COUNCIL,PH,,Revenue,HEALTH,PRESCRIBING SERVICES,766530,106340550,07/10/2015,68.00,PEARL CHEMIST LTD FDV93 T/A LORDS PHARMA,SP0008419
WANDSWORTH COUNCIL,PH,,Revenue,HEALTH,PRESCRIBING SERVICES,766530,106340550,07/10/2015,763.01,PEARL CHEMIST LTD FDV93 T/A LORDS PHARMA,SP0008419
WANDSWORTH COUNCIL,PH,,Revenue,HEALTH,PRESCRIBING SERVICES,766534,106340550,07/10/2015,50.00,PEARL CHEMIST LTD FDV93 T/A LORDS PHARMA,SP0008419
WANDSWORTH COUNCIL,PH,,Revenue,HEALTH,PRESCRIBING SERVICES,766534,106340550,07/10/2015,489.16,PEARL CHEMIST LTD FDV93 T/A LORDS PHARMA,SP0008419
WANDSWORTH COUNCIL,PH,,Revenue,HEALTH,PRESCRIBING SERVICES,765648,106340550,06/10/2015,437.90,SALASJI LTD FG443 T/A DUMLERS PHARMACY,SP0005003
WANDSWORTH COUNCIL,PH,,Revenue,HEALTH,PRESCRIBING SERVICES,765648,106340550,06/10/2015,42.00,SALASJI LTD FG443 T/A DUMLERS PHARMACY,SP0005003
WANDSWORTH COUNCIL,PH,,Revenue,VOL ASS,THIRD PARTY PYMT - VOL ASS,778742,107648090,21/10/2015,"6,000.00",LEONARD CHESHIRE,SP0000976
WANDSWORTH COUNCIL,PH,,Revenue,COMMUNICATIONS & COMP,I.T. EQUIPMENT & MAINTENANCE,776101,107836210,16/10/2015,153.75,DANWOOD GROUP LTD,SP0002739
WANDSWORTH COUNCIL,PH,,Revenue,COMMUNICATIONS & COMP,I.T. EQUIPMENT & MAINTENANCE,776101,107836210,16/10/2015,153.75,DANWOOD GROUP LTD,SP0002739
WANDSWORTH COUNCIL,PH,,Revenue,COMMUNICATIONS & COMP,I.T. EQUIPMENT & MAINTENANCE,776101,107836210,16/10/2015,144.90,DANWOOD GROUP LTD,SP0002739
WANDSWORTH COUNCIL,PH,,Revenue,SERVICES,PROJECT WORK,771531,108134800,14/10/2015,"12,000.00",AIR SPORTS NETWORK,SP0006715
WANDSWORTH COUNCIL,NGF HS,,Revenue,SERVICES,HIPS,766225,110034460,07/10/2015,"1,260.00",GORDON BROWN,SP0002176
WANDSWORTH COUNCIL,NGF CS,,Revenue,PRIVATE,REFUSE COLLECTN & PEST CONTROL,774626,111045500,16/10/2015,"1,202.69",SITA UK LTD,SP0000507
WANDSWORTH COUNCIL,NGF CS,,Revenue,PRIVATE,REFUSE COLLECTN & PEST CONTROL,774630,111045500,16/10/2015,534.79,SITA UK LTD,SP0000507
WANDSWORTH COUNCIL,NGF CS,,Revenue,PRIVATE,REFUSE COLLECTN & PEST CONTROL,753789,111545500,02/10/2015,683.43,SITA UK LTD,SP0000507
WANDSWORTH COUNCIL,NGF CS,,Revenue,PRIVATE,REFUSE COLLECTN & PEST CONTROL,776454,111545500,16/10/2015,683.43,SITA UK LTD,SP0000507
WANDSWORTH COUNCIL,NGF CS,,Revenue,PRIVATE,REFUSE COLLECTN & PEST CONTROL,776452,112145500,16/10/2015,690.83,SITA UK LTD,SP0000507
WANDSWORTH COUNCIL,NGF CS,,Revenue,PRIVATE,REFUSE COLLECTN & PEST CONTROL,753788,112945500,02/10/2015,690.83,SITA UK LTD,SP0000507
WANDSWORTH COUNCIL,NGF CS,,Revenue,PRIVATE,REFUSE COLLECTN & PEST CONTROL,776453,112945500,16/10/2015,690.83,SITA UK LTD,SP0000507
WANDSWORTH COUNCIL,NGF CS,,Revenue,CLEANING & DOMESTIC SUPPLIES,CLEANING & DOMESTIC SUPPLIES,770397,113813010,14/10/2015,"2,421.90",WESSEX PRODUCTS (LEASING) LTD,SP0002972
WANDSWORTH COUNCIL,NGF CS,,Revenue,CLEANING & DOMESTIC SUPPLIES,CLEANING CONTRACT,776457,113813020,16/10/2015,"59,773.68",OCEAN INTEGRATED SERVICES LTD,SP0001062
WANDSWORTH COUNCIL,NGF CS,,Revenue,CLEANING & DOMESTIC SUPPLIES,CLEANING CONTRACT,764816,113813020,07/10/2015,"2,502.50",PHS GROUP PLC,SP0001063
WANDSWORTH COUNCIL,NGF CS,,Revenue,CLEANING & DOMESTIC SUPPLIES,CLEANING CONTRACT,764823,113813020,07/10/2015,"2,560.50",PHS GROUP PLC,SP0001063
WANDSWORTH COUNCIL,NGF CS,,Revenue,CLEANING & DOMESTIC SUPPLIES,CLEANING CONTRACT,764833,113813020,07/10/2015,"2,205.25",PHS GROUP PLC,SP0001063
WANDSWORTH COUNCIL,NGF CS,,Revenue,CLEANING & DOMESTIC SUPPLIES,CLEANING CONTRACT,778716,113813020,21/10/2015,"1,981.50",PHS GROUP PLC,SP0001063
WANDSWORTH COUNCIL,NGF CS,,Revenue,PRIVATE,GENERAL CONTRACT WORK,771999,114145370,14/10/2015,960.00,AA PROJECTS LTD,SP0008976
WANDSWORTH COUNCIL,NGF CDC,,Revenue,"REPAIRS, ALTERATIONS & MTCE",REMOVALS & REORGANISATIONS,765629,114210140,06/10/2015,"1,530.00",JT & SONS RELOCATIONS,SP0005993
WANDSWORTH COUNCIL,NGF CDC,,Revenue,"REPAIRS, ALTERATIONS & MTCE",REMOVALS & REORGANISATIONS,767883,114210140,09/10/2015,"1,815.00",JT & SONS RELOCATIONS,SP0005993
WANDSWORTH COUNCIL,NGF CDC,,Revenue,PRIVATE,GENERAL CONTRACT WORK,787020,11424537K07191,29/10/2015,"1,155.00",DH CROFTS LTD,SP0000076
WANDSWORTH COUNCIL,NGF CDC,,Revenue,PRIVATE,GENERAL CONTRACT WORK,786995,11424537K07291,29/10/2015,"5,225.00",DH CROFTS LTD,SP0000076
WANDSWORTH COUNCIL,NGF CDC,,Revenue,PRIVATE,GENERAL CONTRACT WORK,787019,11424537K07291,29/10/2015,"1,056.00",DH CROFTS LTD,SP0000076
WANDSWORTH COUNCIL,NGF CDC,,Revenue,PRIVATE,GENERAL CONTRACT WORK,765719,11424537K07351,05/10/2015,"2,999.61",ELECTROLOK COMPANY (SECURITY) LTD,SP0000966
WANDSWORTH COUNCIL,NGF CDC,,Revenue,PRIVATE,GENERAL CONTRACT WORK,787021,11424537K07361,29/10/2015,830.50,DH CROFTS LTD,SP0000076
WANDSWORTH COUNCIL,NGF CS,,Revenue,INSURANCE,INSURANCE PREMIUMS - FIRE,757969,114310900,02/10/2015,"4,533.00",GRAVENEY TRUST,SP0008570
WANDSWORTH COUNCIL,NGF CS,,Revenue,SERVICES,PRACTICE CERTIFICATES,777177,120134780,20/10/2015,"4,928.00",THE LAW SOCIETY,SP0003358
WANDSWORTH COUNCIL,NGF CS,,Revenue,COMMUNICATIONS & COMP,I.T. EQUIPMENT & MAINTENANCE,777404,120136210,20/10/2015,853.42,FATHOM,SP0004973
WANDSWORTH COUNCIL,NGF CS,,Revenue,OTHER AGENCIES,DISBURSEMENTS,781008,120643250,26/10/2015,"1,750.00",11 KBW LTD,SP0008673
WANDSWORTH COUNCIL,NGF CS,,Revenue,OTHER AGENCIES,DISBURSEMENTS,770418,120643250,12/10/2015,700.00,4 BRICK COURT MANAGEMENT LIMITED,SP0007380
WANDSWORTH COUNCIL,NGF CS,,Revenue,OTHER AGENCIES,DISBURSEMENTS,770428,120643250,12/10/2015,700.00,4 BRICK COURT MANAGEMENT LIMITED,SP0007380
WANDSWORTH COUNCIL,NGF CS,,Revenue,OTHER AGENCIES,DISBURSEMENTS,770429,120643250,12/10/2015,"1,045.00",4 BRICK COURT MANAGEMENT LIMITED,SP0007380
WANDSWORTH COUNCIL,NGF CS,,Revenue,OTHER AGENCIES,DISBURSEMENTS,770431,120643250,12/10/2015,"4,425.00",4 BRICK COURT MANAGEMENT LIMITED,SP0007380
WANDSWORTH COUNCIL,NGF CS,,Revenue,OTHER AGENCIES,DISBURSEMENTS,770432,120643250,12/10/2015,555.00,4 BRICK COURT MANAGEMENT LIMITED,SP0007380
WANDSWORTH COUNCIL,NGF CS,,Revenue,OTHER AGENCIES,DISBURSEMENTS,770435,120643250,12/10/2015,"4,025.00",4 BRICK COURT MANAGEMENT LIMITED,SP0007380
WANDSWORTH COUNCIL,NGF CS,,Revenue,OTHER AGENCIES,DISBURSEMENTS,781009,120643250,26/10/2015,500.00,4 BRICK COURT MANAGEMENT LIMITED,SP0007380
WANDSWORTH COUNCIL,NGF CS,,Revenue,OTHER AGENCIES,DISBURSEMENTS,783484,120643250,30/10/2015,560.00,4 BRICK COURT MANAGEMENT LIMITED,SP0007380
WANDSWORTH COUNCIL,NGF CS,,Revenue,OTHER AGENCIES,DISBURSEMENTS,777417,120643250,20/10/2015,466.53,BEVERLEY F NUNNERY & CO,SP0003376
WANDSWORTH COUNCIL,NGF CS,,Revenue,OTHER AGENCIES,DISBURSEMENTS,786013,120643250,29/10/2015,880.00,CHILTERN COSTS CONSULTANTS,SP0008904
WANDSWORTH COUNCIL,NGF CS,,Revenue,OTHER AGENCIES,DISBURSEMENTS,786015,120643250,29/10/2015,820.00,CHILTERN COSTS CONSULTANTS,SP0008904
WANDSWORTH COUNCIL,NGF CS,,Revenue,OTHER AGENCIES,DISBURSEMENTS,770395,120643250,12/10/2015,437.50,CORNERSTONE BACS,SP0004477
WANDSWORTH COUNCIL,NGF CS,,Revenue,OTHER AGENCIES,DISBURSEMENTS,777419,120643250,20/10/2015,750.00,CORNERSTONE BACS,SP0004477
WANDSWORTH COUNCIL,NGF CS,,Revenue,OTHER AGENCIES,DISBURSEMENTS,781048,120643250,26/10/2015,825.00,CORNERSTONE BACS,SP0004477
WANDSWORTH COUNCIL,NGF CS,,Revenue,OTHER AGENCIES,DISBURSEMENTS,783480,120643250,29/10/2015,540.00,DR T L McCLINTOCK,SP0009505
WANDSWORTH COUNCIL,NGF CS,,Revenue,OTHER AGENCIES,DISBURSEMENTS,769545,120643250,08/10/2015,686.40,DSP PSYCHOLOGY,SP0009444
WANDSWORTH COUNCIL,NGF CS,,Revenue,OTHER AGENCIES,DISBURSEMENTS,769549,120643250,08/10/2015,604.37,DSP PSYCHOLOGY,SP0009444
WANDSWORTH COUNCIL,NGF CS,,Revenue,OTHER AGENCIES,DISBURSEMENTS,770390,120643250,12/10/2015,"3,350.00",FOURTEEN,SP0009555
WANDSWORTH COUNCIL,NGF CS,,Revenue,OTHER AGENCIES,DISBURSEMENTS,770402,120643250,12/10/2015,"4,445.00",FOURTEEN,SP0009555
WANDSWORTH COUNCIL,NGF CS,,Revenue,OTHER AGENCIES,DISBURSEMENTS,772420,120643250,14/10/2015,15.00,SHARPE PRITCHARD LLP,SP0003677
WANDSWORTH COUNCIL,NGF CS,,Revenue,OTHER AGENCIES,DISBURSEMENTS,772420,120643250,14/10/2015,864.00,SHARPE PRITCHARD LLP,SP0003677
WANDSWORTH COUNCIL,NGF CS,,Revenue,OTHER AGENCIES,DISBURSEMENTS,778692,120643250,23/10/2015,"1,117.50",SHARPE PRITCHARD LLP,SP0003677
WANDSWORTH COUNCIL,NGF CS,,Revenue,OTHER AGENCIES,DISBURSEMENTS,778692,120643250,23/10/2015,"1,884.00",SHARPE PRITCHARD LLP,SP0003677
WANDSWORTH COUNCIL,NGF CS,,Revenue,OTHER AGENCIES,DISBURSEMENTS,783481,120643250,29/10/2015,"2,500.00",THE CHAMBERS OF ANDREW TROLLOPE QC,SP0009051
WANDSWORTH COUNCIL,NGF CS,,Revenue,PRIVATE,CONTRACT 4- LITIGATION,776029,120646160,15/10/2015,"12,883.92",SHARPE PRITCHARD LLP,SP0003677
WANDSWORTH COUNCIL,NGF CS,,Revenue,PRIVATE,"CONTRACT 6- HWYS, PLAN ETC",778751,120646170,21/10/2015,875.00,A S B LAW,SP0003196
WANDSWORTH COUNCIL,NGF CS,,Revenue,PRIVATE,"CONTRACT 6- HWYS, PLAN ETC",772423,120646170,14/10/2015,"30,120.78",SHARPE PRITCHARD LLP,SP0003677
WANDSWORTH COUNCIL,NGF CS,,Revenue,OTHER AGENCIES,DISBURSEMENTS,774113,120743250,15/10/2015,"13,030.00",LAMBERT SMITH HAMPTON,SP0002515
WANDSWORTH COUNCIL,NGF CS,,Revenue,PRIVATE,LOT 1 - LLORD SERVS PROP MGMT,777421,120746180,20/10/2015,"4,980.29",LAMBERT SMITH HAMPTON,SP0002515
WANDSWORTH COUNCIL,NGF CS,,Revenue,DIRECT2,AGENCY STAFF,769904,120800510,12/10/2015,"1,189.44",COBALT CONSULTING (UK) LTD,SP0008002
WANDSWORTH COUNCIL,NGF CS,,Revenue,DIRECT2,AGENCY STAFF,770444,120800510,13/10/2015,"1,189.44",COBALT CONSULTING (UK) LTD,SP0008002
WANDSWORTH COUNCIL,NGF CS,,Revenue,DIRECT2,AGENCY STAFF,770445,120800510,13/10/2015,"1,146.96",COBALT CONSULTING (UK) LTD,SP0008002
WANDSWORTH COUNCIL,NGF CS,,Revenue,DIRECT2,AGENCY STAFF,770446,120800510,13/10/2015,"1,189.44",COBALT CONSULTING (UK) LTD,SP0008002
WANDSWORTH COUNCIL,NGF CS,,Revenue,DIRECT2,AGENCY STAFF,787473,120800510,30/10/2015,"1,189.44",COBALT CONSULTING (UK) LTD,SP0008002
WANDSWORTH COUNCIL,NGF CS,,Revenue,DIRECT2,AGENCY STAFF,787477,120800510,30/10/2015,"1,189.44",COBALT CONSULTING (UK) LTD,SP0008002
WANDSWORTH COUNCIL,NGF CS,,Revenue,PRINTING STAT & GEN OFFICE EXP,OUTWORK - LITHO,764582,121333590,02/10/2015,"2,470.00",IMPRESS PRINT SERVICES LTD,SP0003209
WANDSWORTH COUNCIL,NGF CS,,Revenue,PRINTING STAT & GEN OFFICE EXP,OUTWORK - LITHO,764586,121333590,02/10/2015,"1,194.00",IMPRESS PRINT SERVICES LTD,SP0003209
WANDSWORTH COUNCIL,NGF CS,,Revenue,PRINTING STAT & GEN OFFICE EXP,OUTWORK - LITHO,764588,121333590,02/10/2015,820.00,IMPRESS PRINT SERVICES LTD,SP0003209
WANDSWORTH COUNCIL,NGF CS,,Revenue,PRINTING STAT & GEN OFFICE EXP,OUTWORK - LITHO,764602,121333590,02/10/2015,"1,748.00",PURBROOKS LTD,SP0001851
WANDSWORTH COUNCIL,NGF CS,,Revenue,PRINTING STAT & GEN OFFICE EXP,OUTWORK - LITHO,764603,121333590,02/10/2015,"6,318.00",PURBROOKS LTD,SP0001851
WANDSWORTH COUNCIL,NGF CS,,Revenue,PRINTING STAT & GEN OFFICE EXP,OUTWORK - LITHO,764604,121333590,02/10/2015,"6,493.00",PURBROOKS LTD,SP0001851
WANDSWORTH COUNCIL,NGF CS,,Revenue,PRINTING STAT & GEN OFFICE EXP,OUTWORK - LITHO,764605,121333590,02/10/2015,855.00,PURBROOKS LTD,SP0001851
WANDSWORTH COUNCIL,NGF CDC,,Revenue,INDIRECT,TRAINING - APPROVED QUALS,758051,122000760,02/10/2015,350.00,CHATERED INSTIUTE OF PUBLIC RELATIONS,SP0010026
WANDSWORTH COUNCIL,NGF CDC,,Revenue,INDIRECT,TRAINING - APPROVED QUALS,758051,122000760,02/10/2015,350.00,CHATERED INSTIUTE OF PUBLIC RELATIONS,SP0010026
WANDSWORTH COUNCIL,NGF CDC,,Revenue,PRINTING STAT & GEN OFFICE EXP,PUBLICITY,767597,122033470,08/10/2015,749.00,DOTMAILER LTD,SP0006264
WANDSWORTH COUNCIL,NGF CDC,,Revenue,PRINTING STAT & GEN OFFICE EXP,PUBLICITY,772025,122033470,14/10/2015,787.00,DOTMAILER LTD,SP0006264
WANDSWORTH COUNCIL,NGF CS,,Revenue,"EQUIPMENT, FURNITURE & MATS",EQUIP.FURN & MATS-REPS & MTCE,782973,122130010,28/10/2015,"3,579.00",ROYAL MAIL,SP0001067
WANDSWORTH COUNCIL,NGF CS,,Revenue,INDIRECT,IN-SERVICE TRAINING-SLA,765647,123000740,06/10/2015,650.00,FIRST RESPONSE TRAINING,SP0005439
WANDSWORTH COUNCIL,NGF CS,,Revenue,INDIRECT,IN-SERVICE TRAINING-SLA,765635,123000740,06/10/2015,"1,500.00",MARCEL HIRSHMAN LTD,SP0006983
WANDSWORTH COUNCIL,NGF CS,,Revenue,INDIRECT,IN-SERVICE TRAINING-SLA,774631,123000740,16/10/2015,"1,495.00",THE RAPID RESULTS COLLEGE LTD,SP0007425
WANDSWORTH COUNCIL,NGF CS,,Revenue,INDIRECT,IN-SERVICE TRAINING-SLA,774631,123000740,16/10/2015,107.00,THE RAPID RESULTS COLLEGE LTD,SP0007425
WANDSWORTH COUNCIL,NGF CS,,Revenue,INDIRECT,IN-SERVICE TRAINING-SLA,777134,123000740,20/10/2015,"1,347.00",THE RAPID RESULTS COLLEGE LTD,SP0007425
WANDSWORTH COUNCIL,NGF CS,,Revenue,INDIRECT,IN-SERVICE TRAINING-SLA,777134,123000740,20/10/2015,138.00,THE RAPID RESULTS COLLEGE LTD,SP0007425
WANDSWORTH COUNCIL,NGF CS,,Revenue,INDIRECT,IN-SERVICE TRAINING-SLA,769532,123000740,12/10/2015,600.00,TRAINING OUTSOURCE LIMITED,SP0008861
WANDSWORTH COUNCIL,NGF CS,,Revenue,INDIRECT,IN-SERVICE TRAINING-SLA,777101,123000740,20/10/2015,800.00,TRAINING OUTSOURCE LIMITED,SP0008861
WANDSWORTH COUNCIL,NGF CS,,Revenue,INDIRECT,IN-SERVICE TRAINING-SLA,766557,123000740,08/10/2015,"3,540.00",TRAINING SYNERGY LTD,SP0000312
WANDSWORTH COUNCIL,NGF CS,,Revenue,INDIRECT,IN-SERVICE TRAINING-SLA,781026,123000740,23/10/2015,"7,965.00",TRAINING SYNERGY LTD,SP0000312
WANDSWORTH COUNCIL,NGF CS,,Revenue,INDIRECT,IN-SERVICE TRAINING-SLA,781027,123000740,23/10/2015,"6,705.00",TRAINING SYNERGY LTD,SP0000312
WANDSWORTH COUNCIL,NGF CS,,Revenue,INDIRECT,IN-SERVICE TRAINING-SLA,781028,123000740,23/10/2015,975.00,TRAINING SYNERGY LTD,SP0000312
WANDSWORTH COUNCIL,NGF CS,,Revenue,INDIRECT,HEALTH CARE PROMOTIONAL,771524,123200630,14/10/2015,750.00,INPULSE,SP0005098
WANDSWORTH COUNCIL,NGF CS,,Revenue,INDIRECT,HEALTH CARE PROMOTIONAL,783531,123200630,29/10/2015,855.00,PENELOPE TAYLOR LTD,SP0010212
WANDSWORTH COUNCIL,NGF CS,,Revenue,INDIRECT,CHILDCARE VOUCHERS,767691,123200650,12/10/2015,105.66,COMPUTERSHARE VOUCHER SERVICES,SP0003037
WANDSWORTH COUNCIL,NGF CS,,Revenue,INDIRECT,CHILDCARE VOUCHERS,772414,123200650,14/10/2015,674.19,COMPUTERSHARE VOUCHER SERVICES,SP0003037
WANDSWORTH COUNCIL,NGF CS,,Revenue,INDIRECT,CHILDCARE VOUCHERS,787443,123200650,30/10/2015,128.03,COMPUTERSHARE VOUCHER SERVICES,SP0003037
WANDSWORTH COUNCIL,NGF CS,,Revenue,INDIRECT,CHILDCARE VOUCHERS,787444,123200650,30/10/2015,21.87,COMPUTERSHARE VOUCHER SERVICES,SP0003037
WANDSWORTH COUNCIL,NGF CS,,Revenue,SERVICES,OHS SESSIONAL DOCTOR,783395,123234690,27/10/2015,"4,930.20",HJM ASSOCIATES,SP0003667
WANDSWORTH COUNCIL,NGF CS,,Revenue,COMMUNICATIONS & COMP,I.T. EQUIPMENT & MAINTENANCE,773381,123236210,16/10/2015,"1,857.00",DELL CORPORATION LTD,SP0003352
WANDSWORTH COUNCIL,NGF CS,,Revenue,MISC,MISCELLANEOUS EXPENSES,780295,123238500,27/10/2015,"24,262.81",P&MM LTD,SP0002520
WANDSWORTH COUNCIL,NGF CDC,,Revenue,MISC,MISCELLANEOUS EXPENSES,763963,124438500,02/10/2015,525.66,DANWOOD GROUP LTD,SP0002739
WANDSWORTH COUNCIL,NGF CS,,Revenue,INDIRECT,TRAINING - APPROVED QUALS,777133,124700760,20/10/2015,"2,505.00",KINGS COLLEGE LONDON,SP0008165
WANDSWORTH COUNCIL,PH,,Revenue,INDIRECT,TRAINING - EXTERNAL COURSES,776719,125000770,20/10/2015,"2,000.00",MULLENDER'S,SP0010109
WANDSWORTH COUNCIL,PH,,Revenue,SERVICES,PROJECT WORK,769882,125134800,12/10/2015,"2,099.16",PLACES FOR PEOPLE - LATCHMERE LEISURE CT,SP0006367
WANDSWORTH COUNCIL,NGF CS,,Revenue,"EQUIPMENT, FURNITURE & MATS",ADAPTATIONS - COUNCIL,767703,126130020,09/10/2015,"8,829.00",SUNA COMMUNICATION LTD,SP0000491
WANDSWORTH COUNCIL,NGF CS,,Revenue,"EQUIPMENT, FURNITURE & MATS",CCTV CONTROL ROOM DEVELOPMENT,766696,126130030,07/10/2015,"9,393.35",VIRGIN MEDIA BUSINESS,SP0003737
WANDSWORTH COUNCIL,NGF CS,,Revenue,"EQUIPMENT, FURNITURE & MATS",CCTV CONTROL ROOM DEVELOPMENT,774641,126130030,15/10/2015,420.93,VIRGIN MEDIA BUSINESS,SP0003737
WANDSWORTH COUNCIL,NGF CS,,Revenue,"EQUIPMENT, FURNITURE & MATS",CCTV CONTROL ROOM DEVELOPMENT,781011,126130030,26/10/2015,"3,600.00",VIRGIN MEDIA BUSINESS,SP0003737
WANDSWORTH COUNCIL,NGF CS,,Revenue,"EQUIPMENT, FURNITURE & MATS",CCTV CONTROL ROOM DEVELOPMENT,781012,126130030,23/10/2015,"1,105.00",VIRGIN MEDIA BUSINESS,SP0003737
WANDSWORTH COUNCIL,NGF CS,,Revenue,"EQUIPMENT, FURNITURE & MATS",CCTV CONTROL ROOM DEVELOPMENT,781013,126130030,26/10/2015,"3,600.00",VIRGIN MEDIA BUSINESS,SP0003737
WANDSWORTH COUNCIL,NGF CS,,Revenue,"EQUIPMENT, FURNITURE & MATS",CCTV CONTROL ROOM DEVELOPMENT,781015,126130030,26/10/2015,"1,105.00",VIRGIN MEDIA BUSINESS,SP0003737
WANDSWORTH COUNCIL,NGF CS,,Revenue,"EQUIPMENT, FURNITURE & MATS",CCTV CONTROL ROOM DEVELOPMENT,781016,126130030,26/10/2015,"1,005.00",VIRGIN MEDIA BUSINESS,SP0003737
WANDSWORTH COUNCIL,NGF CS,,Revenue,"EQUIPMENT, FURNITURE & MATS",CCTV CONTROL ROOM DEVELOPMENT,781017,126130030,26/10/2015,"1,105.00",VIRGIN MEDIA BUSINESS,SP0003737
WANDSWORTH COUNCIL,NGF CS,,Revenue,"EQUIPMENT, FURNITURE & MATS",CCTV CONTROL ROOM DEVELOPMENT,781019,126130030,26/10/2015,"1,105.00",VIRGIN MEDIA BUSINESS,SP0003737
WANDSWORTH COUNCIL,NGF CS,,Revenue,"EQUIPMENT, FURNITURE & MATS",CCTV CONTROL ROOM DEVELOPMENT,781043,126130030,26/10/2015,"3,570.00",VIRGIN MEDIA BUSINESS,SP0003737
WANDSWORTH COUNCIL,NGF CS,,Revenue,"EQUIPMENT, FURNITURE & MATS",CCTV CONTROL ROOM DEVELOPMENT,783316,126130030,27/10/2015,"3,600.00",VIRGIN MEDIA BUSINESS,SP0003737
WANDSWORTH COUNCIL,NGF CS,,Revenue,"EQUIPMENT, FURNITURE & MATS",CCTV FIBRE RENTALS,771521,126130040,14/10/2015,"3,214.00",VODAFONE CORPORATE,SP0001107
WANDSWORTH COUNCIL,NGF CS,,Revenue,"EQUIPMENT, FURNITURE & MATS",CONSUMABLES,750816,126130080,05/10/2015,844.52,BT PAYMENT SERVICES LTD,SP0001093
WANDSWORTH COUNCIL,NGF CS,,Revenue,"EQUIPMENT, FURNITURE & MATS",CONSUMABLES,780746,126130080,29/10/2015,223.81,BT PAYMENT SERVICES LTD,SP0001093
WANDSWORTH COUNCIL,NGF CS,,Revenue,"EQUIPMENT, FURNITURE & MATS",CONSUMABLES,780746,126130080,29/10/2015,"8,072.30",BT PAYMENT SERVICES LTD,SP0001093
WANDSWORTH COUNCIL,NGF CS,,Revenue,"EQUIPMENT, FURNITURE & MATS",CONSUMABLES,780753,126130080,26/10/2015,"21,720.23",BT PAYMENT SERVICES LTD,SP0001093
WANDSWORTH COUNCIL,NGF CS,,Revenue,"EQUIPMENT, FURNITURE & MATS",CONSUMABLES,780756,126130080,23/10/2015,827.03,BT PAYMENT SERVICES LTD,SP0001093
WANDSWORTH COUNCIL,NGF CS,,Revenue,"EQUIPMENT, FURNITURE & MATS",CONSUMABLES,780757,126130080,23/10/2015,507.39,BT PAYMENT SERVICES LTD,SP0001093
WANDSWORTH COUNCIL,NGF CS,,Revenue,"EQUIPMENT, FURNITURE & MATS",CONSUMABLES,783412,126130080,29/10/2015,20.00,BT PAYMENT SERVICES LTD,SP0001093
WANDSWORTH COUNCIL,NGF CS,,Revenue,"EQUIPMENT, FURNITURE & MATS",CONSUMABLES,783412,126130080,29/10/2015,"1,052.67",BT PAYMENT SERVICES LTD,SP0001093
WANDSWORTH COUNCIL,NGF CS,,Revenue,"EQUIPMENT, FURNITURE & MATS",CONSUMABLES,783413,126130080,29/10/2015,20.00,BT PAYMENT SERVICES LTD,SP0001093
WANDSWORTH COUNCIL,NGF CS,,Revenue,"EQUIPMENT, FURNITURE & MATS",CONSUMABLES,783413,126130080,29/10/2015,"1,044.32",BT PAYMENT SERVICES LTD,SP0001093
WANDSWORTH COUNCIL,NGF CS,,Revenue,"EQUIPMENT, FURNITURE & MATS",CONSUMABLES,783418,126130080,29/10/2015,"14,048.26",BT PAYMENT SERVICES LTD,SP0001093
WANDSWORTH COUNCIL,NGF CS,,Revenue,"EQUIPMENT, FURNITURE & MATS",CONSUMABLES,783420,126130080,29/10/2015,20.00,BT PAYMENT SERVICES LTD,SP0001093
WANDSWORTH COUNCIL,NGF CS,,Revenue,"EQUIPMENT, FURNITURE & MATS",CONSUMABLES,783420,126130080,29/10/2015,824.51,BT PAYMENT SERVICES LTD,SP0001093
WANDSWORTH COUNCIL,NGF CS,,Revenue,"EQUIPMENT, FURNITURE & MATS",CONSUMABLES,786019,126130080,30/10/2015,682.08,BT PAYMENT SERVICES LTD,SP0001093
WANDSWORTH COUNCIL,NGF CS,,Revenue,"EQUIPMENT, FURNITURE & MATS",CONSUMABLES,786019,126130080,30/10/2015,20.00,BT PAYMENT SERVICES LTD,SP0001093
WANDSWORTH COUNCIL,NGF CS,,Revenue,"EQUIPMENT, FURNITURE & MATS",CONSUMABLES,786020,126130080,30/10/2015,20.00,BT PAYMENT SERVICES LTD,SP0001093
WANDSWORTH COUNCIL,NGF CS,,Revenue,"EQUIPMENT, FURNITURE & MATS",CONSUMABLES,786020,126130080,30/10/2015,973.18,BT PAYMENT SERVICES LTD,SP0001093
WANDSWORTH COUNCIL,NGF CS,,Revenue,"EQUIPMENT, FURNITURE & MATS",CONSUMABLES,786026,126130080,30/10/2015,"1,264.96",BT PAYMENT SERVICES LTD,SP0001093
WANDSWORTH COUNCIL,NGF CS,,Revenue,"EQUIPMENT, FURNITURE & MATS",CONSUMABLES,786026,126130080,30/10/2015,20.00,BT PAYMENT SERVICES LTD,SP0001093
WANDSWORTH COUNCIL,NGF CS,,Revenue,"EQUIPMENT, FURNITURE & MATS","EQUIPMENT, FURNITURE & MATS",771522,126330000,14/10/2015,"1,206.00",CABLE & WIRELESS COMMUNICATIONS,SP0001061
WANDSWORTH COUNCIL,NGF CS,,Revenue,"EQUIPMENT, FURNITURE & MATS","EQUIPMENT, FURNITURE & MATS",783111,126330000,29/10/2015,720.00,DAMOVO UK LTD,SP0000899
WANDSWORTH COUNCIL,NGF CS,,Revenue,"EQUIPMENT, FURNITURE & MATS","EQUIPMENT, FURNITURE & MATS",783111,126330000,29/10/2015,50.00,DAMOVO UK LTD,SP0000899
WANDSWORTH COUNCIL,NGF CS,,Revenue,"EQUIPMENT, FURNITURE & MATS","EQUIPMENT, FURNITURE & MATS",783111,126330000,29/10/2015,432.00,DAMOVO UK LTD,SP0000899
WANDSWORTH COUNCIL,NGF CS,,Revenue,"EQUIPMENT, FURNITURE & MATS","EQUIPMENT, FURNITURE & MATS",783389,126330000,29/10/2015,"1,000.00",VOICE CONNECT LTD,SP0000308
WANDSWORTH COUNCIL,NGF CS,,Revenue,"EQUIPMENT, FURNITURE & MATS",EQUIP.FURN & MATS-REPS & MTCE,777616,126330010,19/10/2015,601.55,ACR LONDON LTD,SP0000193
WANDSWORTH COUNCIL,NGF CS,,Revenue,"EQUIPMENT, FURNITURE & MATS","EQUIPMENT, FURNITURE & MATS",777624,126530000,19/10/2015,"2,091.60",ACR LONDON LTD,SP0000193
WANDSWORTH COUNCIL,NGF CS,,Revenue,"EQUIPMENT, FURNITURE & MATS","EQUIPMENT, FURNITURE & MATS",772970,126530000,14/10/2015,8.50,HARDWARE.COM,SP0006707
WANDSWORTH COUNCIL,NGF CS,,Revenue,"EQUIPMENT, FURNITURE & MATS","EQUIPMENT, FURNITURE & MATS",772970,126530000,14/10/2015,638.88,HARDWARE.COM,SP0006707
WANDSWORTH COUNCIL,NGF CS,,Revenue,SERVICES,SERVICES - GENERAL,772964,126534870,13/10/2015,"10,038.53",RETAIL ASSIST LTD,SP0007725
WANDSWORTH COUNCIL,NGF CS,,Revenue,COMMUNICATIONS & COMP,I.T. SOFTWARE,767857,126536240,12/10/2015,"2,276.00",ZOHO CORPORATION LTD,SP0007700
WANDSWORTH COUNCIL,NGF CS,,Revenue,COMMUNICATIONS & COMP,I.T. SOFTWARE,767857,126536240,12/10/2015,"4,557.00",ZOHO CORPORATION LTD,SP0007700
WANDSWORTH COUNCIL,NGF CS,,Revenue,COMMUNICATIONS & COMP,I.T. SOFTWARE,767860,126536240,12/10/2015,"2,200.00",ZOHO CORPORATION LTD,SP0007700
WANDSWORTH COUNCIL,NGF CS,,Revenue,"EQUIPMENT, FURNITURE & MATS","EQUIPMENT, FURNITURE & MATS",770398,126630000,13/10/2015,"1,088.00",ALTULA LTD,SP0008575
WANDSWORTH COUNCIL,NGF CS,,Revenue,COMMUNICATIONS & COMP,I.T. SLA RECHARGE,769544,126836230,12/10/2015,"1,665.83",DORSET SOFTWARE SERVICES LIMITED,SP0001072
WANDSWORTH COUNCIL,NGF CS,,Revenue,COMMUNICATIONS & COMP,I.T. SLA RECHARGE,769594,126836230,12/10/2015,"1,520.84",DORSET SOFTWARE SERVICES LIMITED,SP0001072
WANDSWORTH COUNCIL,NGF CS,,Revenue,COMMUNICATIONS & COMP,I.T. SLA RECHARGE,773472,126836230,14/10/2015,484.83,DORSET SOFTWARE SERVICES LIMITED,SP0001072
WANDSWORTH COUNCIL,NGF CS,,Revenue,COMMUNICATIONS & COMP,I.T. SLA RECHARGE,783354,126836230,29/10/2015,"24,509.60",QMATIC UK LTD,SP0000660
WANDSWORTH COUNCIL,NGF CS,,Revenue,SERVICES,PROJECT WORK,764782,127034800,05/10/2015,"5,328.00",STORM FAMILY CENTRE LTD,SP0002613
WANDSWORTH COUNCIL,CS,,Revenue,DIRECT2,AGENCY STAFF,765638,128000510,06/10/2015,"12,382.66",MATRIX SCM LIMITED,SP0004572
WANDSWORTH COUNCIL,CS,,Revenue,DIRECT2,AGENCY STAFF,765659,128000510,06/10/2015,"13,395.10",MATRIX SCM LIMITED,SP0004572
WANDSWORTH COUNCIL,CS,,Revenue,DIRECT2,AGENCY STAFF,769586,128000510,12/10/2015,"11,056.00",MATRIX SCM LIMITED,SP0004572
WANDSWORTH COUNCIL,CS,,Revenue,DIRECT2,AGENCY STAFF,776046,128000510,16/10/2015,"11,027.24",MATRIX SCM LIMITED,SP0004572
WANDSWORTH COUNCIL,CS,,Revenue,DIRECT2,AGENCY STAFF,782649,128000510,28/10/2015,"10,568.66",MATRIX SCM LIMITED,SP0004572
WANDSWORTH COUNCIL,CS,,Revenue,INDIRECT,STAFF ADVERTISING - VACANCIES,724973,128000960,20/10/2015,"3,700.00",PENNA PLC,SP0006290
WANDSWORTH COUNCIL,CS,,Revenue,INDIRECT,STAFF ADVERTISING - VACANCIES,766471,128000960,07/10/2015,"3,711.08",PENNA PLC,SP0006290
WANDSWORTH COUNCIL,CS,,Revenue,INDIRECT,STAFF ADVERTISING - VACANCIES,769253,128000960,09/10/2015,791.00,PENNA PLC,SP0006290
WANDSWORTH COUNCIL,CS,,Revenue,INDIRECT,STAFF ADVERTISING - VACANCIES,769548,128000960,12/10/2015,"1,358.00",PENNA PLC,SP0006290
WANDSWORTH COUNCIL,CS,,Revenue,INDIRECT,STAFF ADVERTISING - VACANCIES,776716,128000960,20/10/2015,696.42,PENNA PLC,SP0006290
WANDSWORTH COUNCIL,CS,,Revenue,INDIRECT,STAFF ADVERTISING - VACANCIES,776729,128000960,20/10/2015,696.50,PENNA PLC,SP0006290
WANDSWORTH COUNCIL,CS,,Revenue,INDIRECT,STAFF ADVERTISING - VACANCIES,778724,128000960,21/10/2015,"3,439.80",PENNA PLC,SP0006290
WANDSWORTH COUNCIL,CS,,Revenue,INDIRECT,STAFF ADVERTISING - VACANCIES,778736,128000960,21/10/2015,552.86,PENNA PLC,SP0006290
WANDSWORTH COUNCIL,CS,,Revenue,INDIRECT,STAFF ADVERTISING - VACANCIES,783414,128000960,29/10/2015,840.50,PENNA PLC,SP0006290
WANDSWORTH COUNCIL,CS,,Revenue,INDIRECT,STAFF ADVERTISING - VACANCIES,783415,128000960,29/10/2015,840.50,PENNA PLC,SP0006290
WANDSWORTH COUNCIL,ASC,SOCIAL SERVICES,Revenue,HIRE,HIRE - TRANSPORT,777040,130020410,16/10/2015,"1,310.00",A STAR TRANSPORT LTD,SP0000866
WANDSWORTH COUNCIL,ASC,SOCIAL SERVICES,Revenue,HIRE,HIRE - TRANSPORT,773146,130020410,13/10/2015,"1,566.00",BECKETT CORPORATION LTD T/A TINAS CARS,SP0000729
WANDSWORTH COUNCIL,ASC,SOCIAL SERVICES,Revenue,PRIVATE,EXTERNAL RESIDENTIAL CARE,773028,130045330,13/10/2015,"9,211.43",LONDON CARE PARTNERSHIP LTD,SP0001138
WANDSWORTH COUNCIL,ASC,SOCIAL SERVICES,Revenue,PRIVATE,EXTERNAL RESIDENTIAL CARE,776136,130045330,15/10/2015,"8,914.29",LONDON CARE PARTNERSHIP LTD,SP0001138
WANDSWORTH COUNCIL,ASC,SOCIAL SERVICES,Revenue,HIRE,HIRE - TRANSPORT,764526,130220410,02/10/2015,981.92,A STAR TRANSPORT LTD,SP0000866
WANDSWORTH COUNCIL,ASC,SOCIAL SERVICES,Revenue,HIRE,HIRE - TRANSPORT,764527,130220410,02/10/2015,981.54,A STAR TRANSPORT LTD,SP0000866
WANDSWORTH COUNCIL,ASC,SOCIAL SERVICES,Revenue,HIRE,HIRE - TRANSPORT,766141,130220410,05/10/2015,"1,206.00",A STAR TRANSPORT LTD,SP0000866
WANDSWORTH COUNCIL,ASC,SOCIAL SERVICES,Revenue,HIRE,HIRE - TRANSPORT,777030,130220410,16/10/2015,468.00,A STAR TRANSPORT LTD,SP0000866
WANDSWORTH COUNCIL,ASC,SOCIAL SERVICES,Revenue,HIRE,HIRE - TRANSPORT,777031,130220410,16/10/2015,468.00,A STAR TRANSPORT LTD,SP0000866
WANDSWORTH COUNCIL,ASC,SOCIAL SERVICES,Revenue,HIRE,HIRE - TRANSPORT,777033,130220410,16/10/2015,616.28,A STAR TRANSPORT LTD,SP0000866
WANDSWORTH COUNCIL,ASC,SOCIAL SERVICES,Revenue,HIRE,HIRE - TRANSPORT,777035,130220410,16/10/2015,432.00,A STAR TRANSPORT LTD,SP0000866
WANDSWORTH COUNCIL,ASC,SOCIAL SERVICES,Revenue,HIRE,HIRE - TRANSPORT,777036,130220410,16/10/2015,528.00,A STAR TRANSPORT LTD,SP0000866
WANDSWORTH COUNCIL,ASC,SOCIAL SERVICES,Revenue,HIRE,HIRE - TRANSPORT,777042,130220410,16/10/2015,573.80,A STAR TRANSPORT LTD,SP0000866
WANDSWORTH COUNCIL,ASC,SOCIAL SERVICES,Revenue,HIRE,HIRE - TRANSPORT,777046,130220410,16/10/2015,546.36,A STAR TRANSPORT LTD,SP0000866
WANDSWORTH COUNCIL,ASC,SOCIAL SERVICES,Revenue,HIRE,HIRE - TRANSPORT,777049,130220410,16/10/2015,566.28,A STAR TRANSPORT LTD,SP0000866
WANDSWORTH COUNCIL,ASC,SOCIAL SERVICES,Revenue,HIRE,HIRE - TRANSPORT,778464,130220410,20/10/2015,"1,344.00",A STAR TRANSPORT LTD,SP0000866
WANDSWORTH COUNCIL,ASC,SOCIAL SERVICES,Revenue,HIRE,HIRE - TRANSPORT,778465,130220410,20/10/2015,404.00,A STAR TRANSPORT LTD,SP0000866
WANDSWORTH COUNCIL,ASC,SOCIAL SERVICES,Revenue,HIRE,HIRE - TRANSPORT,778468,130220410,20/10/2015,520.00,A STAR TRANSPORT LTD,SP0000866
WANDSWORTH COUNCIL,ASC,SOCIAL SERVICES,Revenue,HIRE,HIRE - TRANSPORT,778469,130220410,20/10/2015,880.00,A STAR TRANSPORT LTD,SP0000866
WANDSWORTH COUNCIL,ASC,SOCIAL SERVICES,Revenue,HIRE,HIRE - TRANSPORT,778471,130220410,20/10/2015,"1,170.00",A STAR TRANSPORT LTD,SP0000866
WANDSWORTH COUNCIL,ASC,SOCIAL SERVICES,Revenue,HIRE,HIRE - TRANSPORT,778472,130220410,20/10/2015,"1,216.00",A STAR TRANSPORT LTD,SP0000866
WANDSWORTH COUNCIL,ASC,SOCIAL SERVICES,Revenue,HIRE,HIRE - TRANSPORT,778476,130220410,20/10/2015,"1,000.00",A STAR TRANSPORT LTD,SP0000866
WANDSWORTH COUNCIL,ASC,SOCIAL SERVICES,Revenue,HIRE,HIRE - TRANSPORT,778477,130220410,20/10/2015,"1,000.00",A STAR TRANSPORT LTD,SP0000866
WANDSWORTH COUNCIL,ASC,SOCIAL SERVICES,Revenue,HIRE,HIRE - TRANSPORT,778478,130220410,20/10/2015,600.00,A STAR TRANSPORT LTD,SP0000866
WANDSWORTH COUNCIL,ASC,SOCIAL SERVICES,Revenue,HIRE,HIRE - TRANSPORT,778480,130220410,20/10/2015,448.00,A STAR TRANSPORT LTD,SP0000866
WANDSWORTH COUNCIL,ASC,SOCIAL SERVICES,Revenue,HIRE,HIRE - TRANSPORT,778481,130220410,20/10/2015,664.00,A STAR TRANSPORT LTD,SP0000866
WANDSWORTH COUNCIL,ASC,SOCIAL SERVICES,Revenue,HIRE,HIRE - TRANSPORT,778485,130220410,20/10/2015,843.00,A STAR TRANSPORT LTD,SP0000866
WANDSWORTH COUNCIL,ASC,SOCIAL SERVICES,Revenue,HIRE,HIRE - TRANSPORT,778487,130220410,20/10/2015,"1,033.60",A STAR TRANSPORT LTD,SP0000866
WANDSWORTH COUNCIL,ASC,SOCIAL SERVICES,Revenue,HIRE,HIRE - TRANSPORT,778488,130220410,20/10/2015,"1,033.20",A STAR TRANSPORT LTD,SP0000866
WANDSWORTH COUNCIL,ASC,SOCIAL SERVICES,Revenue,HIRE,HIRE - TRANSPORT,778493,130220410,20/10/2015,721.24,A STAR TRANSPORT LTD,SP0000866
WANDSWORTH COUNCIL,ASC,SOCIAL SERVICES,Revenue,HIRE,HIRE - TRANSPORT,778494,130220410,20/10/2015,624.00,A STAR TRANSPORT LTD,SP0000866
WANDSWORTH COUNCIL,ASC,SOCIAL SERVICES,Revenue,HIRE,HIRE - TRANSPORT,778495,130220410,20/10/2015,"1,209.00",A STAR TRANSPORT LTD,SP0000866
WANDSWORTH COUNCIL,ASC,SOCIAL SERVICES,Revenue,HIRE,HIRE - TRANSPORT,780722,130220410,22/10/2015,864.00,A STAR TRANSPORT LTD,SP0000866
WANDSWORTH COUNCIL,ASC,SOCIAL SERVICES,Revenue,HIRE,HIRE - TRANSPORT,780724,130220410,22/10/2015,998.00,A STAR TRANSPORT LTD,SP0000866
WANDSWORTH COUNCIL,ASC,SOCIAL SERVICES,Revenue,HIRE,HIRE - TRANSPORT,780726,130220410,22/10/2015,"1,176.00",A STAR TRANSPORT LTD,SP0000866
WANDSWORTH COUNCIL,ASC,SOCIAL SERVICES,Revenue,HIRE,HIRE - TRANSPORT,780727,130220410,22/10/2015,"1,251.00",A STAR TRANSPORT LTD,SP0000866
WANDSWORTH COUNCIL,ASC,SOCIAL SERVICES,Revenue,HIRE,HIRE - TRANSPORT,780728,130220410,22/10/2015,760.00,A STAR TRANSPORT LTD,SP0000866
WANDSWORTH COUNCIL,ASC,SOCIAL SERVICES,Revenue,HIRE,HIRE - TRANSPORT,780729,130220410,22/10/2015,513.00,A STAR TRANSPORT LTD,SP0000866
WANDSWORTH COUNCIL,ASC,SOCIAL SERVICES,Revenue,HIRE,HIRE - TRANSPORT,780730,130220410,22/10/2015,468.00,A STAR TRANSPORT LTD,SP0000866
WANDSWORTH COUNCIL,ASC,SOCIAL SERVICES,Revenue,HIRE,HIRE - TRANSPORT,780732,130220410,22/10/2015,756.00,A STAR TRANSPORT LTD,SP0000866
WANDSWORTH COUNCIL,ASC,SOCIAL SERVICES,Revenue,HIRE,HIRE - TRANSPORT,780733,130220410,22/10/2015,756.00,A STAR TRANSPORT LTD,SP0000866
WANDSWORTH COUNCIL,ASC,SOCIAL SERVICES,Revenue,HIRE,HIRE - TRANSPORT,764730,130220410,02/10/2015,"1,365.00",BECKETT CORPORATION LTD T/A TINAS CARS,SP0000729
WANDSWORTH COUNCIL,ASC,SOCIAL SERVICES,Revenue,HIRE,HIRE - TRANSPORT,764731,130220410,02/10/2015,"1,200.00",BECKETT CORPORATION LTD T/A TINAS CARS,SP0000729
WANDSWORTH COUNCIL,ASC,SOCIAL SERVICES,Revenue,HIRE,HIRE - TRANSPORT,764733,130220410,02/10/2015,855.00,BECKETT CORPORATION LTD T/A TINAS CARS,SP0000729
WANDSWORTH COUNCIL,ASC,SOCIAL SERVICES,Revenue,HIRE,HIRE - TRANSPORT,764734,130220410,02/10/2015,900.00,BECKETT CORPORATION LTD T/A TINAS CARS,SP0000729
WANDSWORTH COUNCIL,ASC,SOCIAL SERVICES,Revenue,HIRE,HIRE - TRANSPORT,773145,130220410,13/10/2015,583.49,BECKETT CORPORATION LTD T/A TINAS CARS,SP0000729
WANDSWORTH COUNCIL,ASC,SOCIAL SERVICES,Revenue,HIRE,HIRE - TRANSPORT,773149,130220410,13/10/2015,137.12,BECKETT CORPORATION LTD T/A TINAS CARS,SP0000729
WANDSWORTH COUNCIL,ASC,SOCIAL SERVICES,Revenue,HIRE,HIRE - TRANSPORT,773154,130220410,13/10/2015,"1,345.50",BECKETT CORPORATION LTD T/A TINAS CARS,SP0000729
WANDSWORTH COUNCIL,ASC,SOCIAL SERVICES,Revenue,HIRE,HIRE - TRANSPORT,773155,130220410,13/10/2015,663.00,BECKETT CORPORATION LTD T/A TINAS CARS,SP0000729
WANDSWORTH COUNCIL,ASC,SOCIAL SERVICES,Revenue,HIRE,HIRE - TRANSPORT,773156,130220410,13/10/2015,"1,520.00",BECKETT CORPORATION LTD T/A TINAS CARS,SP0000729
WANDSWORTH COUNCIL,ASC,SOCIAL SERVICES,Revenue,HIRE,HIRE - TRANSPORT,773157,130220410,13/10/2015,922.50,BECKETT CORPORATION LTD T/A TINAS CARS,SP0000729
WANDSWORTH COUNCIL,ASC,SOCIAL SERVICES,Revenue,HIRE,HIRE - TRANSPORT,773158,130220410,13/10/2015,900.00,BECKETT CORPORATION LTD T/A TINAS CARS,SP0000729
WANDSWORTH COUNCIL,ASC,SOCIAL SERVICES,Revenue,HIRE,HIRE - TRANSPORT,767824,130220410,07/10/2015,486.00,PARKER CARS LIMITED,SP0005826
WANDSWORTH COUNCIL,ASC,SOCIAL SERVICES,Revenue,HIRE,NEW TRANSPORT CONTRACT,778465,130220430,20/10/2015,172.00,A STAR TRANSPORT LTD,SP0000866
WANDSWORTH COUNCIL,ASC,,Revenue,HIRE,NEW TRANSPORT CONTRACT,767658,130220430,12/10/2015,"1,240.00",ARTHRITIS CARE,SP0005563
WANDSWORTH COUNCIL,ASC,SOCIAL SERVICES,Revenue,HIRE,NEW TRANSPORT CONTRACT,773147,130220430,13/10/2015,"1,156.20",BECKETT CORPORATION LTD T/A TINAS CARS,SP0000729
WANDSWORTH COUNCIL,ASC,SOCIAL SERVICES,Revenue,HIRE,NEW TRANSPORT CONTRACT,773149,130220430,13/10/2015,335.98,BECKETT CORPORATION LTD T/A TINAS CARS,SP0000729
WANDSWORTH COUNCIL,ASC,SOCIAL SERVICES,Revenue,HEALTH,EXT RES S28A 100% OLD LONGSTAY,764346,130241010,02/10/2015,"6,266.83",VOYAGE CARE LTD,SP0000366
WANDSWORTH COUNCIL,ASC,SOCIAL SERVICES,Revenue,HEALTH,EXT RES S28A 100% OLD LONGSTAY,764646,130241010,02/10/2015,"6,064.67",VOYAGE CARE LTD,SP0000366
WANDSWORTH COUNCIL,ASC,SOCIAL SERVICES,Revenue,HEALTH,EXT RES S28A OLD LONG STAY,780519,130241110,22/10/2015,"4,351.72",ANTHONY TOBY HOMES TRUST,SP0000755
WANDSWORTH COUNCIL,ASC,SOCIAL SERVICES,Revenue,HEALTH,EXT RES S28A OLD LONG STAY,772485,130241110,13/10/2015,"2,690.16",ASHTON CARE,SP0000695
WANDSWORTH COUNCIL,ASC,SOCIAL SERVICES,Revenue,HEALTH,EXT RES S28A OLD LONG STAY,772997,130241110,13/10/2015,"2,975.96",ELEANOR NURSING & SOCIAL CARE,SP0000110
WANDSWORTH COUNCIL,ASC,SOCIAL SERVICES,Revenue,HEALTH,EXT RES S28A OLD LONG STAY,772998,130241110,13/10/2015,"2,975.96",ELEANOR NURSING & SOCIAL CARE,SP0000110
WANDSWORTH COUNCIL,ASC,SOCIAL SERVICES,Revenue,HEALTH,EXT RES S28A OLD LONG STAY,764633,130241110,02/10/2015,"4,709.79",METROPOLITAN HOUSING TRUST,SP0000626
WANDSWORTH COUNCIL,ASC,SOCIAL SERVICES,Revenue,HEALTH,EXT RES S28A OLD LONG STAY,772496,130241110,13/10/2015,"4,967.71",THE COMMUNITY CARE COMPANY UK LTD,SP0000576
WANDSWORTH COUNCIL,ASC,SOCIAL SERVICES,Revenue,OTHER AGENCIES,ENABLERS/EDUCATION FEES,771391,130243280,12/10/2015,"24,122.40",CAMBIAN WHINFELL SCHOOL LTD,SP0008913
WANDSWORTH COUNCIL,ASC,SOCIAL SERVICES,Revenue,OTHER AGENCIES,ENABLERS/EDUCATION FEES,782650,130243280,26/10/2015,"13,523.67",ST  JOHN'S SCHOOL & COLLEGE,SP0001374
WANDSWORTH COUNCIL,ASC,SOCIAL SERVICES,Revenue,OTHER AGENCIES,ENABLERS/EDUCATION FEES,778864,130243280,21/10/2015,"45,608.48",THE WEST OF ENGLAND SCHOOL & COLLEGE,SP0001486
WANDSWORTH COUNCIL,ASC,SOCIAL SERVICES,Revenue,OTHER AGENCIES,EXTERNAL LODGINGS,781528,130243320,23/10/2015,"1,050.00",M RAZA T/A CLOCK HOUSE HOTEL,SP0001280
WANDSWORTH COUNCIL,ASC,SOCIAL SERVICES,Revenue,OTHER AGENCIES,EXTERNAL OUTREACH,773123,130243330,13/10/2015,"2,185.32",C M CARE LTD,SP0000455
WANDSWORTH COUNCIL,ASC,SOCIAL SERVICES,Revenue,OTHER AGENCIES,EXTERNAL OUTREACH,773126,130243330,13/10/2015,"1,287.20",C M CARE LTD,SP0000455
WANDSWORTH COUNCIL,ASC,SOCIAL SERVICES,Revenue,OTHER AGENCIES,EXTERNAL OUTREACH,773128,130243330,13/10/2015,576.00,C M CARE LTD,SP0000455
WANDSWORTH COUNCIL,ASC,SOCIAL SERVICES,Revenue,OTHER AGENCIES,EXTERNAL OUTREACH,773129,130243330,13/10/2015,"1,540.00",C M CARE LTD,SP0000455
WANDSWORTH COUNCIL,ASC,SOCIAL SERVICES,Revenue,OTHER AGENCIES,EXTERNAL OUTREACH,785588,130243330,28/10/2015,717.84,GENERATE OPPORTUNITIES LTD,SP0000503
WANDSWORTH COUNCIL,ASC,SOCIAL SERVICES,Revenue,OTHER AGENCIES,EXTERNAL OUTREACH,785593,130243330,28/10/2015,239.28,GENERATE OPPORTUNITIES LTD,SP0000503
WANDSWORTH COUNCIL,ASC,SOCIAL SERVICES,Revenue,OTHER AGENCIES,EXTERNAL OUTREACH,785594,130243330,28/10/2015,677.96,GENERATE OPPORTUNITIES LTD,SP0000503
WANDSWORTH COUNCIL,ASC,SOCIAL SERVICES,Revenue,OTHER AGENCIES,EXTERNAL OUTREACH,785605,130243330,28/10/2015,"2,233.28",GENERATE OPPORTUNITIES LTD,SP0000503
WANDSWORTH COUNCIL,ASC,SOCIAL SERVICES,Revenue,OTHER AGENCIES,EXTERNAL OUTREACH,785607,130243330,28/10/2015,322.24,GENERATE OPPORTUNITIES LTD,SP0000503
WANDSWORTH COUNCIL,ASC,SOCIAL SERVICES,Revenue,OTHER AGENCIES,EXTERNAL OUTREACH,785608,130243330,28/10/2015,638.08,GENERATE OPPORTUNITIES LTD,SP0000503
WANDSWORTH COUNCIL,ASC,SOCIAL SERVICES,Revenue,OTHER AGENCIES,EXTERNAL OUTREACH,785609,130243330,28/10/2015,797.60,GENERATE OPPORTUNITIES LTD,SP0000503
WANDSWORTH COUNCIL,ASC,SOCIAL SERVICES,Revenue,OTHER AGENCIES,EXTERNAL OUTREACH,785622,130243330,28/10/2015,957.12,GENERATE OPPORTUNITIES LTD,SP0000503
WANDSWORTH COUNCIL,ASC,SOCIAL SERVICES,Revenue,OTHER AGENCIES,EXTERNAL OUTREACH,785628,130243330,28/10/2015,638.08,GENERATE OPPORTUNITIES LTD,SP0000503
WANDSWORTH COUNCIL,ASC,SOCIAL SERVICES,Revenue,OTHER AGENCIES,EXTERNAL OUTREACH,785630,130243330,28/10/2015,735.52,GENERATE OPPORTUNITIES LTD,SP0000503
WANDSWORTH COUNCIL,ASC,SOCIAL SERVICES,Revenue,OTHER AGENCIES,EXTERNAL OUTREACH,785634,130243330,28/10/2015,"1,196.40",GENERATE OPPORTUNITIES LTD,SP0000503
WANDSWORTH COUNCIL,ASC,SOCIAL SERVICES,Revenue,OTHER AGENCIES,EXTERNAL OUTREACH,785646,130243330,28/10/2015,"2,485.52",GENERATE OPPORTUNITIES LTD,SP0000503
WANDSWORTH COUNCIL,ASC,SOCIAL SERVICES,Revenue,OTHER AGENCIES,EXTERNAL OUTREACH,770588,130243330,09/10/2015,633.20,HARINGEY ASSOCIATION FOR INDEPENDENT LIV,SP0000222
WANDSWORTH COUNCIL,ASC,SOCIAL SERVICES,Revenue,OTHER AGENCIES,EXTERNAL OUTREACH,770590,130243330,09/10/2015,942.00,HARINGEY ASSOCIATION FOR INDEPENDENT LIV,SP0000222
WANDSWORTH COUNCIL,ASC,SOCIAL SERVICES,Revenue,OTHER AGENCIES,EXTERNAL OUTREACH,770591,130243330,09/10/2015,785.00,HARINGEY ASSOCIATION FOR INDEPENDENT LIV,SP0000222
WANDSWORTH COUNCIL,ASC,SOCIAL SERVICES,Revenue,OTHER AGENCIES,EXTERNAL OUTREACH,771453,130243330,12/10/2015,506.56,HARINGEY ASSOCIATION FOR INDEPENDENT LIV,SP0000222
WANDSWORTH COUNCIL,ASC,SOCIAL SERVICES,Revenue,OTHER AGENCIES,EXTERNAL OUTREACH,771456,130243330,12/10/2015,753.60,HARINGEY ASSOCIATION FOR INDEPENDENT LIV,SP0000222
WANDSWORTH COUNCIL,ASC,SOCIAL SERVICES,Revenue,OTHER AGENCIES,EXTERNAL OUTREACH,771457,130243330,12/10/2015,628.00,HARINGEY ASSOCIATION FOR INDEPENDENT LIV,SP0000222
WANDSWORTH COUNCIL,ASC,SOCIAL SERVICES,Revenue,OTHER AGENCIES,EXTERNAL OUTREACH,771462,130243330,12/10/2015,506.56,HARINGEY ASSOCIATION FOR INDEPENDENT LIV,SP0000222
WANDSWORTH COUNCIL,ASC,SOCIAL SERVICES,Revenue,OTHER AGENCIES,EXTERNAL OUTREACH,771465,130243330,12/10/2015,753.60,HARINGEY ASSOCIATION FOR INDEPENDENT LIV,SP0000222
WANDSWORTH COUNCIL,ASC,SOCIAL SERVICES,Revenue,OTHER AGENCIES,EXTERNAL OUTREACH,771466,130243330,12/10/2015,628.00,HARINGEY ASSOCIATION FOR INDEPENDENT LIV,SP0000222
WANDSWORTH COUNCIL,ASC,SOCIAL SERVICES,Revenue,OTHER AGENCIES,EXTERNAL OUTREACH,771482,130243330,12/10/2015,600.00,LIVE TOO LIMITED,SP0010112
WANDSWORTH COUNCIL,ASC,SOCIAL SERVICES,Revenue,OTHER AGENCIES,EXTERNAL OUTREACH,771484,130243330,12/10/2015,720.00,LIVE TOO LIMITED,SP0010112
WANDSWORTH COUNCIL,ASC,SOCIAL SERVICES,Revenue,OTHER AGENCIES,EXTERNAL OUTREACH,767816,130243330,07/10/2015,561.76,MUSHKIL AASAAN LTD,SP0000978
WANDSWORTH COUNCIL,ASC,SOCIAL SERVICES,Revenue,OTHER AGENCIES,EXTERNAL OUTREACH,785657,130243330,28/10/2015,850.72,MUSHKIL AASAAN LTD,SP0000978
WANDSWORTH COUNCIL,ASC,SOCIAL SERVICES,Revenue,OTHER AGENCIES,EXTERNAL OUTREACH,785658,130243330,28/10/2015,561.76,MUSHKIL AASAAN LTD,SP0000978
WANDSWORTH COUNCIL,ASC,SOCIAL SERVICES,Revenue,OTHER AGENCIES,EXTERNAL OUTREACH,767858,130243330,07/10/2015,433.92,NAS SERVICES LIMITED,SP0000217
WANDSWORTH COUNCIL,ASC,SOCIAL SERVICES,Revenue,OTHER AGENCIES,EXTERNAL OUTREACH,778920,130243330,21/10/2015,433.92,NAS SERVICES LIMITED,SP0000217
WANDSWORTH COUNCIL,ASC,SOCIAL SERVICES,Revenue,OTHER AGENCIES,EXTERNAL OUTREACH,766155,130243330,05/10/2015,935.75,PROTOCOL EDUCATION  LTD,SP0000171
WANDSWORTH COUNCIL,ASC,SOCIAL SERVICES,Revenue,OTHER AGENCIES,EXTERNAL OUTREACH,773135,130243330,13/10/2015,950.00,PROTOCOL EDUCATION  LTD,SP0000171
WANDSWORTH COUNCIL,ASC,SOCIAL SERVICES,Revenue,OTHER AGENCIES,EXTERNAL OUTREACH,780700,130243330,22/10/2015,950.00,PROTOCOL EDUCATION  LTD,SP0000171
WANDSWORTH COUNCIL,ASC,SOCIAL SERVICES,Revenue,OTHER AGENCIES,EXTERNAL OUTREACH,785655,130243330,28/10/2015,950.00,PROTOCOL EDUCATION  LTD,SP0000171
WANDSWORTH COUNCIL,ASC,SOCIAL SERVICES,Revenue,OTHER AGENCIES,EXTERNAL OUTREACH,780703,130243330,22/10/2015,570.40,RAINBOW MEDICAL SERVICES,SP0000037
WANDSWORTH COUNCIL,ASC,SOCIAL SERVICES,Revenue,OTHER AGENCIES,EXTERNAL OUTREACH,780705,130243330,22/10/2015,997.49,RAINBOW MEDICAL SERVICES,SP0000037
WANDSWORTH COUNCIL,ASC,SOCIAL SERVICES,Revenue,OTHER AGENCIES,EXTERNAL OUTREACH,766157,130243330,05/10/2015,"2,640.00",RELIABLE PERSONNEL LTD,SP0005657
WANDSWORTH COUNCIL,ASC,SOCIAL SERVICES,Revenue,OTHER AGENCIES,EXTERNAL OUTREACH,781530,130243330,23/10/2015,"1,200.00",ROYAL ASSOCIATION FOR DEAF PEOPLE,SP0001251
WANDSWORTH COUNCIL,ASC,SOCIAL SERVICES,Revenue,OTHER AGENCIES,EXTERNAL OUTREACH,772617,130243330,13/10/2015,641.94,SOUTHSIDE PARTNERSHIP,SP0000692
WANDSWORTH COUNCIL,ASC,SOCIAL SERVICES,Revenue,OTHER AGENCIES,EXTERNAL OUTREACH,772618,130243330,13/10/2015,641.94,SOUTHSIDE PARTNERSHIP,SP0000692
WANDSWORTH COUNCIL,ASC,SOCIAL SERVICES,Revenue,OTHER AGENCIES,EXTERNAL OUTREACH,766032,130243330,05/10/2015,331.24,THE BRANDON TRUST,SP0005337
WANDSWORTH COUNCIL,ASC,SOCIAL SERVICES,Revenue,OTHER AGENCIES,EXTERNAL OUTREACH,766046,130243330,05/10/2015,757.92,THE BRANDON TRUST,SP0005337
WANDSWORTH COUNCIL,ASC,SOCIAL SERVICES,Revenue,OTHER AGENCIES,EXTERNAL OUTREACH,766079,130243330,05/10/2015,631.60,THE BRANDON TRUST,SP0005337
WANDSWORTH COUNCIL,ASC,SOCIAL SERVICES,Revenue,OTHER AGENCIES,EXTERNAL OUTREACH,766091,130243330,05/10/2015,568.44,THE BRANDON TRUST,SP0005337
WANDSWORTH COUNCIL,ASC,SOCIAL SERVICES,Revenue,OTHER AGENCIES,EXTERNAL OUTREACH,766092,130243330,05/10/2015,505.28,THE BRANDON TRUST,SP0005337
WANDSWORTH COUNCIL,ASC,SOCIAL SERVICES,Revenue,OTHER AGENCIES,EXTERNAL OUTREACH,766093,130243330,05/10/2015,189.48,THE BRANDON TRUST,SP0005337
WANDSWORTH COUNCIL,ASC,SOCIAL SERVICES,Revenue,OTHER AGENCIES,EXTERNAL OUTREACH,766098,130243330,05/10/2015,"1,170.80",THE BRANDON TRUST,SP0005337
WANDSWORTH COUNCIL,ASC,SOCIAL SERVICES,Revenue,OTHER AGENCIES,EXTERNAL OUTREACH,766118,130243330,05/10/2015,189.48,THE BRANDON TRUST,SP0005337
WANDSWORTH COUNCIL,ASC,SOCIAL SERVICES,Revenue,OTHER AGENCIES,EXTERNAL OUTREACH,766129,130243330,05/10/2015,694.76,THE BRANDON TRUST,SP0005337
WANDSWORTH COUNCIL,ASC,SOCIAL SERVICES,Revenue,OTHER AGENCIES,EXTERNAL OUTREACH,766138,130243330,05/10/2015,"1,042.14",THE BRANDON TRUST,SP0005337
WANDSWORTH COUNCIL,ASC,,Revenue,OTHER AGENCIES,APS SHARED LIVES SCHEME,748943,130243820,02/10/2015,"38,875.58",SOUTHSIDE PARTNERSHIP,SP0000692
WANDSWORTH COUNCIL,ASC,SOCIAL SERVICES,Revenue,PRIVATE,EXTERNAL DAYCARE,773040,130245290,13/10/2015,738.72,ACT TOO LTD,SP0000855
WANDSWORTH COUNCIL,ASC,SOCIAL SERVICES,Revenue,PRIVATE,EXTERNAL DAYCARE,773043,130245290,13/10/2015,738.72,ACT TOO LTD,SP0000855
WANDSWORTH COUNCIL,ASC,SOCIAL SERVICES,Revenue,PRIVATE,EXTERNAL DAYCARE,773044,130245290,13/10/2015,738.72,ACT TOO LTD,SP0000855
WANDSWORTH COUNCIL,ASC,SOCIAL SERVICES,Revenue,PRIVATE,EXTERNAL DAYCARE,773049,130245290,13/10/2015,923.40,ACT TOO LTD,SP0000855
WANDSWORTH COUNCIL,ASC,SOCIAL SERVICES,Revenue,PRIVATE,EXTERNAL DAYCARE,773052,130245290,13/10/2015,738.72,ACT TOO LTD,SP0000855
WANDSWORTH COUNCIL,ASC,SOCIAL SERVICES,Revenue,PRIVATE,EXTERNAL DAYCARE,773053,130245290,13/10/2015,738.72,ACT TOO LTD,SP0000855
WANDSWORTH COUNCIL,ASC,SOCIAL SERVICES,Revenue,PRIVATE,EXTERNAL DAYCARE,773054,130245290,13/10/2015,554.04,ACT TOO LTD,SP0000855
WANDSWORTH COUNCIL,ASC,SOCIAL SERVICES,Revenue,PRIVATE,EXTERNAL DAYCARE,773057,130245290,13/10/2015,554.04,ACT TOO LTD,SP0000855
WANDSWORTH COUNCIL,ASC,SOCIAL SERVICES,Revenue,PRIVATE,EXTERNAL DAYCARE,773058,130245290,13/10/2015,554.04,ACT TOO LTD,SP0000855
WANDSWORTH COUNCIL,ASC,SOCIAL SERVICES,Revenue,PRIVATE,EXTERNAL DAYCARE,773059,130245290,13/10/2015,554.04,ACT TOO LTD,SP0000855
WANDSWORTH COUNCIL,ASC,SOCIAL SERVICES,Revenue,PRIVATE,EXTERNAL DAYCARE,773061,130245290,13/10/2015,"1,108.08",ACT TOO LTD,SP0000855
WANDSWORTH COUNCIL,ASC,SOCIAL SERVICES,Revenue,PRIVATE,EXTERNAL DAYCARE,773063,130245290,13/10/2015,738.72,ACT TOO LTD,SP0000855
WANDSWORTH COUNCIL,ASC,SOCIAL SERVICES,Revenue,PRIVATE,EXTERNAL DAYCARE,773064,130245290,13/10/2015,738.72,ACT TOO LTD,SP0000855
WANDSWORTH COUNCIL,ASC,SOCIAL SERVICES,Revenue,PRIVATE,EXTERNAL DAYCARE,773065,130245290,13/10/2015,554.04,ACT TOO LTD,SP0000855
WANDSWORTH COUNCIL,ASC,SOCIAL SERVICES,Revenue,PRIVATE,EXTERNAL DAYCARE,773069,130245290,13/10/2015,554.04,ACT TOO LTD,SP0000855
WANDSWORTH COUNCIL,ASC,SOCIAL SERVICES,Revenue,PRIVATE,EXTERNAL DAYCARE,773072,130245290,13/10/2015,554.04,ACT TOO LTD,SP0000855
WANDSWORTH COUNCIL,ASC,SOCIAL SERVICES,Revenue,PRIVATE,EXTERNAL DAYCARE,773073,130245290,13/10/2015,554.04,ACT TOO LTD,SP0000855
WANDSWORTH COUNCIL,ASC,SOCIAL SERVICES,Revenue,PRIVATE,EXTERNAL DAYCARE,773075,130245290,13/10/2015,554.04,ACT TOO LTD,SP0000855
WANDSWORTH COUNCIL,ASC,SOCIAL SERVICES,Revenue,PRIVATE,EXTERNAL DAYCARE,773078,130245290,13/10/2015,923.40,ACT TOO LTD,SP0000855
WANDSWORTH COUNCIL,ASC,SOCIAL SERVICES,Revenue,PRIVATE,EXTERNAL DAYCARE,773079,130245290,13/10/2015,554.04,ACT TOO LTD,SP0000855
WANDSWORTH COUNCIL,ASC,SOCIAL SERVICES,Revenue,PRIVATE,EXTERNAL DAYCARE,773086,130245290,13/10/2015,923.40,ACT TOO LTD,SP0000855
WANDSWORTH COUNCIL,ASC,SOCIAL SERVICES,Revenue,PRIVATE,EXTERNAL DAYCARE,773088,130245290,13/10/2015,554.04,ACT TOO LTD,SP0000855
WANDSWORTH COUNCIL,ASC,SOCIAL SERVICES,Revenue,PRIVATE,EXTERNAL DAYCARE,773091,130245290,13/10/2015,923.40,ACT TOO LTD,SP0000855
WANDSWORTH COUNCIL,ASC,SOCIAL SERVICES,Revenue,PRIVATE,EXTERNAL DAYCARE,773092,130245290,13/10/2015,554.04,ACT TOO LTD,SP0000855
WANDSWORTH COUNCIL,ASC,SOCIAL SERVICES,Revenue,PRIVATE,EXTERNAL DAYCARE,773093,130245290,13/10/2015,"1,108.08",ACT TOO LTD,SP0000855
WANDSWORTH COUNCIL,ASC,SOCIAL SERVICES,Revenue,PRIVATE,EXTERNAL DAYCARE,773094,130245290,13/10/2015,738.72,ACT TOO LTD,SP0000855
WANDSWORTH COUNCIL,ASC,SOCIAL SERVICES,Revenue,PRIVATE,EXTERNAL DAYCARE,773098,130245290,13/10/2015,554.04,ACT TOO LTD,SP0000855
WANDSWORTH COUNCIL,ASC,SOCIAL SERVICES,Revenue,PRIVATE,EXTERNAL DAYCARE,773099,130245290,13/10/2015,554.04,ACT TOO LTD,SP0000855
WANDSWORTH COUNCIL,ASC,SOCIAL SERVICES,Revenue,PRIVATE,EXTERNAL DAYCARE,773103,130245290,13/10/2015,554.04,ACT TOO LTD,SP0000855
WANDSWORTH COUNCIL,ASC,SOCIAL SERVICES,Revenue,PRIVATE,EXTERNAL DAYCARE,773109,130245290,13/10/2015,738.72,ACT TOO LTD,SP0000855
WANDSWORTH COUNCIL,ASC,SOCIAL SERVICES,Revenue,PRIVATE,EXTERNAL DAYCARE,773112,130245290,13/10/2015,554.04,ACT TOO LTD,SP0000855
WANDSWORTH COUNCIL,ASC,SOCIAL SERVICES,Revenue,PRIVATE,EXTERNAL DAYCARE,780698,130245290,22/10/2015,"1,149.33",ANTHONY TOBY HOMES TRUST,SP0000755
WANDSWORTH COUNCIL,ASC,SOCIAL SERVICES,Revenue,PRIVATE,EXTERNAL DAYCARE,772570,130245290,13/10/2015,957.66,ASHFIELD CARE HOMES LTD,SP0000590
WANDSWORTH COUNCIL,ASC,SOCIAL SERVICES,Revenue,PRIVATE,EXTERNAL DAYCARE,773039,130245290,13/10/2015,942.23,CHATSWORTH CARE,SP0000831
WANDSWORTH COUNCIL,ASC,SOCIAL SERVICES,Revenue,PRIVATE,EXTERNAL DAYCARE,778897,130245290,21/10/2015,911.84,CHATSWORTH CARE,SP0000831
WANDSWORTH COUNCIL,ASC,SOCIAL SERVICES,Revenue,PRIVATE,EXTERNAL DAYCARE,772571,130245290,13/10/2015,"2,094.62",CMG HOMES LTD,SP0000075
WANDSWORTH COUNCIL,ASC,SOCIAL SERVICES,Revenue,PRIVATE,EXTERNAL DAYCARE,781526,130245290,23/10/2015,"1,059.52",COUNTRY CARE,SP0000090
WANDSWORTH COUNCIL,ASC,SOCIAL SERVICES,Revenue,PRIVATE,EXTERNAL DAYCARE,782719,130245290,26/10/2015,806.04,CRAEGMOOR FACILITIES CO LTD,SP0000306
WANDSWORTH COUNCIL,ASC,SOCIAL SERVICES,Revenue,PRIVATE,EXTERNAL DAYCARE,776323,130245290,15/10/2015,973.60,DOLPHIN HOMES LTD,SP0000331
WANDSWORTH COUNCIL,ASC,SOCIAL SERVICES,Revenue,PRIVATE,EXTERNAL DAYCARE,785585,130245290,28/10/2015,576.00,GENERATE OPPORTUNITIES LTD,SP0000503
WANDSWORTH COUNCIL,ASC,SOCIAL SERVICES,Revenue,PRIVATE,EXTERNAL DAYCARE,785586,130245290,28/10/2015,640.00,GENERATE OPPORTUNITIES LTD,SP0000503
WANDSWORTH COUNCIL,ASC,SOCIAL SERVICES,Revenue,PRIVATE,EXTERNAL DAYCARE,785593,130245290,28/10/2015,560.00,GENERATE OPPORTUNITIES LTD,SP0000503
WANDSWORTH COUNCIL,ASC,SOCIAL SERVICES,Revenue,PRIVATE,EXTERNAL DAYCARE,785594,130245290,28/10/2015,439.64,GENERATE OPPORTUNITIES LTD,SP0000503
WANDSWORTH COUNCIL,ASC,SOCIAL SERVICES,Revenue,PRIVATE,EXTERNAL DAYCARE,785597,130245290,28/10/2015,800.00,GENERATE OPPORTUNITIES LTD,SP0000503
WANDSWORTH COUNCIL,ASC,SOCIAL SERVICES,Revenue,PRIVATE,EXTERNAL DAYCARE,785607,130245290,28/10/2015,280.00,GENERATE OPPORTUNITIES LTD,SP0000503
WANDSWORTH COUNCIL,ASC,SOCIAL SERVICES,Revenue,PRIVATE,EXTERNAL DAYCARE,785617,130245290,28/10/2015,576.00,GENERATE OPPORTUNITIES LTD,SP0000503
WANDSWORTH COUNCIL,ASC,SOCIAL SERVICES,Revenue,PRIVATE,EXTERNAL DAYCARE,785626,130245290,28/10/2015,560.00,GENERATE OPPORTUNITIES LTD,SP0000503
WANDSWORTH COUNCIL,ASC,SOCIAL SERVICES,Revenue,PRIVATE,EXTERNAL DAYCARE,785627,130245290,28/10/2015,576.00,GENERATE OPPORTUNITIES LTD,SP0000503
WANDSWORTH COUNCIL,ASC,SOCIAL SERVICES,Revenue,PRIVATE,EXTERNAL DAYCARE,785631,130245290,28/10/2015,"1,100.00",GENERATE OPPORTUNITIES LTD,SP0000503
WANDSWORTH COUNCIL,ASC,SOCIAL SERVICES,Revenue,PRIVATE,EXTERNAL DAYCARE,785646,130245290,28/10/2015,-10.52,GENERATE OPPORTUNITIES LTD,SP0000503
WANDSWORTH COUNCIL,ASC,SOCIAL SERVICES,Revenue,PRIVATE,EXTERNAL DAYCARE,772595,130245290,13/10/2015,756.48,HARROW MENCAP,SP0001347
WANDSWORTH COUNCIL,ASC,SOCIAL SERVICES,Revenue,PRIVATE,EXTERNAL DAYCARE,766024,130245290,05/10/2015,602.56,HIGH HURLANDS HOMES,SP0000668
WANDSWORTH COUNCIL,ASC,SOCIAL SERVICES,Revenue,PRIVATE,EXTERNAL DAYCARE,787350,130245290,29/10/2015,602.56,HIGH HURLANDS HOMES,SP0000668
WANDSWORTH COUNCIL,ASC,SOCIAL SERVICES,Revenue,PRIVATE,EXTERNAL DAYCARE,773022,130245290,13/10/2015,"1,551.24",LONDON CARE PARTNERSHIP LTD,SP0001138
WANDSWORTH COUNCIL,ASC,SOCIAL SERVICES,Revenue,PRIVATE,EXTERNAL DAYCARE,776032,130245290,15/10/2015,453.87,LUCKETTS FARM LIMNITED T/A THE JOHN GRAH,SP0009847
WANDSWORTH COUNCIL,ASC,SOCIAL SERVICES,Revenue,PRIVATE,EXTERNAL DAYCARE,787353,130245290,29/10/2015,515.52,MENCAP OPEN DOOR,SP0000832
WANDSWORTH COUNCIL,ASC,SOCIAL SERVICES,Revenue,PRIVATE,EXTERNAL DAYCARE,787360,130245290,29/10/2015,504.80,MENCAP OPEN DOOR,SP0000832
WANDSWORTH COUNCIL,ASC,SOCIAL SERVICES,Revenue,PRIVATE,EXTERNAL DAYCARE,764494,130245290,02/10/2015,"2,314.80",NAS SERVICES LIMITED,SP0000217
WANDSWORTH COUNCIL,ASC,SOCIAL SERVICES,Revenue,PRIVATE,EXTERNAL DAYCARE,764677,130245290,02/10/2015,"3,781.40",NAS SERVICES LIMITED,SP0000217
WANDSWORTH COUNCIL,ASC,SOCIAL SERVICES,Revenue,PRIVATE,EXTERNAL DAYCARE,764678,130245290,02/10/2015,"1,583.68",NAS SERVICES LIMITED,SP0000217
WANDSWORTH COUNCIL,ASC,SOCIAL SERVICES,Revenue,PRIVATE,EXTERNAL DAYCARE,764679,130245290,02/10/2015,"3,719.00",NAS SERVICES LIMITED,SP0000217
WANDSWORTH COUNCIL,ASC,SOCIAL SERVICES,Revenue,PRIVATE,EXTERNAL DAYCARE,764681,130245290,02/10/2015,"2,032.04",NAS SERVICES LIMITED,SP0000217
WANDSWORTH COUNCIL,ASC,SOCIAL SERVICES,Revenue,PRIVATE,EXTERNAL DAYCARE,771442,130245290,12/10/2015,"3,781.40",NAS SERVICES LIMITED,SP0000217
WANDSWORTH COUNCIL,ASC,SOCIAL SERVICES,Revenue,PRIVATE,EXTERNAL DAYCARE,787337,130245290,29/10/2015,"3,781.40",NAS SERVICES LIMITED,SP0000217
WANDSWORTH COUNCIL,ASC,SOCIAL SERVICES,Revenue,PRIVATE,EXTERNAL DAYCARE,781525,130245290,23/10/2015,878.48,ORCHARD VALE TRUST,SP0000214
WANDSWORTH COUNCIL,ASC,SOCIAL SERVICES,Revenue,PRIVATE,EXTERNAL DAYCARE,776319,130245290,15/10/2015,750.56,ORIONE CARE,SP0000961
WANDSWORTH COUNCIL,ASC,SOCIAL SERVICES,Revenue,PRIVATE,EXTERNAL DAYCARE,776321,130245290,15/10/2015,609.83,ORIONE CARE,SP0000961
WANDSWORTH COUNCIL,ASC,SOCIAL SERVICES,Revenue,PRIVATE,EXTERNAL DAYCARE,778919,130245290,21/10/2015,546.00,PARCHMENT TRUST LTD,SP0000255
WANDSWORTH COUNCIL,ASC,SOCIAL SERVICES,Revenue,PRIVATE,EXTERNAL DAYCARE,776322,130245290,15/10/2015,540.00,PROSPECTS,SP0000800
WANDSWORTH COUNCIL,ASC,SOCIAL SERVICES,Revenue,PRIVATE,EXTERNAL DAYCARE,776315,130245290,15/10/2015,"1,213.76",RESIDENTIAL CARE SERVICES T/A FRANKLYN L,SP0000147
WANDSWORTH COUNCIL,ASC,SOCIAL SERVICES,Revenue,PRIVATE,EXTERNAL DAYCARE,785573,130245290,28/10/2015,"1,213.76",RESIDENTIAL CARE SERVICES T/A FRANKLYN L,SP0000147
WANDSWORTH COUNCIL,ASC,SOCIAL SERVICES,Revenue,PRIVATE,EXTERNAL DAYCARE,767621,130245290,07/10/2015,"1,138.40",RIDGEWOOD CARE SERVICES LTD,SP0000969
WANDSWORTH COUNCIL,ASC,SOCIAL SERVICES,Revenue,PRIVATE,EXTERNAL DAYCARE,785647,130245290,28/10/2015,814.03,SCOPE,SP0000852
WANDSWORTH COUNCIL,ASC,SOCIAL SERVICES,Revenue,PRIVATE,EXTERNAL DAYCARE,785659,130245290,28/10/2015,833.52,SCOPE,SP0000852
WANDSWORTH COUNCIL,ASC,SOCIAL SERVICES,Revenue,PRIVATE,EXTERNAL DAYCARE,770525,130245290,09/10/2015,713.16,SHARE COMMUNITY,SP0000329
WANDSWORTH COUNCIL,ASC,SOCIAL SERVICES,Revenue,PRIVATE,EXTERNAL DAYCARE,770527,130245290,09/10/2015,950.84,SHARE COMMUNITY,SP0000329
WANDSWORTH COUNCIL,ASC,SOCIAL SERVICES,Revenue,PRIVATE,EXTERNAL DAYCARE,770528,130245290,09/10/2015,713.16,SHARE COMMUNITY,SP0000329
WANDSWORTH COUNCIL,ASC,SOCIAL SERVICES,Revenue,PRIVATE,EXTERNAL DAYCARE,770531,130245290,09/10/2015,713.16,SHARE COMMUNITY,SP0000329
WANDSWORTH COUNCIL,ASC,SOCIAL SERVICES,Revenue,PRIVATE,EXTERNAL DAYCARE,770533,130245290,09/10/2015,950.84,SHARE COMMUNITY,SP0000329
WANDSWORTH COUNCIL,ASC,SOCIAL SERVICES,Revenue,PRIVATE,EXTERNAL DAYCARE,770534,130245290,09/10/2015,950.84,SHARE COMMUNITY,SP0000329
WANDSWORTH COUNCIL,ASC,SOCIAL SERVICES,Revenue,PRIVATE,EXTERNAL DAYCARE,770535,130245290,09/10/2015,"1,188.56",SHARE COMMUNITY,SP0000329
WANDSWORTH COUNCIL,ASC,SOCIAL SERVICES,Revenue,PRIVATE,EXTERNAL DAYCARE,770536,130245290,09/10/2015,713.16,SHARE COMMUNITY,SP0000329
WANDSWORTH COUNCIL,ASC,SOCIAL SERVICES,Revenue,PRIVATE,EXTERNAL DAYCARE,770537,130245290,09/10/2015,594.28,SHARE COMMUNITY,SP0000329
WANDSWORTH COUNCIL,ASC,SOCIAL SERVICES,Revenue,PRIVATE,EXTERNAL DAYCARE,770538,130245290,09/10/2015,713.16,SHARE COMMUNITY,SP0000329
WANDSWORTH COUNCIL,ASC,SOCIAL SERVICES,Revenue,PRIVATE,EXTERNAL DAYCARE,770539,130245290,09/10/2015,950.84,SHARE COMMUNITY,SP0000329
WANDSWORTH COUNCIL,ASC,SOCIAL SERVICES,Revenue,PRIVATE,EXTERNAL DAYCARE,770542,130245290,09/10/2015,713.16,SHARE COMMUNITY,SP0000329
WANDSWORTH COUNCIL,ASC,SOCIAL SERVICES,Revenue,PRIVATE,EXTERNAL DAYCARE,770544,130245290,09/10/2015,594.28,SHARE COMMUNITY,SP0000329
WANDSWORTH COUNCIL,ASC,SOCIAL SERVICES,Revenue,PRIVATE,EXTERNAL DAYCARE,770545,130245290,09/10/2015,713.16,SHARE COMMUNITY,SP0000329
WANDSWORTH COUNCIL,ASC,SOCIAL SERVICES,Revenue,PRIVATE,EXTERNAL DAYCARE,770546,130245290,09/10/2015,713.16,SHARE COMMUNITY,SP0000329
WANDSWORTH COUNCIL,ASC,SOCIAL SERVICES,Revenue,PRIVATE,EXTERNAL DAYCARE,770550,130245290,09/10/2015,713.16,SHARE COMMUNITY,SP0000329
WANDSWORTH COUNCIL,ASC,SOCIAL SERVICES,Revenue,PRIVATE,EXTERNAL DAYCARE,770555,130245290,09/10/2015,713.16,SHARE COMMUNITY,SP0000329
WANDSWORTH COUNCIL,ASC,SOCIAL SERVICES,Revenue,PRIVATE,EXTERNAL DAYCARE,770556,130245290,09/10/2015,713.16,SHARE COMMUNITY,SP0000329
WANDSWORTH COUNCIL,ASC,SOCIAL SERVICES,Revenue,PRIVATE,EXTERNAL DAYCARE,770558,130245290,09/10/2015,713.16,SHARE COMMUNITY,SP0000329
WANDSWORTH COUNCIL,ASC,SOCIAL SERVICES,Revenue,PRIVATE,EXTERNAL DAYCARE,772575,130245290,13/10/2015,713.16,SHARE COMMUNITY,SP0000329
WANDSWORTH COUNCIL,ASC,SOCIAL SERVICES,Revenue,PRIVATE,EXTERNAL DAYCARE,772576,130245290,13/10/2015,950.84,SHARE COMMUNITY,SP0000329
WANDSWORTH COUNCIL,ASC,SOCIAL SERVICES,Revenue,PRIVATE,EXTERNAL DAYCARE,772577,130245290,13/10/2015,713.16,SHARE COMMUNITY,SP0000329
WANDSWORTH COUNCIL,ASC,SOCIAL SERVICES,Revenue,PRIVATE,EXTERNAL DAYCARE,772579,130245290,13/10/2015,950.84,SHARE COMMUNITY,SP0000329
WANDSWORTH COUNCIL,ASC,SOCIAL SERVICES,Revenue,PRIVATE,EXTERNAL DAYCARE,772581,130245290,13/10/2015,713.16,SHARE COMMUNITY,SP0000329
WANDSWORTH COUNCIL,ASC,SOCIAL SERVICES,Revenue,PRIVATE,EXTERNAL DAYCARE,772585,130245290,13/10/2015,713.16,SHARE COMMUNITY,SP0000329
WANDSWORTH COUNCIL,ASC,SOCIAL SERVICES,Revenue,PRIVATE,EXTERNAL DAYCARE,772586,130245290,13/10/2015,713.16,SHARE COMMUNITY,SP0000329
WANDSWORTH COUNCIL,ASC,SOCIAL SERVICES,Revenue,PRIVATE,EXTERNAL DAYCARE,772587,130245290,13/10/2015,713.16,SHARE COMMUNITY,SP0000329
WANDSWORTH COUNCIL,ASC,SOCIAL SERVICES,Revenue,PRIVATE,EXTERNAL DAYCARE,772592,130245290,13/10/2015,713.16,SHARE COMMUNITY,SP0000329
WANDSWORTH COUNCIL,ASC,SOCIAL SERVICES,Revenue,PRIVATE,EXTERNAL DAYCARE,764495,130245290,02/10/2015,"1,057.00",ST DAVIDS CARE IN THE COMMUNITY,SP0000379
WANDSWORTH COUNCIL,ASC,SOCIAL SERVICES,Revenue,PRIVATE,EXTERNAL DAYCARE,764496,130245290,02/10/2015,"1,057.00",ST DAVIDS CARE IN THE COMMUNITY,SP0000379
WANDSWORTH COUNCIL,ASC,SOCIAL SERVICES,Revenue,PRIVATE,EXTERNAL DAYCARE,764497,130245290,02/10/2015,"1,057.00",ST DAVIDS CARE IN THE COMMUNITY,SP0000379
WANDSWORTH COUNCIL,ASC,SOCIAL SERVICES,Revenue,PRIVATE,EXTERNAL DAYCARE,781524,130245290,23/10/2015,927.03,SURREY & BORDERS PARTNERSHIP NHS TRUST,SP0000501
WANDSWORTH COUNCIL,ASC,SOCIAL SERVICES,Revenue,PRIVATE,EXTERNAL DAYCARE,772518,130245290,13/10/2015,"1,273.00",SUSSEX HEALTH CARE,SP0001115
WANDSWORTH COUNCIL,ASC,SOCIAL SERVICES,Revenue,PRIVATE,EXTERNAL DAYCARE,767805,130245290,07/10/2015,520.00,THE CAMDEN SOCIETY,SP0001674
WANDSWORTH COUNCIL,ASC,SOCIAL SERVICES,Revenue,PRIVATE,EXTERNAL DAYCARE,767806,130245290,07/10/2015,520.00,THE CAMDEN SOCIETY,SP0001674
WANDSWORTH COUNCIL,ASC,SOCIAL SERVICES,Revenue,PRIVATE,EXTERNAL DAYCARE,767807,130245290,07/10/2015,520.00,THE CAMDEN SOCIETY,SP0001674
WANDSWORTH COUNCIL,ASC,SOCIAL SERVICES,Revenue,PRIVATE,EXTERNAL DAYCARE,767808,130245290,07/10/2015,520.00,THE CAMDEN SOCIETY,SP0001674
WANDSWORTH COUNCIL,ASC,SOCIAL SERVICES,Revenue,PRIVATE,EXTERNAL DAYCARE,767809,130245290,07/10/2015,520.00,THE CAMDEN SOCIETY,SP0001674
WANDSWORTH COUNCIL,ASC,SOCIAL SERVICES,Revenue,PRIVATE,EXTERNAL DAYCARE,785583,130245290,28/10/2015,990.00,THE HOME FARM TRUST LTD,SP0001048
WANDSWORTH COUNCIL,ASC,SOCIAL SERVICES,Revenue,PRIVATE,EXTERNAL DAYCARE,778899,130245290,21/10/2015,980.00,THE MANOR,SP0000340
WANDSWORTH COUNCIL,ASC,SOCIAL SERVICES,Revenue,PRIVATE,EXTERNAL DAYCARE,778900,130245290,21/10/2015,980.00,THE MANOR,SP0000340
WANDSWORTH COUNCIL,ASC,SOCIAL SERVICES,Revenue,PRIVATE,EXTERNAL DAYCARE,781523,130245290,23/10/2015,"1,109.85",THE MANOR HOUSE,SP0000728
WANDSWORTH COUNCIL,ASC,SOCIAL SERVICES,Revenue,PRIVATE,EXTERNAL DAYCARE,770570,130245290,09/10/2015,"1,371.44",THE REGARD PARTNERSHIP,SP0000588
WANDSWORTH COUNCIL,ASC,SOCIAL SERVICES,Revenue,PRIVATE,EXTERNAL DAYCARE,777020,130245290,16/10/2015,660.00,THRIVE,SP0000601
WANDSWORTH COUNCIL,ASC,SOCIAL SERVICES,Revenue,PRIVATE,EXTERNAL DAYCARE,778867,130245290,21/10/2015,527.36,UNITED RESPONSE,SP0000797
WANDSWORTH COUNCIL,ASC,SOCIAL SERVICES,Revenue,PRIVATE,EXTERNAL DAYCARE,787325,130245290,29/10/2015,527.36,UNITED RESPONSE,SP0000797
WANDSWORTH COUNCIL,ASC,SOCIAL SERVICES,Revenue,PRIVATE,EXTERNAL DAYCARE,770560,130245290,09/10/2015,722.00,WANDSWORTH BENGALI WELFARE ASSOCIATION,SP0000479
WANDSWORTH COUNCIL,ASC,SOCIAL SERVICES,Revenue,PRIVATE,EXTERNAL DAYCARE,787344,130245290,29/10/2015,"1,416.24",WINSLOW COURT,SP0000886
WANDSWORTH COUNCIL,ASC,SOCIAL SERVICES,Revenue,PRIVATE,EXTERNAL DAYCARE,787345,130245290,29/10/2015,"1,416.24",WINSLOW COURT,SP0000886
WANDSWORTH COUNCIL,ASC,SOCIAL SERVICES,Revenue,PRIVATE,EXTERNAL DAYCARE,787346,130245290,29/10/2015,"1,416.24",WINSLOW COURT,SP0000886
WANDSWORTH COUNCIL,ASC,SOCIAL SERVICES,Revenue,PRIVATE,EXTERNAL DAYCARE,787347,130245290,29/10/2015,"1,416.24",WINSLOW COURT,SP0000886
WANDSWORTH COUNCIL,ASC,SOCIAL SERVICES,Revenue,PRIVATE,EXTERNAL DAYCARE,787348,130245290,29/10/2015,"1,416.24",WINSLOW COURT,SP0000886
WANDSWORTH COUNCIL,ASC,SOCIAL SERVICES,Revenue,PRIVATE,EXTERNAL DAYCARE,787349,130245290,29/10/2015,"1,416.24",WINSLOW COURT,SP0000886
WANDSWORTH COUNCIL,ASC,SOCIAL SERVICES,Revenue,PRIVATE,EXTERNAL DAYCARE,773120,130245290,13/10/2015,"3,900.00",WORCESTERSHIRE COUNTY COUNCIL,SP0000700
WANDSWORTH COUNCIL,ASC,SOCIAL SERVICES,Revenue,PRIVATE,EXTERNAL DAYCARE,764686,130245290,02/10/2015,563.04,WORKSHOP 305,SP0001403
WANDSWORTH COUNCIL,ASC,SOCIAL SERVICES,Revenue,PRIVATE,EXTERNAL DAYCARE,764687,130245290,02/10/2015,"1,126.08",WORKSHOP 305,SP0001403
WANDSWORTH COUNCIL,ASC,SOCIAL SERVICES,Revenue,PRIVATE,EXTERNAL DAYCARE,764694,130245290,02/10/2015,962.88,WORKSHOP 305,SP0001403
WANDSWORTH COUNCIL,ASC,SOCIAL SERVICES,Revenue,PRIVATE,EXTERNAL DAYCARE,764697,130245290,02/10/2015,722.16,WORKSHOP 305,SP0001403
WANDSWORTH COUNCIL,ASC,SOCIAL SERVICES,Revenue,PRIVATE,EXTERNAL DAYCARE,764703,130245290,02/10/2015,844.56,WORKSHOP 305,SP0001403
WANDSWORTH COUNCIL,ASC,SOCIAL SERVICES,Revenue,PRIVATE,EXTERNAL DAYCARE,764704,130245290,02/10/2015,722.16,WORKSHOP 305,SP0001403
WANDSWORTH COUNCIL,ASC,SOCIAL SERVICES,Revenue,PRIVATE,EXTERNAL DAYCARE,764706,130245290,02/10/2015,722.16,WORKSHOP 305,SP0001403
WANDSWORTH COUNCIL,ASC,SOCIAL SERVICES,Revenue,PRIVATE,EXTERNAL DAYCARE,764709,130245290,02/10/2015,563.04,WORKSHOP 305,SP0001403
WANDSWORTH COUNCIL,ASC,SOCIAL SERVICES,Revenue,PRIVATE,EXTERNAL DAYCARE,764710,130245290,02/10/2015,722.16,WORKSHOP 305,SP0001403
WANDSWORTH COUNCIL,ASC,SOCIAL SERVICES,Revenue,PRIVATE,EXTERNAL DAYCARE,764711,130245290,02/10/2015,722.16,WORKSHOP 305,SP0001403
WANDSWORTH COUNCIL,ASC,SOCIAL SERVICES,Revenue,PRIVATE,EXTERNAL DAYCARE,781473,130245290,23/10/2015,563.04,WORKSHOP 305,SP0001403
WANDSWORTH COUNCIL,ASC,SOCIAL SERVICES,Revenue,PRIVATE,EXTERNAL DAYCARE,781474,130245290,23/10/2015,"1,126.08",WORKSHOP 305,SP0001403
WANDSWORTH COUNCIL,ASC,SOCIAL SERVICES,Revenue,PRIVATE,EXTERNAL DAYCARE,781481,130245290,23/10/2015,962.88,WORKSHOP 305,SP0001403
WANDSWORTH COUNCIL,ASC,SOCIAL SERVICES,Revenue,PRIVATE,EXTERNAL DAYCARE,781485,130245290,23/10/2015,722.16,WORKSHOP 305,SP0001403
WANDSWORTH COUNCIL,ASC,SOCIAL SERVICES,Revenue,PRIVATE,EXTERNAL DAYCARE,781491,130245290,23/10/2015,844.56,WORKSHOP 305,SP0001403
WANDSWORTH COUNCIL,ASC,SOCIAL SERVICES,Revenue,PRIVATE,EXTERNAL DAYCARE,781492,130245290,23/10/2015,722.16,WORKSHOP 305,SP0001403
WANDSWORTH COUNCIL,ASC,SOCIAL SERVICES,Revenue,PRIVATE,EXTERNAL DAYCARE,781494,130245290,23/10/2015,722.16,WORKSHOP 305,SP0001403
WANDSWORTH COUNCIL,ASC,SOCIAL SERVICES,Revenue,PRIVATE,EXTERNAL DAYCARE,781497,130245290,23/10/2015,563.04,WORKSHOP 305,SP0001403
WANDSWORTH COUNCIL,ASC,SOCIAL SERVICES,Revenue,PRIVATE,EXTERNAL DAYCARE,781498,130245290,23/10/2015,722.16,WORKSHOP 305,SP0001403
WANDSWORTH COUNCIL,ASC,SOCIAL SERVICES,Revenue,PRIVATE,EXTERNAL DAYCARE,781499,130245290,23/10/2015,722.16,WORKSHOP 305,SP0001403
WANDSWORTH COUNCIL,ASC,SOCIAL SERVICES,Revenue,PRIVATE,EXTERNAL DAYCARE,781510,130245290,23/10/2015,962.88,WORKSHOP 305,SP0001403
WANDSWORTH COUNCIL,ASC,SOCIAL SERVICES,Revenue,PRIVATE,EXTERNAL HOMECARE,772546,130245300,13/10/2015,"3,232.00",CHRISTIES CARE LTD,SP0005440
WANDSWORTH COUNCIL,ASC,SOCIAL SERVICES,Revenue,PRIVATE,EXTERNAL HOMECARE,778290,130245300,20/10/2015,"1,336.32",LONDON HOMECARE LTD,SP0009029
WANDSWORTH COUNCIL,ASC,SOCIAL SERVICES,Revenue,PRIVATE,EXTERNAL HOMECARE,778292,130245300,20/10/2015,"1,753.08",LONDON HOMECARE LTD,SP0009029
WANDSWORTH COUNCIL,ASC,SOCIAL SERVICES,Revenue,PRIVATE,EXTERNAL HOMECARE,778360,130245300,20/10/2015,620.79,LONDON HOMECARE LTD,SP0009029
WANDSWORTH COUNCIL,ASC,SOCIAL SERVICES,Revenue,PRIVATE,EXTERNAL HOMECARE,778380,130245300,20/10/2015,666.96,LONDON HOMECARE LTD,SP0009029
WANDSWORTH COUNCIL,ASC,SOCIAL SERVICES,Revenue,PRIVATE,EXTERNAL HOMECARE,778385,130245300,20/10/2015,770.62,LONDON HOMECARE LTD,SP0009029
WANDSWORTH COUNCIL,ASC,SOCIAL SERVICES,Revenue,PRIVATE,EXTERNAL HOMECARE,780535,130245300,22/10/2015,"1,200.90",RAINBOW MEDICAL SERVICES,SP0000037
WANDSWORTH COUNCIL,ASC,SOCIAL SERVICES,Revenue,PRIVATE,EXTERNAL HOMECARE,765996,130245300,05/10/2015,668.52,SOMA HEALTHCARE LTD,SP0001116
WANDSWORTH COUNCIL,ASC,SOCIAL SERVICES,Revenue,PRIVATE,EXTERNAL NURSING CARE,770809,130245310,09/10/2015,"3,058.12",BUPA CARE SERVICES BACS RECEIPTS,SP0000644
WANDSWORTH COUNCIL,ASC,SOCIAL SERVICES,Revenue,PRIVATE,EXTERNAL NURSING CARE,765925,130245310,05/10/2015,"5,382.08",HIGH HURLANDS HOMES,SP0000668
WANDSWORTH COUNCIL,ASC,SOCIAL SERVICES,Revenue,PRIVATE,EXTERNAL NURSING CARE,786170,130245310,28/10/2015,"5,382.08",HIGH HURLANDS HOMES,SP0000668
WANDSWORTH COUNCIL,ASC,SOCIAL SERVICES,Revenue,PRIVATE,EXTERNAL NURSING CARE,773004,130245310,13/10/2015,"3,122.63",ROSEDENE NURSING HOME,SP0000316
WANDSWORTH COUNCIL,ASC,SOCIAL SERVICES,Revenue,PRIVATE,EXTERNAL NURSING CARE,773007,130245310,13/10/2015,"3,120.00",ROSEDENE NURSING HOME,SP0000316
WANDSWORTH COUNCIL,ASC,SOCIAL SERVICES,Revenue,PRIVATE,EXTERNAL NURSING CARE,776844,130245310,16/10/2015,"4,180.97",ROSEDENE NURSING HOME,SP0000316
WANDSWORTH COUNCIL,ASC,SOCIAL SERVICES,Revenue,PRIVATE,EXTERNAL NURSING CARE,772530,130245310,13/10/2015,"8,454.89",SUSSEX HEALTH CARE,SP0001115
WANDSWORTH COUNCIL,ASC,SOCIAL SERVICES,Revenue,PRIVATE,EXTERNAL NURSING CARE,772497,130245310,13/10/2015,"8,974.81",THE COMMUNITY CARE COMPANY UK LTD,SP0000576
WANDSWORTH COUNCIL,ASC,SOCIAL SERVICES,Revenue,PRIVATE,EXTERNAL NURSING CARE,770655,130245310,09/10/2015,"2,815.48",TRINITY COURT NURSING HOME,SP0001001
WANDSWORTH COUNCIL,ASC,SOCIAL SERVICES,Revenue,PRIVATE,EXTERNAL NURSING CARE,764649,130245310,02/10/2015,"5,325.08",VOYAGE CARE LTD,SP0000366
WANDSWORTH COUNCIL,ASC,SOCIAL SERVICES,Revenue,PRIVATE,EXTERNAL NURSING CARE,764650,130245310,02/10/2015,"5,325.08",VOYAGE CARE LTD,SP0000366
WANDSWORTH COUNCIL,ASC,SOCIAL SERVICES,Revenue,PRIVATE,EXTERNAL NURSING CARE,785460,130245310,28/10/2015,"4,181.88",VOYAGE CARE LTD,SP0000366
WANDSWORTH COUNCIL,ASC,SOCIAL SERVICES,Revenue,PRIVATE,EXTERNAL NURSING CARE,770483,130245310,09/10/2015,"3,065.88",YEW TREE NURSING HOME,SP0000454
WANDSWORTH COUNCIL,ASC,SOCIAL SERVICES,Revenue,PRIVATE,EXTERNAL NURSING CARE,770684,130245310,09/10/2015,"2,675.12",YORK COURT CARE HOME,SP0006091
WANDSWORTH COUNCIL,ASC,SOCIAL SERVICES,Revenue,PRIVATE,EXTERNAL RESIDENTIAL CARE,776858,130245330,16/10/2015,"4,472.68",229 MITCHAM LANE LTD,SP0000884
WANDSWORTH COUNCIL,ASC,SOCIAL SERVICES,Revenue,PRIVATE,EXTERNAL RESIDENTIAL CARE,776859,130245330,16/10/2015,"5,236.30",229 MITCHAM LANE LTD,SP0000884
WANDSWORTH COUNCIL,ASC,SOCIAL SERVICES,Revenue,PRIVATE,EXTERNAL RESIDENTIAL CARE,776860,130245330,16/10/2015,"5,559.01",229 MITCHAM LANE LTD,SP0000884
WANDSWORTH COUNCIL,ASC,SOCIAL SERVICES,Revenue,PRIVATE,EXTERNAL RESIDENTIAL CARE,778871,130245330,21/10/2015,"4,222.82",229 MITCHAM LANE LTD,SP0000884
WANDSWORTH COUNCIL,ASC,SOCIAL SERVICES,Revenue,PRIVATE,EXTERNAL RESIDENTIAL CARE,778872,130245330,21/10/2015,"4,328.40",229 MITCHAM LANE LTD,SP0000884
WANDSWORTH COUNCIL,ASC,SOCIAL SERVICES,Revenue,PRIVATE,EXTERNAL RESIDENTIAL CARE,778873,130245330,21/10/2015,844.54,229 MITCHAM LANE LTD,SP0000884
WANDSWORTH COUNCIL,ASC,SOCIAL SERVICES,Revenue,PRIVATE,EXTERNAL RESIDENTIAL CARE,778271,130245330,20/10/2015,"8,532.58",ACH OF LONDON LLP,SP0001688
WANDSWORTH COUNCIL,ASC,SOCIAL SERVICES,Revenue,PRIVATE,EXTERNAL RESIDENTIAL CARE,778272,130245330,20/10/2015,"5,095.91",ACH OF LONDON LLP,SP0001688
WANDSWORTH COUNCIL,ASC,SOCIAL SERVICES,Revenue,PRIVATE,EXTERNAL RESIDENTIAL CARE,770482,130245330,09/10/2015,"8,370.84",AIMS CARE PARTNERSHIP,SP0000561
WANDSWORTH COUNCIL,ASC,SOCIAL SERVICES,Revenue,PRIVATE,EXTERNAL RESIDENTIAL CARE,772517,130245330,13/10/2015,"4,332.78",ALLIED CARE (MHS) LTD,SP0001069
WANDSWORTH COUNCIL,ASC,SOCIAL SERVICES,Revenue,PRIVATE,EXTERNAL RESIDENTIAL CARE,772523,130245330,13/10/2015,"7,054.98",ALLIED CARE (MHS) LTD,SP0001069
WANDSWORTH COUNCIL,ASC,SOCIAL SERVICES,Revenue,PRIVATE,EXTERNAL RESIDENTIAL CARE,772524,130245330,13/10/2015,"5,000.30",ALLIED CARE (MHS) LTD,SP0001069
WANDSWORTH COUNCIL,ASC,SOCIAL SERVICES,Revenue,PRIVATE,EXTERNAL RESIDENTIAL CARE,772525,130245330,13/10/2015,"4,664.96",ALLIED CARE (MHS) LTD,SP0001069
WANDSWORTH COUNCIL,ASC,SOCIAL SERVICES,Revenue,PRIVATE,EXTERNAL RESIDENTIAL CARE,767730,130245330,07/10/2015,"1,729.68",ALLIED CARE LTD T/A ASHSTEAD HOUSE LTD,SP0009950
WANDSWORTH COUNCIL,ASC,SOCIAL SERVICES,Revenue,PRIVATE,EXTERNAL RESIDENTIAL CARE,767731,130245330,07/10/2015,"4,035.96",ALLIED CARE LTD T/A ASHSTEAD HOUSE LTD,SP0009950
WANDSWORTH COUNCIL,ASC,SOCIAL SERVICES,Revenue,PRIVATE,EXTERNAL RESIDENTIAL CARE,767732,130245330,07/10/2015,"1,485.12",ALLIED CARE LTD T/A ASHSTEAD HOUSE LTD,SP0009950
WANDSWORTH COUNCIL,ASC,SOCIAL SERVICES,Revenue,PRIVATE,EXTERNAL RESIDENTIAL CARE,767734,130245330,07/10/2015,"4,123.32",ALLIED CARE LTD T/A ASHSTEAD HOUSE LTD,SP0009950
WANDSWORTH COUNCIL,ASC,SOCIAL SERVICES,Revenue,PRIVATE,EXTERNAL RESIDENTIAL CARE,767735,130245330,07/10/2015,"4,123.32",ALLIED CARE LTD T/A ASHSTEAD HOUSE LTD,SP0009950
WANDSWORTH COUNCIL,ASC,SOCIAL SERVICES,Revenue,PRIVATE,EXTERNAL RESIDENTIAL CARE,778865,130245330,21/10/2015,"4,123.32",ALLIED CARE LTD T/A ASHSTEAD HOUSE LTD,SP0009950
WANDSWORTH COUNCIL,ASC,SOCIAL SERVICES,Revenue,PRIVATE,EXTERNAL RESIDENTIAL CARE,772516,130245330,13/10/2015,"11,311.24",ASHCROFT CARE SERVICES,SP0000872
WANDSWORTH COUNCIL,ASC,SOCIAL SERVICES,Revenue,PRIVATE,EXTERNAL RESIDENTIAL CARE,772520,130245330,13/10/2015,"8,046.53",BROOKDALE CARE,SP0000282
WANDSWORTH COUNCIL,ASC,SOCIAL SERVICES,Revenue,PRIVATE,EXTERNAL RESIDENTIAL CARE,772486,130245330,13/10/2015,"4,689.36",CAMERON LODGE LIMITED,SP0000271
WANDSWORTH COUNCIL,ASC,SOCIAL SERVICES,Revenue,PRIVATE,EXTERNAL RESIDENTIAL CARE,781283,130245330,23/10/2015,"3,631.96",CARE UNLIMITED GROUP LTD,SP0001575
WANDSWORTH COUNCIL,ASC,SOCIAL SERVICES,Revenue,PRIVATE,EXTERNAL RESIDENTIAL CARE,786174,130245330,28/10/2015,"3,975.08",CENTRUST CARE HOMES LTD,SP0000141
WANDSWORTH COUNCIL,ASC,SOCIAL SERVICES,Revenue,PRIVATE,EXTERNAL RESIDENTIAL CARE,772972,130245330,13/10/2015,"9,200.00",CHATSWORTH CARE,SP0000831
WANDSWORTH COUNCIL,ASC,SOCIAL SERVICES,Revenue,PRIVATE,EXTERNAL RESIDENTIAL CARE,772973,130245330,13/10/2015,"7,959.11",CHATSWORTH CARE,SP0000831
WANDSWORTH COUNCIL,ASC,SOCIAL SERVICES,Revenue,PRIVATE,EXTERNAL RESIDENTIAL CARE,778870,130245330,21/10/2015,"7,702.38",CHATSWORTH CARE,SP0000831
WANDSWORTH COUNCIL,ASC,SOCIAL SERVICES,Revenue,PRIVATE,EXTERNAL RESIDENTIAL CARE,776819,130245330,16/10/2015,"7,194.44",CHOICE CARE GROUP,SP0001367
WANDSWORTH COUNCIL,ASC,SOCIAL SERVICES,Revenue,PRIVATE,EXTERNAL RESIDENTIAL CARE,782653,130245330,26/10/2015,"5,632.12",CMG HOMES LTD,SP0000075
WANDSWORTH COUNCIL,ASC,SOCIAL SERVICES,Revenue,PRIVATE,EXTERNAL RESIDENTIAL CARE,782654,130245330,26/10/2015,"5,553.00",CMG HOMES LTD,SP0000075
WANDSWORTH COUNCIL,ASC,SOCIAL SERVICES,Revenue,PRIVATE,EXTERNAL RESIDENTIAL CARE,782655,130245330,26/10/2015,"6,007.12",CMG HOMES LTD,SP0000075
WANDSWORTH COUNCIL,ASC,SOCIAL SERVICES,Revenue,PRIVATE,EXTERNAL RESIDENTIAL CARE,782656,130245330,26/10/2015,"4,372.00",CMG HOMES LTD,SP0000075
WANDSWORTH COUNCIL,ASC,SOCIAL SERVICES,Revenue,PRIVATE,EXTERNAL RESIDENTIAL CARE,782657,130245330,26/10/2015,"3,880.00",CMG HOMES LTD,SP0000075
WANDSWORTH COUNCIL,ASC,SOCIAL SERVICES,Revenue,PRIVATE,EXTERNAL RESIDENTIAL CARE,782658,130245330,26/10/2015,"8,061.00",CMG HOMES LTD,SP0000075
WANDSWORTH COUNCIL,ASC,SOCIAL SERVICES,Revenue,PRIVATE,EXTERNAL RESIDENTIAL CARE,782659,130245330,26/10/2015,"4,866.36",CMG HOMES LTD,SP0000075
WANDSWORTH COUNCIL,ASC,SOCIAL SERVICES,Revenue,PRIVATE,EXTERNAL RESIDENTIAL CARE,782660,130245330,26/10/2015,"4,646.00",CMG HOMES LTD,SP0000075
WANDSWORTH COUNCIL,ASC,SOCIAL SERVICES,Revenue,PRIVATE,EXTERNAL RESIDENTIAL CARE,782661,130245330,26/10/2015,"4,369.63",CMG HOMES LTD,SP0000075
WANDSWORTH COUNCIL,ASC,SOCIAL SERVICES,Revenue,PRIVATE,EXTERNAL RESIDENTIAL CARE,785461,130245330,28/10/2015,"3,895.68",CMG HOMES LTD,SP0000075
WANDSWORTH COUNCIL,ASC,SOCIAL SERVICES,Revenue,PRIVATE,EXTERNAL RESIDENTIAL CARE,773000,130245330,13/10/2015,"7,271.56",CORICH COMMUNITY CARE LTD,SP0000915
WANDSWORTH COUNCIL,ASC,SOCIAL SERVICES,Revenue,PRIVATE,EXTERNAL RESIDENTIAL CARE,781274,130245330,23/10/2015,"3,449.46",COUNTRY CARE,SP0000090
WANDSWORTH COUNCIL,ASC,SOCIAL SERVICES,Revenue,PRIVATE,EXTERNAL RESIDENTIAL CARE,770888,130245330,09/10/2015,"2,618.36",COUNTRY COURT CARE,SP0009215
WANDSWORTH COUNCIL,ASC,SOCIAL SERVICES,Revenue,PRIVATE,EXTERNAL RESIDENTIAL CARE,782667,130245330,26/10/2015,"2,950.92",CRAEGMOOR FACILITIES CO LTD,SP0000306
WANDSWORTH COUNCIL,ASC,SOCIAL SERVICES,Revenue,PRIVATE,EXTERNAL RESIDENTIAL CARE,780523,130245330,22/10/2015,"3,900.78",CRAEGMOOR OLD RECTORY BREDE PRIORY,SP0001621
WANDSWORTH COUNCIL,ASC,SOCIAL SERVICES,Revenue,PRIVATE,EXTERNAL RESIDENTIAL CARE,785479,130245330,28/10/2015,"3,965.32",CSS LTD T/A  THF CARE ESTATES LTD,SP0005682
WANDSWORTH COUNCIL,ASC,SOCIAL SERVICES,Revenue,PRIVATE,EXTERNAL RESIDENTIAL CARE,785480,130245330,28/10/2015,"3,965.32",CSS LTD T/A  THF CARE ESTATES LTD,SP0005682
WANDSWORTH COUNCIL,ASC,SOCIAL SERVICES,Revenue,PRIVATE,EXTERNAL RESIDENTIAL CARE,776813,130245330,16/10/2015,"4,946.29",DOLPHIN HOMES LTD,SP0000331
WANDSWORTH COUNCIL,ASC,SOCIAL SERVICES,Revenue,PRIVATE,EXTERNAL RESIDENTIAL CARE,776814,130245330,16/10/2015,"3,893.95",DOLPHIN HOMES LTD,SP0000331
WANDSWORTH COUNCIL,ASC,SOCIAL SERVICES,Revenue,PRIVATE,EXTERNAL RESIDENTIAL CARE,772522,130245330,13/10/2015,"4,027.12",DOWNING (CHERTSEY ROAD) LTD,SP0000959
WANDSWORTH COUNCIL,ASC,SOCIAL SERVICES,Revenue,PRIVATE,EXTERNAL RESIDENTIAL CARE,772999,130245330,13/10/2015,"5,980.80",ENHAM,SP0005845
WANDSWORTH COUNCIL,ASC,SOCIAL SERVICES,Revenue,PRIVATE,EXTERNAL RESIDENTIAL CARE,776177,130245330,15/10/2015,"5,646.12",ESSEX CARE CONSORTIUM,SP0000387
WANDSWORTH COUNCIL,ASC,SOCIAL SERVICES,Revenue,PRIVATE,EXTERNAL RESIDENTIAL CARE,765934,130245330,05/10/2015,"10,129.97",EVERGREEN PARTNERSHIP,SP0000597
WANDSWORTH COUNCIL,ASC,SOCIAL SERVICES,Revenue,PRIVATE,EXTERNAL RESIDENTIAL CARE,776866,130245330,16/10/2015,"7,791.42",FIRCROFT,SP0000840
WANDSWORTH COUNCIL,ASC,SOCIAL SERVICES,Revenue,PRIVATE,EXTERNAL RESIDENTIAL CARE,776867,130245330,16/10/2015,"8,051.14",FIRCROFT,SP0000840
WANDSWORTH COUNCIL,ASC,SOCIAL SERVICES,Revenue,PRIVATE,EXTERNAL RESIDENTIAL CARE,776140,130245330,15/10/2015,"4,708.90",FRANCES TAYLOR FOUNDATION,SP0000142
WANDSWORTH COUNCIL,ASC,SOCIAL SERVICES,Revenue,PRIVATE,EXTERNAL RESIDENTIAL CARE,776141,130245330,15/10/2015,"4,203.35",FRANCES TAYLOR FOUNDATION,SP0000142
WANDSWORTH COUNCIL,ASC,SOCIAL SERVICES,Revenue,PRIVATE,EXTERNAL RESIDENTIAL CARE,776142,130245330,15/10/2015,"4,055.95",FRANCES TAYLOR FOUNDATION,SP0000142
WANDSWORTH COUNCIL,ASC,SOCIAL SERVICES,Revenue,PRIVATE,EXTERNAL RESIDENTIAL CARE,776143,130245330,15/10/2015,"4,220.48",FRANCES TAYLOR FOUNDATION,SP0000142
WANDSWORTH COUNCIL,ASC,SOCIAL SERVICES,Revenue,PRIVATE,EXTERNAL RESIDENTIAL CARE,776868,130245330,16/10/2015,"4,343.46",FRANCES TAYLOR FOUNDATION,SP0000142
WANDSWORTH COUNCIL,ASC,SOCIAL SERVICES,Revenue,PRIVATE,EXTERNAL RESIDENTIAL CARE,780518,130245330,22/10/2015,"2,267.32",FREEWAYS TRUST LTD,SP0000793
WANDSWORTH COUNCIL,ASC,SOCIAL SERVICES,Revenue,PRIVATE,EXTERNAL RESIDENTIAL CARE,765913,130245330,05/10/2015,"6,103.44",GLENCARE GROUP,SP0000791
WANDSWORTH COUNCIL,ASC,SOCIAL SERVICES,Revenue,PRIVATE,EXTERNAL RESIDENTIAL CARE,767726,130245330,07/10/2015,"3,806.64",GLENCARE GROUP,SP0000791
WANDSWORTH COUNCIL,ASC,SOCIAL SERVICES,Revenue,PRIVATE,EXTERNAL RESIDENTIAL CARE,767727,130245330,07/10/2015,"3,806.64",GLENCARE GROUP,SP0000791
WANDSWORTH COUNCIL,ASC,SOCIAL SERVICES,Revenue,PRIVATE,EXTERNAL RESIDENTIAL CARE,781275,130245330,23/10/2015,"2,755.56",HASTINGS & BEXHILL MENCAP SOCIETY,SP0005380
WANDSWORTH COUNCIL,ASC,SOCIAL SERVICES,Revenue,PRIVATE,EXTERNAL RESIDENTIAL CARE,780527,130245330,22/10/2015,"8,060.31",HEALTHLINC INDIVIDUAL CARE,SP0000617
WANDSWORTH COUNCIL,ASC,SOCIAL SERVICES,Revenue,PRIVATE,EXTERNAL RESIDENTIAL CARE,785496,130245330,28/10/2015,"5,782.07",HEYWOODS GRANGE LTD,SP0000361
WANDSWORTH COUNCIL,ASC,SOCIAL SERVICES,Revenue,PRIVATE,EXTERNAL RESIDENTIAL CARE,776784,130245330,16/10/2015,"6,679.26",HOME FROM HOME CARE LIMITED,SP0001373
WANDSWORTH COUNCIL,ASC,SOCIAL SERVICES,Revenue,PRIVATE,EXTERNAL RESIDENTIAL CARE,786159,130245330,28/10/2015,"5,058.84",IN CHORUS LTD,SP0000129
WANDSWORTH COUNCIL,ASC,SOCIAL SERVICES,Revenue,PRIVATE,EXTERNAL RESIDENTIAL CARE,786160,130245330,28/10/2015,"4,895.66",IN CHORUS LTD,SP0000129
WANDSWORTH COUNCIL,ASC,SOCIAL SERVICES,Revenue,PRIVATE,EXTERNAL RESIDENTIAL CARE,774131,130245330,14/10/2015,"11,057.48",KISIMUL GROUP LTD,SP0002487
WANDSWORTH COUNCIL,ASC,SOCIAL SERVICES,Revenue,PRIVATE,EXTERNAL RESIDENTIAL CARE,774132,130245330,14/10/2015,"11,057.48",KISIMUL GROUP LTD,SP0002487
WANDSWORTH COUNCIL,ASC,SOCIAL SERVICES,Revenue,PRIVATE,EXTERNAL RESIDENTIAL CARE,774133,130245330,14/10/2015,"11,057.48",KISIMUL GROUP LTD,SP0002487
WANDSWORTH COUNCIL,ASC,SOCIAL SERVICES,Revenue,PRIVATE,EXTERNAL RESIDENTIAL CARE,785488,130245330,28/10/2015,"4,792.20",LAETUS LODGE,SP0000600
WANDSWORTH COUNCIL,ASC,SOCIAL SERVICES,Revenue,PRIVATE,EXTERNAL RESIDENTIAL CARE,785489,130245330,28/10/2015,"6,096.48",LAETUS LODGE,SP0000600
WANDSWORTH COUNCIL,ASC,SOCIAL SERVICES,Revenue,PRIVATE,EXTERNAL RESIDENTIAL CARE,785490,130245330,28/10/2015,"3,759.76",LAETUS LODGE,SP0000600
WANDSWORTH COUNCIL,ASC,SOCIAL SERVICES,Revenue,PRIVATE,EXTERNAL RESIDENTIAL CARE,785491,130245330,28/10/2015,"6,193.48",LAETUS LODGE,SP0000600
WANDSWORTH COUNCIL,ASC,SOCIAL SERVICES,Revenue,PRIVATE,EXTERNAL RESIDENTIAL CARE,785492,130245330,28/10/2015,"3,669.12",LAETUS LODGE,SP0000600
WANDSWORTH COUNCIL,ASC,SOCIAL SERVICES,Revenue,PRIVATE,EXTERNAL RESIDENTIAL CARE,785493,130245330,28/10/2015,"3,759.76",LAETUS LODGE,SP0000600
WANDSWORTH COUNCIL,ASC,SOCIAL SERVICES,Revenue,PRIVATE,EXTERNAL RESIDENTIAL CARE,785494,130245330,28/10/2015,"5,238.16",LAETUS LODGE,SP0000600
WANDSWORTH COUNCIL,ASC,SOCIAL SERVICES,Revenue,PRIVATE,EXTERNAL RESIDENTIAL CARE,785495,130245330,28/10/2015,"4,558.48",LAETUS LODGE,SP0000600
WANDSWORTH COUNCIL,ASC,SOCIAL SERVICES,Revenue,PRIVATE,EXTERNAL RESIDENTIAL CARE,776153,130245330,15/10/2015,"7,528.35",LANCASTER LODGE,SP0009668
WANDSWORTH COUNCIL,ASC,SOCIAL SERVICES,Revenue,PRIVATE,EXTERNAL RESIDENTIAL CARE,776864,130245330,16/10/2015,"4,967.48",LARKFIELD HALL LTD T/A PEPENBURY,SP0001378
WANDSWORTH COUNCIL,ASC,SOCIAL SERVICES,Revenue,PRIVATE,EXTERNAL RESIDENTIAL CARE,776865,130245330,16/10/2015,"4,967.48",LARKFIELD HALL LTD T/A PEPENBURY,SP0001378
WANDSWORTH COUNCIL,ASC,SOCIAL SERVICES,Revenue,PRIVATE,EXTERNAL RESIDENTIAL CARE,764658,130245330,02/10/2015,"4,219.20",LEONARD CHESHIRE,SP0000976
WANDSWORTH COUNCIL,ASC,SOCIAL SERVICES,Revenue,PRIVATE,EXTERNAL RESIDENTIAL CARE,764659,130245330,02/10/2015,"6,196.41",LEONARD CHESHIRE,SP0000976
WANDSWORTH COUNCIL,ASC,SOCIAL SERVICES,Revenue,PRIVATE,EXTERNAL RESIDENTIAL CARE,764664,130245330,02/10/2015,"4,208.70",LEONARD CHESHIRE,SP0000976
WANDSWORTH COUNCIL,ASC,SOCIAL SERVICES,Revenue,PRIVATE,EXTERNAL RESIDENTIAL CARE,776807,130245330,16/10/2015,"2,395.60",LIVABILITY,SP0000669
WANDSWORTH COUNCIL,ASC,SOCIAL SERVICES,Revenue,PRIVATE,EXTERNAL RESIDENTIAL CARE,780495,130245330,22/10/2015,"5,865.12",LIVING AMBITIONS LIMITED,SP0001039
WANDSWORTH COUNCIL,ASC,SOCIAL SERVICES,Revenue,PRIVATE,EXTERNAL RESIDENTIAL CARE,764314,130245330,02/10/2015,"8,525.00",LONDON CARE PARTNERSHIP LTD,SP0001138
WANDSWORTH COUNCIL,ASC,SOCIAL SERVICES,Revenue,PRIVATE,EXTERNAL RESIDENTIAL CARE,764315,130245330,02/10/2015,"8,525.00",LONDON CARE PARTNERSHIP LTD,SP0001138
WANDSWORTH COUNCIL,ASC,SOCIAL SERVICES,Revenue,PRIVATE,EXTERNAL RESIDENTIAL CARE,764316,130245330,02/10/2015,"8,250.00",LONDON CARE PARTNERSHIP LTD,SP0001138
WANDSWORTH COUNCIL,ASC,SOCIAL SERVICES,Revenue,PRIVATE,EXTERNAL RESIDENTIAL CARE,773022,130245330,13/10/2015,"6,916.62",LONDON CARE PARTNERSHIP LTD,SP0001138
WANDSWORTH COUNCIL,ASC,SOCIAL SERVICES,Revenue,PRIVATE,EXTERNAL RESIDENTIAL CARE,773023,130245330,13/10/2015,"8,834.99",LONDON CARE PARTNERSHIP LTD,SP0001138
WANDSWORTH COUNCIL,ASC,SOCIAL SERVICES,Revenue,PRIVATE,EXTERNAL RESIDENTIAL CARE,773024,130245330,13/10/2015,"8,192.86",LONDON CARE PARTNERSHIP LTD,SP0001138
WANDSWORTH COUNCIL,ASC,SOCIAL SERVICES,Revenue,PRIVATE,EXTERNAL RESIDENTIAL CARE,773025,130245330,13/10/2015,"8,303.57",LONDON CARE PARTNERSHIP LTD,SP0001138
WANDSWORTH COUNCIL,ASC,SOCIAL SERVICES,Revenue,PRIVATE,EXTERNAL RESIDENTIAL CARE,773026,130245330,13/10/2015,"8,303.56",LONDON CARE PARTNERSHIP LTD,SP0001138
WANDSWORTH COUNCIL,ASC,SOCIAL SERVICES,Revenue,PRIVATE,EXTERNAL RESIDENTIAL CARE,773027,130245330,13/10/2015,"8,524.99",LONDON CARE PARTNERSHIP LTD,SP0001138
WANDSWORTH COUNCIL,ASC,SOCIAL SERVICES,Revenue,PRIVATE,EXTERNAL RESIDENTIAL CARE,776135,130245330,15/10/2015,"8,035.71",LONDON CARE PARTNERSHIP LTD,SP0001138
WANDSWORTH COUNCIL,ASC,SOCIAL SERVICES,Revenue,PRIVATE,EXTERNAL RESIDENTIAL CARE,764635,130245330,02/10/2015,"7,717.76",LORING HALL LIMITED,SP0000511
WANDSWORTH COUNCIL,ASC,SOCIAL SERVICES,Revenue,PRIVATE,EXTERNAL RESIDENTIAL CARE,774134,130245330,14/10/2015,"4,613.60",LOTUS CARE HOME LTD,SP0001006
WANDSWORTH COUNCIL,ASC,SOCIAL SERVICES,Revenue,PRIVATE,EXTERNAL RESIDENTIAL CARE,786148,130245330,28/10/2015,"4,613.60",LOTUS CARE HOME LTD,SP0001006
WANDSWORTH COUNCIL,ASC,SOCIAL SERVICES,Revenue,PRIVATE,EXTERNAL RESIDENTIAL CARE,764639,130245330,02/10/2015,"11,282.12",LOVING CARE LTD,SP0000670
WANDSWORTH COUNCIL,ASC,SOCIAL SERVICES,Revenue,PRIVATE,EXTERNAL RESIDENTIAL CARE,764640,130245330,02/10/2015,"11,475.84",LOVING CARE LTD,SP0000670
WANDSWORTH COUNCIL,ASC,SOCIAL SERVICES,Revenue,PRIVATE,EXTERNAL RESIDENTIAL CARE,764641,130245330,02/10/2015,"11,017.24",LOVING CARE LTD,SP0000670
WANDSWORTH COUNCIL,ASC,SOCIAL SERVICES,Revenue,PRIVATE,EXTERNAL RESIDENTIAL CARE,764642,130245330,02/10/2015,"11,475.88",LOVING CARE LTD,SP0000670
WANDSWORTH COUNCIL,ASC,SOCIAL SERVICES,Revenue,PRIVATE,EXTERNAL RESIDENTIAL CARE,764643,130245330,02/10/2015,"11,475.88",LOVING CARE LTD,SP0000670
WANDSWORTH COUNCIL,ASC,SOCIAL SERVICES,Revenue,PRIVATE,EXTERNAL RESIDENTIAL CARE,764644,130245330,02/10/2015,"11,170.12",LOVING CARE LTD,SP0000670
WANDSWORTH COUNCIL,ASC,SOCIAL SERVICES,Revenue,PRIVATE,EXTERNAL RESIDENTIAL CARE,782671,130245330,26/10/2015,"11,311.47",LOVING CARE LTD,SP0000670
WANDSWORTH COUNCIL,ASC,SOCIAL SERVICES,Revenue,PRIVATE,EXTERNAL RESIDENTIAL CARE,782651,130245330,26/10/2015,"5,365.29",M JINGREE T/A SUNLIGHT HOUSE,SP0001024
WANDSWORTH COUNCIL,ASC,SOCIAL SERVICES,Revenue,PRIVATE,EXTERNAL RESIDENTIAL CARE,765914,130245330,05/10/2015,"5,210.48",MACINTYRE CARE,SP0000473
WANDSWORTH COUNCIL,ASC,SOCIAL SERVICES,Revenue,PRIVATE,EXTERNAL RESIDENTIAL CARE,765915,130245330,05/10/2015,"3,759.64",MACINTYRE CARE,SP0000473
WANDSWORTH COUNCIL,ASC,SOCIAL SERVICES,Revenue,PRIVATE,EXTERNAL RESIDENTIAL CARE,765916,130245330,05/10/2015,"5,429.64",MACINTYRE CARE,SP0000473
WANDSWORTH COUNCIL,ASC,SOCIAL SERVICES,Revenue,PRIVATE,EXTERNAL RESIDENTIAL CARE,765918,130245330,05/10/2015,"3,759.64",MACINTYRE CARE,SP0000473
WANDSWORTH COUNCIL,ASC,SOCIAL SERVICES,Revenue,PRIVATE,EXTERNAL RESIDENTIAL CARE,765919,130245330,05/10/2015,"5,192.48",MACINTYRE CARE,SP0000473
WANDSWORTH COUNCIL,ASC,SOCIAL SERVICES,Revenue,PRIVATE,EXTERNAL RESIDENTIAL CARE,765920,130245330,05/10/2015,"3,750.72",MACINTYRE CARE,SP0000473
WANDSWORTH COUNCIL,ASC,SOCIAL SERVICES,Revenue,PRIVATE,EXTERNAL RESIDENTIAL CARE,765921,130245330,05/10/2015,"3,813.84",MACINTYRE CARE,SP0000473
WANDSWORTH COUNCIL,ASC,SOCIAL SERVICES,Revenue,PRIVATE,EXTERNAL RESIDENTIAL CARE,765922,130245330,05/10/2015,"4,998.84",MACINTYRE CARE,SP0000473
WANDSWORTH COUNCIL,ASC,SOCIAL SERVICES,Revenue,PRIVATE,EXTERNAL RESIDENTIAL CARE,765923,130245330,05/10/2015,"5,097.20",MACINTYRE CARE,SP0000473
WANDSWORTH COUNCIL,ASC,SOCIAL SERVICES,Revenue,PRIVATE,EXTERNAL RESIDENTIAL CARE,765924,130245330,05/10/2015,"2,301.48",MACINTYRE CARE,SP0000473
WANDSWORTH COUNCIL,ASC,SOCIAL SERVICES,Revenue,PRIVATE,EXTERNAL RESIDENTIAL CARE,765926,130245330,05/10/2015,"8,054.44",MACINTYRE CARE,SP0000473
WANDSWORTH COUNCIL,ASC,SOCIAL SERVICES,Revenue,PRIVATE,EXTERNAL RESIDENTIAL CARE,765927,130245330,05/10/2015,"5,030.56",MACINTYRE CARE,SP0000473
WANDSWORTH COUNCIL,ASC,SOCIAL SERVICES,Revenue,PRIVATE,EXTERNAL RESIDENTIAL CARE,765928,130245330,05/10/2015,"5,429.76",MACINTYRE CARE,SP0000473
WANDSWORTH COUNCIL,ASC,SOCIAL SERVICES,Revenue,PRIVATE,EXTERNAL RESIDENTIAL CARE,765929,130245330,05/10/2015,"4,907.76",MACINTYRE CARE,SP0000473
WANDSWORTH COUNCIL,ASC,SOCIAL SERVICES,Revenue,PRIVATE,EXTERNAL RESIDENTIAL CARE,765930,130245330,05/10/2015,"4,296.00",MACINTYRE CARE,SP0000473
WANDSWORTH COUNCIL,ASC,SOCIAL SERVICES,Revenue,PRIVATE,EXTERNAL RESIDENTIAL CARE,765936,130245330,05/10/2015,"4,909.16",MACINTYRE CARE,SP0000473
WANDSWORTH COUNCIL,ASC,SOCIAL SERVICES,Revenue,PRIVATE,EXTERNAL RESIDENTIAL CARE,765937,130245330,05/10/2015,"4,909.16",MACINTYRE CARE,SP0000473
WANDSWORTH COUNCIL,ASC,SOCIAL SERVICES,Revenue,PRIVATE,EXTERNAL RESIDENTIAL CARE,765939,130245330,05/10/2015,"4,907.76",MACINTYRE CARE,SP0000473
WANDSWORTH COUNCIL,ASC,SOCIAL SERVICES,Revenue,PRIVATE,EXTERNAL RESIDENTIAL CARE,765940,130245330,05/10/2015,"4,907.76",MACINTYRE CARE,SP0000473
WANDSWORTH COUNCIL,ASC,SOCIAL SERVICES,Revenue,PRIVATE,EXTERNAL RESIDENTIAL CARE,765941,130245330,05/10/2015,"5,030.56",MACINTYRE CARE,SP0000473
WANDSWORTH COUNCIL,ASC,SOCIAL SERVICES,Revenue,PRIVATE,EXTERNAL RESIDENTIAL CARE,765942,130245330,05/10/2015,"4,907.76",MACINTYRE CARE,SP0000473
WANDSWORTH COUNCIL,ASC,SOCIAL SERVICES,Revenue,PRIVATE,EXTERNAL RESIDENTIAL CARE,776821,130245330,16/10/2015,"3,454.38",MENCAP,SP0000604
WANDSWORTH COUNCIL,ASC,SOCIAL SERVICES,Revenue,PRIVATE,EXTERNAL RESIDENTIAL CARE,776822,130245330,16/10/2015,"3,454.38",MENCAP,SP0000604
WANDSWORTH COUNCIL,ASC,SOCIAL SERVICES,Revenue,PRIVATE,EXTERNAL RESIDENTIAL CARE,776823,130245330,16/10/2015,"2,391.83",MENCAP,SP0000604
WANDSWORTH COUNCIL,ASC,SOCIAL SERVICES,Revenue,PRIVATE,EXTERNAL RESIDENTIAL CARE,764627,130245330,02/10/2015,"4,756.88",METROPOLITAN HOUSING TRUST,SP0000626
WANDSWORTH COUNCIL,ASC,SOCIAL SERVICES,Revenue,PRIVATE,EXTERNAL RESIDENTIAL CARE,764628,130245330,02/10/2015,"4,756.92",METROPOLITAN HOUSING TRUST,SP0000626
WANDSWORTH COUNCIL,ASC,SOCIAL SERVICES,Revenue,PRIVATE,EXTERNAL RESIDENTIAL CARE,764629,130245330,02/10/2015,"4,756.88",METROPOLITAN HOUSING TRUST,SP0000626
WANDSWORTH COUNCIL,ASC,SOCIAL SERVICES,Revenue,PRIVATE,EXTERNAL RESIDENTIAL CARE,764630,130245330,02/10/2015,"4,427.04",METROPOLITAN HOUSING TRUST,SP0000626
WANDSWORTH COUNCIL,ASC,SOCIAL SERVICES,Revenue,PRIVATE,EXTERNAL RESIDENTIAL CARE,764631,130245330,02/10/2015,"4,709.79",METROPOLITAN HOUSING TRUST,SP0000626
WANDSWORTH COUNCIL,ASC,SOCIAL SERVICES,Revenue,PRIVATE,EXTERNAL RESIDENTIAL CARE,764632,130245330,02/10/2015,"4,709.79",METROPOLITAN HOUSING TRUST,SP0000626
WANDSWORTH COUNCIL,ASC,SOCIAL SERVICES,Revenue,PRIVATE,EXTERNAL RESIDENTIAL CARE,764634,130245330,02/10/2015,"4,709.79",METROPOLITAN HOUSING TRUST,SP0000626
WANDSWORTH COUNCIL,ASC,SOCIAL SERVICES,Revenue,PRIVATE,EXTERNAL RESIDENTIAL CARE,774136,130245330,14/10/2015,"3,659.52",METROPOLITAN HOUSING TRUST,SP0000626
WANDSWORTH COUNCIL,ASC,SOCIAL SERVICES,Revenue,PRIVATE,EXTERNAL RESIDENTIAL CARE,774137,130245330,14/10/2015,"3,659.52",METROPOLITAN HOUSING TRUST,SP0000626
WANDSWORTH COUNCIL,ASC,SOCIAL SERVICES,Revenue,PRIVATE,EXTERNAL RESIDENTIAL CARE,774138,130245330,14/10/2015,"3,659.68",METROPOLITAN HOUSING TRUST,SP0000626
WANDSWORTH COUNCIL,ASC,SOCIAL SERVICES,Revenue,PRIVATE,EXTERNAL RESIDENTIAL CARE,774139,130245330,14/10/2015,"3,659.52",METROPOLITAN HOUSING TRUST,SP0000626
WANDSWORTH COUNCIL,ASC,SOCIAL SERVICES,Revenue,PRIVATE,EXTERNAL RESIDENTIAL CARE,774140,130245330,14/10/2015,"3,659.52",METROPOLITAN HOUSING TRUST,SP0000626
WANDSWORTH COUNCIL,ASC,SOCIAL SERVICES,Revenue,PRIVATE,EXTERNAL RESIDENTIAL CARE,774141,130245330,14/10/2015,"3,659.52",METROPOLITAN HOUSING TRUST,SP0000626
WANDSWORTH COUNCIL,ASC,SOCIAL SERVICES,Revenue,PRIVATE,EXTERNAL RESIDENTIAL CARE,774142,130245330,14/10/2015,"3,812.04",METROPOLITAN HOUSING TRUST,SP0000626
WANDSWORTH COUNCIL,ASC,SOCIAL SERVICES,Revenue,PRIVATE,EXTERNAL RESIDENTIAL CARE,774143,130245330,14/10/2015,"3,659.52",METROPOLITAN HOUSING TRUST,SP0000626
WANDSWORTH COUNCIL,ASC,SOCIAL SERVICES,Revenue,PRIVATE,EXTERNAL RESIDENTIAL CARE,780529,130245330,22/10/2015,"3,648.03",METROPOLITAN HOUSING TRUST,SP0000626
WANDSWORTH COUNCIL,ASC,SOCIAL SERVICES,Revenue,PRIVATE,EXTERNAL RESIDENTIAL CARE,782668,130245330,26/10/2015,"3,659.52",METROPOLITAN HOUSING TRUST,SP0000626
WANDSWORTH COUNCIL,ASC,SOCIAL SERVICES,Revenue,PRIVATE,EXTERNAL RESIDENTIAL CARE,782669,130245330,26/10/2015,"3,659.52",METROPOLITAN HOUSING TRUST,SP0000626
WANDSWORTH COUNCIL,ASC,SOCIAL SERVICES,Revenue,PRIVATE,EXTERNAL RESIDENTIAL CARE,782670,130245330,26/10/2015,"3,659.52",METROPOLITAN HOUSING TRUST,SP0000626
WANDSWORTH COUNCIL,ASC,SOCIAL SERVICES,Revenue,PRIVATE,EXTERNAL RESIDENTIAL CARE,782805,130245330,26/10/2015,"3,659.52",METROPOLITAN HOUSING TRUST,SP0000626
WANDSWORTH COUNCIL,ASC,SOCIAL SERVICES,Revenue,PRIVATE,EXTERNAL RESIDENTIAL CARE,781277,130245330,23/10/2015,"6,800.00",MIGHOUSE RESIDENTIAL CARE HOME LTD,SP0001402
WANDSWORTH COUNCIL,ASC,SOCIAL SERVICES,Revenue,PRIVATE,EXTERNAL RESIDENTIAL CARE,776790,130245330,16/10/2015,"2,930.00",MISSION CARE,SP0000958
WANDSWORTH COUNCIL,ASC,SOCIAL SERVICES,Revenue,PRIVATE,EXTERNAL RESIDENTIAL CARE,767853,130245330,07/10/2015,"5,515.16",NAS SERVICES LIMITED,SP0000217
WANDSWORTH COUNCIL,ASC,SOCIAL SERVICES,Revenue,PRIVATE,EXTERNAL RESIDENTIAL CARE,767855,130245330,07/10/2015,"8,689.12",NAS SERVICES LIMITED,SP0000217
WANDSWORTH COUNCIL,ASC,SOCIAL SERVICES,Revenue,PRIVATE,EXTERNAL RESIDENTIAL CARE,767856,130245330,07/10/2015,"3,387.88",NAS SERVICES LIMITED,SP0000217
WANDSWORTH COUNCIL,ASC,SOCIAL SERVICES,Revenue,PRIVATE,EXTERNAL RESIDENTIAL CARE,786153,130245330,28/10/2015,"6,440.76",NAS SERVICES LIMITED,SP0000217
WANDSWORTH COUNCIL,ASC,SOCIAL SERVICES,Revenue,PRIVATE,EXTERNAL RESIDENTIAL CARE,780503,130245330,22/10/2015,"6,623.15",NATIONAL SOCIETY FOR EPILEPSY,SP0000120
WANDSWORTH COUNCIL,ASC,SOCIAL SERVICES,Revenue,PRIVATE,EXTERNAL RESIDENTIAL CARE,786154,130245330,28/10/2015,"7,501.72",NORCREST (2000) HOME LTD,SP0008343
WANDSWORTH COUNCIL,ASC,SOCIAL SERVICES,Revenue,PRIVATE,EXTERNAL RESIDENTIAL CARE,776799,130245330,16/10/2015,"4,383.39",NUTLEY HALL LTD,SP0001581
WANDSWORTH COUNCIL,ASC,SOCIAL SERVICES,Revenue,PRIVATE,EXTERNAL RESIDENTIAL CARE,781285,130245330,23/10/2015,"1,624.41",ORCHARD VALE TRUST,SP0000214
WANDSWORTH COUNCIL,ASC,SOCIAL SERVICES,Revenue,PRIVATE,EXTERNAL RESIDENTIAL CARE,773016,130245330,13/10/2015,"7,336.93",PATHWAY HEALTHCARE,SP0001779
WANDSWORTH COUNCIL,ASC,SOCIAL SERVICES,Revenue,PRIVATE,EXTERNAL RESIDENTIAL CARE,773017,130245330,13/10/2015,"6,904.07",PATHWAY HEALTHCARE,SP0001779
WANDSWORTH COUNCIL,ASC,SOCIAL SERVICES,Revenue,PRIVATE,EXTERNAL RESIDENTIAL CARE,773018,130245330,13/10/2015,"7,581.49",PATHWAY HEALTHCARE,SP0001779
WANDSWORTH COUNCIL,ASC,SOCIAL SERVICES,Revenue,PRIVATE,EXTERNAL RESIDENTIAL CARE,773019,130245330,13/10/2015,"7,134.21",PATHWAY HEALTHCARE,SP0001779
WANDSWORTH COUNCIL,ASC,SOCIAL SERVICES,Revenue,PRIVATE,EXTERNAL RESIDENTIAL CARE,781284,130245330,23/10/2015,"3,135.60",POTENSIAL LTD,SP0000395
WANDSWORTH COUNCIL,ASC,SOCIAL SERVICES,Revenue,PRIVATE,EXTERNAL RESIDENTIAL CARE,776803,130245330,16/10/2015,"3,151.20",PROSPECTS,SP0000800
WANDSWORTH COUNCIL,ASC,SOCIAL SERVICES,Revenue,PRIVATE,EXTERNAL RESIDENTIAL CARE,770484,130245330,09/10/2015,"8,576.73",RALEIGH HOUSE LTD,SP0000760
WANDSWORTH COUNCIL,ASC,SOCIAL SERVICES,Revenue,PRIVATE,EXTERNAL RESIDENTIAL CARE,770485,130245330,09/10/2015,"7,763.33",RALEIGH HOUSE LTD,SP0000760
WANDSWORTH COUNCIL,ASC,SOCIAL SERVICES,Revenue,PRIVATE,EXTERNAL RESIDENTIAL CARE,776869,130245330,16/10/2015,"4,062.44",RESIDENTIAL CARE SERVICES T/A FRANKLYN L,SP0000147
WANDSWORTH COUNCIL,ASC,SOCIAL SERVICES,Revenue,PRIVATE,EXTERNAL RESIDENTIAL CARE,776870,130245330,16/10/2015,"4,062.44",RESIDENTIAL CARE SERVICES T/A FRANKLYN L,SP0000147
WANDSWORTH COUNCIL,ASC,SOCIAL SERVICES,Revenue,PRIVATE,EXTERNAL RESIDENTIAL CARE,782675,130245330,26/10/2015,"4,062.44",RESIDENTIAL CARE SERVICES T/A FRANKLYN L,SP0000147
WANDSWORTH COUNCIL,ASC,SOCIAL SERVICES,Revenue,PRIVATE,EXTERNAL RESIDENTIAL CARE,770488,130245330,09/10/2015,"6,263.46",RESIDENTIAL COMMUNITY CARE,SP0000315
WANDSWORTH COUNCIL,ASC,SOCIAL SERVICES,Revenue,PRIVATE,EXTERNAL RESIDENTIAL CARE,770489,130245330,09/10/2015,"6,263.46",RESIDENTIAL COMMUNITY CARE,SP0000315
WANDSWORTH COUNCIL,ASC,SOCIAL SERVICES,Revenue,PRIVATE,EXTERNAL RESIDENTIAL CARE,767619,130245330,07/10/2015,"6,493.16",RIDGEWOOD CARE SERVICES LTD,SP0000969
WANDSWORTH COUNCIL,ASC,SOCIAL SERVICES,Revenue,PRIVATE,EXTERNAL RESIDENTIAL CARE,767712,130245330,07/10/2015,"8,784.64",ROOKERY HOVE PRIORY,SP0001498
WANDSWORTH COUNCIL,ASC,SOCIAL SERVICES,Revenue,PRIVATE,EXTERNAL RESIDENTIAL CARE,764321,130245330,02/10/2015,"9,889.80",SALISBURY SUPPORT 4 AUTISM LTD,SP0001691
WANDSWORTH COUNCIL,ASC,SOCIAL SERVICES,Revenue,PRIVATE,EXTERNAL RESIDENTIAL CARE,770694,130245330,09/10/2015,"2,162.32",SANCTUARY CARE LTD,SP0000121
WANDSWORTH COUNCIL,ASC,SOCIAL SERVICES,Revenue,PRIVATE,EXTERNAL RESIDENTIAL CARE,764348,130245330,02/10/2015,"2,248.39",SAXON COURT,SP0001100
WANDSWORTH COUNCIL,ASC,SOCIAL SERVICES,Revenue,PRIVATE,EXTERNAL RESIDENTIAL CARE,764349,130245330,02/10/2015,"2,323.34",SAXON COURT,SP0001100
WANDSWORTH COUNCIL,ASC,SOCIAL SERVICES,Revenue,PRIVATE,EXTERNAL RESIDENTIAL CARE,785486,130245330,28/10/2015,"2,618.36",SCOPE,SP0000852
WANDSWORTH COUNCIL,ASC,SOCIAL SERVICES,Revenue,PRIVATE,EXTERNAL RESIDENTIAL CARE,785487,130245330,28/10/2015,"2,763.52",SCOPE,SP0000852
WANDSWORTH COUNCIL,ASC,SOCIAL SERVICES,Revenue,PRIVATE,EXTERNAL RESIDENTIAL CARE,782562,130245330,26/10/2015,"7,597.03",SEEABILITY,SP0000572
WANDSWORTH COUNCIL,ASC,SOCIAL SERVICES,Revenue,PRIVATE,EXTERNAL RESIDENTIAL CARE,772971,130245330,13/10/2015,"10,225.71",SEQUENCE CARE GROUP,SP0009709
WANDSWORTH COUNCIL,ASC,SOCIAL SERVICES,Revenue,PRIVATE,EXTERNAL RESIDENTIAL CARE,764322,130245330,02/10/2015,"2,107.72",ST DAVIDS CARE IN THE COMMUNITY,SP0000379
WANDSWORTH COUNCIL,ASC,SOCIAL SERVICES,Revenue,PRIVATE,EXTERNAL RESIDENTIAL CARE,764323,130245330,02/10/2015,"2,528.82",ST DAVIDS CARE IN THE COMMUNITY,SP0000379
WANDSWORTH COUNCIL,ASC,SOCIAL SERVICES,Revenue,PRIVATE,EXTERNAL RESIDENTIAL CARE,764324,130245330,02/10/2015,"2,107.72",ST DAVIDS CARE IN THE COMMUNITY,SP0000379
WANDSWORTH COUNCIL,ASC,SOCIAL SERVICES,Revenue,PRIVATE,EXTERNAL RESIDENTIAL CARE,772527,130245330,13/10/2015,"2,177.99",ST DAVIDS CARE IN THE COMMUNITY,SP0000379
WANDSWORTH COUNCIL,ASC,SOCIAL SERVICES,Revenue,PRIVATE,EXTERNAL RESIDENTIAL CARE,772528,130245330,13/10/2015,"2,624.99",ST DAVIDS CARE IN THE COMMUNITY,SP0000379
WANDSWORTH COUNCIL,ASC,SOCIAL SERVICES,Revenue,PRIVATE,EXTERNAL RESIDENTIAL CARE,772529,130245330,13/10/2015,"2,177.99",ST DAVIDS CARE IN THE COMMUNITY,SP0000379
WANDSWORTH COUNCIL,ASC,SOCIAL SERVICES,Revenue,PRIVATE,EXTERNAL RESIDENTIAL CARE,776125,130245330,15/10/2015,"3,828.56",ST MARYS RESIDENTIAL HOME,SP0000215
WANDSWORTH COUNCIL,ASC,SOCIAL SERVICES,Revenue,PRIVATE,EXTERNAL RESIDENTIAL CARE,776126,130245330,15/10/2015,"3,772.98",ST MARYS RESIDENTIAL HOME,SP0000215
WANDSWORTH COUNCIL,ASC,SOCIAL SERVICES,Revenue,PRIVATE,EXTERNAL RESIDENTIAL CARE,776127,130245330,15/10/2015,"3,454.68",ST MARYS RESIDENTIAL HOME,SP0000215
WANDSWORTH COUNCIL,ASC,SOCIAL SERVICES,Revenue,PRIVATE,EXTERNAL RESIDENTIAL CARE,776128,130245330,15/10/2015,"3,605.45",ST MARYS RESIDENTIAL HOME,SP0000215
WANDSWORTH COUNCIL,ASC,SOCIAL SERVICES,Revenue,PRIVATE,EXTERNAL RESIDENTIAL CARE,776129,130245330,15/10/2015,"3,033.09",ST MARYS RESIDENTIAL HOME,SP0000215
WANDSWORTH COUNCIL,ASC,SOCIAL SERVICES,Revenue,PRIVATE,EXTERNAL RESIDENTIAL CARE,776130,130245330,15/10/2015,"4,877.66",ST MARYS RESIDENTIAL HOME,SP0000215
WANDSWORTH COUNCIL,ASC,SOCIAL SERVICES,Revenue,PRIVATE,EXTERNAL RESIDENTIAL CARE,776131,130245330,15/10/2015,"3,513.41",ST MARYS RESIDENTIAL HOME,SP0000215
WANDSWORTH COUNCIL,ASC,SOCIAL SERVICES,Revenue,PRIVATE,EXTERNAL RESIDENTIAL CARE,776132,130245330,15/10/2015,"3,467.14",ST MARYS RESIDENTIAL HOME,SP0000215
WANDSWORTH COUNCIL,ASC,SOCIAL SERVICES,Revenue,PRIVATE,EXTERNAL RESIDENTIAL CARE,776133,130245330,15/10/2015,"3,418.50",ST MARYS RESIDENTIAL HOME,SP0000215
WANDSWORTH COUNCIL,ASC,SOCIAL SERVICES,Revenue,PRIVATE,EXTERNAL RESIDENTIAL CARE,776134,130245330,15/10/2015,"2,238.85",ST MARYS RESIDENTIAL HOME,SP0000215
WANDSWORTH COUNCIL,ASC,SOCIAL SERVICES,Revenue,PRIVATE,EXTERNAL RESIDENTIAL CARE,776871,130245330,16/10/2015,"2,714.64",ST MARYS RESIDENTIAL HOME,SP0000215
WANDSWORTH COUNCIL,ASC,SOCIAL SERVICES,Revenue,PRIVATE,EXTERNAL RESIDENTIAL CARE,776872,130245330,16/10/2015,"3,539.72",ST MARYS RESIDENTIAL HOME,SP0000215
WANDSWORTH COUNCIL,ASC,SOCIAL SERVICES,Revenue,PRIVATE,EXTERNAL RESIDENTIAL CARE,764662,130245330,02/10/2015,"13,801.00",SURREY & BORDERS PARTNERSHIP NHS TRUST,SP0000501
WANDSWORTH COUNCIL,ASC,SOCIAL SERVICES,Revenue,PRIVATE,EXTERNAL RESIDENTIAL CARE,764663,130245330,02/10/2015,"13,801.00",SURREY & BORDERS PARTNERSHIP NHS TRUST,SP0000501
WANDSWORTH COUNCIL,ASC,SOCIAL SERVICES,Revenue,PRIVATE,EXTERNAL RESIDENTIAL CARE,764666,130245330,02/10/2015,"13,801.00",SURREY & BORDERS PARTNERSHIP NHS TRUST,SP0000501
WANDSWORTH COUNCIL,ASC,SOCIAL SERVICES,Revenue,PRIVATE,EXTERNAL RESIDENTIAL CARE,772482,130245330,13/10/2015,"13,801.00",SURREY & BORDERS PARTNERSHIP NHS TRUST,SP0000501
WANDSWORTH COUNCIL,ASC,SOCIAL SERVICES,Revenue,PRIVATE,EXTERNAL RESIDENTIAL CARE,772483,130245330,13/10/2015,"13,801.00",SURREY & BORDERS PARTNERSHIP NHS TRUST,SP0000501
WANDSWORTH COUNCIL,ASC,SOCIAL SERVICES,Revenue,PRIVATE,EXTERNAL RESIDENTIAL CARE,778269,130245330,20/10/2015,"12,364.50",SURREY & BORDERS PARTNERSHIP NHS TRUST,SP0000501
WANDSWORTH COUNCIL,ASC,SOCIAL SERVICES,Revenue,PRIVATE,EXTERNAL RESIDENTIAL CARE,778270,130245330,20/10/2015,"12,365.00",SURREY & BORDERS PARTNERSHIP NHS TRUST,SP0000501
WANDSWORTH COUNCIL,ASC,SOCIAL SERVICES,Revenue,PRIVATE,EXTERNAL RESIDENTIAL CARE,778869,130245330,21/10/2015,"13,801.00",SURREY & BORDERS PARTNERSHIP NHS TRUST,SP0000501
WANDSWORTH COUNCIL,ASC,SOCIAL SERVICES,Revenue,PRIVATE,EXTERNAL RESIDENTIAL CARE,781281,130245330,23/10/2015,"8,982.39",SURREY & BORDERS PARTNERSHIP NHS TRUST,SP0000501
WANDSWORTH COUNCIL,ASC,SOCIAL SERVICES,Revenue,PRIVATE,EXTERNAL RESIDENTIAL CARE,781282,130245330,23/10/2015,"5,622.80",SURREY & BORDERS PARTNERSHIP NHS TRUST,SP0000501
WANDSWORTH COUNCIL,ASC,SOCIAL SERVICES,Revenue,PRIVATE,EXTERNAL RESIDENTIAL CARE,772518,130245330,13/10/2015,"7,342.12",SUSSEX HEALTH CARE,SP0001115
WANDSWORTH COUNCIL,ASC,SOCIAL SERVICES,Revenue,PRIVATE,EXTERNAL RESIDENTIAL CARE,776786,130245330,16/10/2015,"6,186.62",SUSSEX HEALTH CARE,SP0001115
WANDSWORTH COUNCIL,ASC,SOCIAL SERVICES,Revenue,PRIVATE,EXTERNAL RESIDENTIAL CARE,774135,130245330,14/10/2015,"9,015.09",TANGLEWOOD CARE HOME,SP0000167
WANDSWORTH COUNCIL,ASC,SOCIAL SERVICES,Revenue,PRIVATE,EXTERNAL RESIDENTIAL CARE,770476,130245330,09/10/2015,"6,408.96",THE BRANDON TRUST,SP0005337
WANDSWORTH COUNCIL,ASC,SOCIAL SERVICES,Revenue,PRIVATE,EXTERNAL RESIDENTIAL CARE,770477,130245330,09/10/2015,"5,555.20",THE CHESTNUTS,SP0000182
WANDSWORTH COUNCIL,ASC,SOCIAL SERVICES,Revenue,PRIVATE,EXTERNAL RESIDENTIAL CARE,781292,130245330,23/10/2015,"5,555.20",THE CHESTNUTS,SP0000182
WANDSWORTH COUNCIL,ASC,SOCIAL SERVICES,Revenue,PRIVATE,EXTERNAL RESIDENTIAL CARE,772498,130245330,13/10/2015,"5,644.30",THE COMMUNITY CARE COMPANY UK LTD,SP0000576
WANDSWORTH COUNCIL,ASC,SOCIAL SERVICES,Revenue,PRIVATE,EXTERNAL RESIDENTIAL CARE,772499,130245330,13/10/2015,"7,122.03",THE COMMUNITY CARE COMPANY UK LTD,SP0000576
WANDSWORTH COUNCIL,ASC,SOCIAL SERVICES,Revenue,PRIVATE,EXTERNAL RESIDENTIAL CARE,772500,130245330,13/10/2015,"6,002.71",THE COMMUNITY CARE COMPANY UK LTD,SP0000576
WANDSWORTH COUNCIL,ASC,SOCIAL SERVICES,Revenue,PRIVATE,EXTERNAL RESIDENTIAL CARE,772501,130245330,13/10/2015,"6,188.66",THE COMMUNITY CARE COMPANY UK LTD,SP0000576
WANDSWORTH COUNCIL,ASC,SOCIAL SERVICES,Revenue,PRIVATE,EXTERNAL RESIDENTIAL CARE,776825,130245330,16/10/2015,"7,203.16",THE COMMUNITY CARE COMPANY UK LTD,SP0000576
WANDSWORTH COUNCIL,ASC,SOCIAL SERVICES,Revenue,PRIVATE,EXTERNAL RESIDENTIAL CARE,776186,130245330,15/10/2015,"7,708.95",THE DISABILITIES TRUST,SP0000239
WANDSWORTH COUNCIL,ASC,SOCIAL SERVICES,Revenue,PRIVATE,EXTERNAL RESIDENTIAL CARE,771393,130245330,12/10/2015,"2,743.88",THE HOME FARM TRUST LTD,SP0001048
WANDSWORTH COUNCIL,ASC,SOCIAL SERVICES,Revenue,PRIVATE,EXTERNAL RESIDENTIAL CARE,771394,130245330,12/10/2015,"2,457.40",THE HOME FARM TRUST LTD,SP0001048
WANDSWORTH COUNCIL,ASC,SOCIAL SERVICES,Revenue,PRIVATE,EXTERNAL RESIDENTIAL CARE,771395,130245330,12/10/2015,"3,708.20",THE HOME FARM TRUST LTD,SP0001048
WANDSWORTH COUNCIL,ASC,SOCIAL SERVICES,Revenue,PRIVATE,EXTERNAL RESIDENTIAL CARE,771396,130245330,12/10/2015,"3,708.20",THE HOME FARM TRUST LTD,SP0001048
WANDSWORTH COUNCIL,ASC,SOCIAL SERVICES,Revenue,PRIVATE,EXTERNAL RESIDENTIAL CARE,772534,130245330,13/10/2015,"2,743.88",THE HOME FARM TRUST LTD,SP0001048
WANDSWORTH COUNCIL,ASC,SOCIAL SERVICES,Revenue,PRIVATE,EXTERNAL RESIDENTIAL CARE,772535,130245330,13/10/2015,"2,323.00",THE HOME FARM TRUST LTD,SP0001048
WANDSWORTH COUNCIL,ASC,SOCIAL SERVICES,Revenue,PRIVATE,EXTERNAL RESIDENTIAL CARE,772536,130245330,13/10/2015,"2,457.40",THE HOME FARM TRUST LTD,SP0001048
WANDSWORTH COUNCIL,ASC,SOCIAL SERVICES,Revenue,PRIVATE,EXTERNAL RESIDENTIAL CARE,786172,130245330,28/10/2015,"3,957.32",THE LEO TRUST,SP0000908
WANDSWORTH COUNCIL,ASC,SOCIAL SERVICES,Revenue,PRIVATE,EXTERNAL RESIDENTIAL CARE,778874,130245330,21/10/2015,"2,409.63",THE MANOR,SP0000340
WANDSWORTH COUNCIL,ASC,SOCIAL SERVICES,Revenue,PRIVATE,EXTERNAL RESIDENTIAL CARE,778875,130245330,21/10/2015,"2,331.90",THE MANOR,SP0000340
WANDSWORTH COUNCIL,ASC,SOCIAL SERVICES,Revenue,PRIVATE,EXTERNAL RESIDENTIAL CARE,781276,130245330,23/10/2015,"3,099.03",THE MANOR HOUSE,SP0000728
WANDSWORTH COUNCIL,ASC,SOCIAL SERVICES,Revenue,PRIVATE,EXTERNAL RESIDENTIAL CARE,764312,130245330,02/10/2015,"9,223.48",THE MAPLES,SP0000154
WANDSWORTH COUNCIL,ASC,SOCIAL SERVICES,Revenue,PRIVATE,EXTERNAL RESIDENTIAL CARE,781291,130245330,23/10/2015,"9,223.48",THE MAPLES,SP0000154
WANDSWORTH COUNCIL,ASC,SOCIAL SERVICES,Revenue,PRIVATE,EXTERNAL RESIDENTIAL CARE,764665,130245330,02/10/2015,"5,875.84",THE REGARD PARTNERSHIP,SP0000588
WANDSWORTH COUNCIL,ASC,SOCIAL SERVICES,Revenue,PRIVATE,EXTERNAL RESIDENTIAL CARE,770503,130245330,09/10/2015,"7,483.53",THE REGARD PARTNERSHIP,SP0000588
WANDSWORTH COUNCIL,ASC,SOCIAL SERVICES,Revenue,PRIVATE,EXTERNAL RESIDENTIAL CARE,770504,130245330,09/10/2015,"7,044.22",THE REGARD PARTNERSHIP,SP0000588
WANDSWORTH COUNCIL,ASC,SOCIAL SERVICES,Revenue,PRIVATE,EXTERNAL RESIDENTIAL CARE,770505,130245330,09/10/2015,"7,144.16",THE REGARD PARTNERSHIP,SP0000588
WANDSWORTH COUNCIL,ASC,SOCIAL SERVICES,Revenue,PRIVATE,EXTERNAL RESIDENTIAL CARE,770506,130245330,09/10/2015,"6,756.49",THE REGARD PARTNERSHIP,SP0000588
WANDSWORTH COUNCIL,ASC,SOCIAL SERVICES,Revenue,PRIVATE,EXTERNAL RESIDENTIAL CARE,770508,130245330,09/10/2015,"7,872.23",THE REGARD PARTNERSHIP,SP0000588
WANDSWORTH COUNCIL,ASC,SOCIAL SERVICES,Revenue,PRIVATE,EXTERNAL RESIDENTIAL CARE,767736,130245330,07/10/2015,"4,654.32",THE WELL HOUSE,SP0000448
WANDSWORTH COUNCIL,ASC,SOCIAL SERVICES,Revenue,PRIVATE,EXTERNAL RESIDENTIAL CARE,780520,130245330,22/10/2015,"4,667.41",THE WELL HOUSE,SP0000448
WANDSWORTH COUNCIL,ASC,SOCIAL SERVICES,Revenue,PRIVATE,EXTERNAL RESIDENTIAL CARE,780521,130245330,22/10/2015,"4,426.62",THE WELL HOUSE,SP0000448
WANDSWORTH COUNCIL,ASC,SOCIAL SERVICES,Revenue,PRIVATE,EXTERNAL RESIDENTIAL CARE,786150,130245330,28/10/2015,"7,395.80",TOTTERDOWN,SP0001113
WANDSWORTH COUNCIL,ASC,SOCIAL SERVICES,Revenue,PRIVATE,EXTERNAL RESIDENTIAL CARE,786151,130245330,28/10/2015,"3,671.24",TOTTERDOWN,SP0001113
WANDSWORTH COUNCIL,ASC,SOCIAL SERVICES,Revenue,PRIVATE,EXTERNAL RESIDENTIAL CARE,774130,130245330,14/10/2015,"5,308.30",TRACS,SP0000914
WANDSWORTH COUNCIL,ASC,SOCIAL SERVICES,Revenue,PRIVATE,EXTERNAL RESIDENTIAL CARE,780522,130245330,22/10/2015,"5,137.07",TRACS,SP0000914
WANDSWORTH COUNCIL,ASC,SOCIAL SERVICES,Revenue,PRIVATE,EXTERNAL RESIDENTIAL CARE,787324,130245330,29/10/2015,"3,140.56",UNITED RESPONSE,SP0000797
WANDSWORTH COUNCIL,ASC,SOCIAL SERVICES,Revenue,PRIVATE,EXTERNAL RESIDENTIAL CARE,780526,130245330,22/10/2015,"4,835.04",WHITE ROSE CARE,SP0000780
WANDSWORTH COUNCIL,ASC,SOCIAL SERVICES,Revenue,PRIVATE,EXTERNAL RESIDENTIAL CARE,767620,130245330,07/10/2015,"5,133.28",WHITMORE VALE HOUSING ASSOCIATION LTD,SP0000694
WANDSWORTH COUNCIL,ASC,SOCIAL SERVICES,Revenue,PRIVATE,EXTERNAL RESIDENTIAL CARE,785470,130245330,28/10/2015,"5,133.28",WHITMORE VALE HOUSING ASSOCIATION LTD,SP0000694
WANDSWORTH COUNCIL,ASC,SOCIAL SERVICES,Revenue,PRIVATE,EXTERNAL RESIDENTIAL CARE,786163,130245330,28/10/2015,"5,599.36",WINSLOW COURT,SP0000886
WANDSWORTH COUNCIL,ASC,SOCIAL SERVICES,Revenue,PRIVATE,EXTERNAL RESIDENTIAL CARE,786164,130245330,28/10/2015,"5,819.32",WINSLOW COURT,SP0000886
WANDSWORTH COUNCIL,ASC,SOCIAL SERVICES,Revenue,PRIVATE,EXTERNAL RESIDENTIAL CARE,786165,130245330,28/10/2015,"5,599.36",WINSLOW COURT,SP0000886
WANDSWORTH COUNCIL,ASC,SOCIAL SERVICES,Revenue,PRIVATE,EXTERNAL RESIDENTIAL CARE,786166,130245330,28/10/2015,"5,599.36",WINSLOW COURT,SP0000886
WANDSWORTH COUNCIL,ASC,SOCIAL SERVICES,Revenue,PRIVATE,EXTERNAL RESIDENTIAL CARE,786167,130245330,28/10/2015,"5,819.32",WINSLOW COURT,SP0000886
WANDSWORTH COUNCIL,ASC,SOCIAL SERVICES,Revenue,PRIVATE,EXTERNAL RESIDENTIAL CARE,786168,130245330,28/10/2015,"5,819.32",WINSLOW COURT,SP0000886
WANDSWORTH COUNCIL,ASC,SOCIAL SERVICES,Revenue,PRIVATE,ONE TO ONE CARE,778463,130246220,20/10/2015,"2,018.10",ACH OF LONDON LLP,SP0001688
WANDSWORTH COUNCIL,ASC,SOCIAL SERVICES,Revenue,PRIVATE,ONE TO ONE CARE,773001,130246220,13/10/2015,"1,600.44",CORICH COMMUNITY CARE LTD,SP0000915
WANDSWORTH COUNCIL,ASC,SOCIAL SERVICES,Revenue,PRIVATE,ONE TO ONE CARE,780720,130246220,22/10/2015,"3,321.43",CRAEGMOOR OLD RECTORY BREDE PRIORY,SP0001621
WANDSWORTH COUNCIL,ASC,SOCIAL SERVICES,Revenue,PRIVATE,ONE TO ONE CARE,772615,130246220,13/10/2015,"2,884.77",DOWNING (CHERTSEY ROAD) LTD,SP0000959
WANDSWORTH COUNCIL,ASC,SOCIAL SERVICES,Revenue,PRIVATE,ONE TO ONE CARE,767812,130246220,07/10/2015,948.09,FRANCES TAYLOR FOUNDATION,SP0000142
WANDSWORTH COUNCIL,ASC,SOCIAL SERVICES,Revenue,PRIVATE,ONE TO ONE CARE,777058,130246220,16/10/2015,44.25,FRONTIER SUPPORT SERVICES LTD,SP0001132
WANDSWORTH COUNCIL,ASC,SOCIAL SERVICES,Revenue,PRIVATE,ONE TO ONE CARE,777065,130246220,16/10/2015,708.24,FRONTIER SUPPORT SERVICES LTD,SP0001132
WANDSWORTH COUNCIL,ASC,SOCIAL SERVICES,Revenue,PRIVATE,ONE TO ONE CARE,778458,130246220,20/10/2015,"5,237.54",FRONTIER SUPPORT SERVICES LTD,SP0001132
WANDSWORTH COUNCIL,ASC,SOCIAL SERVICES,Revenue,PRIVATE,ONE TO ONE CARE,771455,130246220,12/10/2015,610.68,HARINGEY ASSOCIATION FOR INDEPENDENT LIV,SP0000222
WANDSWORTH COUNCIL,ASC,SOCIAL SERVICES,Revenue,PRIVATE,ONE TO ONE CARE,771464,130246220,12/10/2015,"1,521.49",HARINGEY ASSOCIATION FOR INDEPENDENT LIV,SP0000222
WANDSWORTH COUNCIL,ASC,SOCIAL SERVICES,Revenue,PRIVATE,ONE TO ONE CARE,776329,130246220,15/10/2015,919.44,HARROW MENCAP,SP0001347
WANDSWORTH COUNCIL,ASC,SOCIAL SERVICES,Revenue,PRIVATE,ONE TO ONE CARE,777074,130246220,16/10/2015,802.08,LARKFIELD HALL LTD T/A PEPENBURY,SP0001378
WANDSWORTH COUNCIL,ASC,SOCIAL SERVICES,Revenue,PRIVATE,ONE TO ONE CARE,777075,130246220,16/10/2015,802.08,LARKFIELD HALL LTD T/A PEPENBURY,SP0001378
WANDSWORTH COUNCIL,ASC,SOCIAL SERVICES,Revenue,PRIVATE,ONE TO ONE CARE,764507,130246220,02/10/2015,547.60,LIFEWAYS COMMUNITY CARE LTD,SP0000364
WANDSWORTH COUNCIL,ASC,SOCIAL SERVICES,Revenue,PRIVATE,ONE TO ONE CARE,764508,130246220,02/10/2015,547.60,LIFEWAYS COMMUNITY CARE LTD,SP0000364
WANDSWORTH COUNCIL,ASC,SOCIAL SERVICES,Revenue,PRIVATE,ONE TO ONE CARE,764509,130246220,02/10/2015,547.60,LIFEWAYS COMMUNITY CARE LTD,SP0000364
WANDSWORTH COUNCIL,ASC,SOCIAL SERVICES,Revenue,PRIVATE,ONE TO ONE CARE,764510,130246220,02/10/2015,547.60,LIFEWAYS COMMUNITY CARE LTD,SP0000364
WANDSWORTH COUNCIL,ASC,SOCIAL SERVICES,Revenue,PRIVATE,ONE TO ONE CARE,764511,130246220,02/10/2015,547.60,LIFEWAYS COMMUNITY CARE LTD,SP0000364
WANDSWORTH COUNCIL,ASC,SOCIAL SERVICES,Revenue,PRIVATE,ONE TO ONE CARE,773138,130246220,13/10/2015,547.60,LIFEWAYS COMMUNITY CARE LTD,SP0000364
WANDSWORTH COUNCIL,ASC,SOCIAL SERVICES,Revenue,PRIVATE,ONE TO ONE CARE,766145,130246220,05/10/2015,"1,350.52",MACINTYRE CARE,SP0000473
WANDSWORTH COUNCIL,ASC,SOCIAL SERVICES,Revenue,PRIVATE,ONE TO ONE CARE,766146,130246220,05/10/2015,"1,350.52",MACINTYRE CARE,SP0000473
WANDSWORTH COUNCIL,ASC,SOCIAL SERVICES,Revenue,PRIVATE,ONE TO ONE CARE,766147,130246220,05/10/2015,"1,910.04",MACINTYRE CARE,SP0000473
WANDSWORTH COUNCIL,ASC,SOCIAL SERVICES,Revenue,PRIVATE,ONE TO ONE CARE,766148,130246220,05/10/2015,"1,350.52",MACINTYRE CARE,SP0000473
WANDSWORTH COUNCIL,ASC,SOCIAL SERVICES,Revenue,PRIVATE,ONE TO ONE CARE,766149,130246220,05/10/2015,694.56,MACINTYRE CARE,SP0000473
WANDSWORTH COUNCIL,ASC,SOCIAL SERVICES,Revenue,PRIVATE,ONE TO ONE CARE,764501,130246220,02/10/2015,906.24,METROPOLITAN HOUSING TRUST,SP0000626
WANDSWORTH COUNCIL,ASC,SOCIAL SERVICES,Revenue,PRIVATE,ONE TO ONE CARE,764502,130246220,02/10/2015,"1,317.60",METROPOLITAN HOUSING TRUST,SP0000626
WANDSWORTH COUNCIL,ASC,SOCIAL SERVICES,Revenue,PRIVATE,ONE TO ONE CARE,764503,130246220,02/10/2015,"1,982.40",METROPOLITAN HOUSING TRUST,SP0000626
WANDSWORTH COUNCIL,ASC,SOCIAL SERVICES,Revenue,PRIVATE,ONE TO ONE CARE,764504,130246220,02/10/2015,"1,698.24",METROPOLITAN HOUSING TRUST,SP0000626
WANDSWORTH COUNCIL,ASC,SOCIAL SERVICES,Revenue,PRIVATE,ONE TO ONE CARE,776335,130246220,15/10/2015,"1,698.24",METROPOLITAN HOUSING TRUST,SP0000626
WANDSWORTH COUNCIL,ASC,SOCIAL SERVICES,Revenue,PRIVATE,ONE TO ONE CARE,778459,130246220,20/10/2015,"2,605.44",METROPOLITAN HOUSING TRUST,SP0000626
WANDSWORTH COUNCIL,ASC,SOCIAL SERVICES,Revenue,PRIVATE,ONE TO ONE CARE,780715,130246220,22/10/2015,"2,888.64",METROPOLITAN HOUSING TRUST,SP0000626
WANDSWORTH COUNCIL,ASC,SOCIAL SERVICES,Revenue,PRIVATE,ONE TO ONE CARE,780718,130246220,22/10/2015,966.24,METROPOLITAN HOUSING TRUST,SP0000626
WANDSWORTH COUNCIL,ASC,SOCIAL SERVICES,Revenue,PRIVATE,ONE TO ONE CARE,780719,130246220,22/10/2015,"2,095.68",METROPOLITAN HOUSING TRUST,SP0000626
WANDSWORTH COUNCIL,ASC,SOCIAL SERVICES,Revenue,PRIVATE,ONE TO ONE CARE,782779,130246220,26/10/2015,"2,718.72",METROPOLITAN HOUSING TRUST,SP0000626
WANDSWORTH COUNCIL,ASC,SOCIAL SERVICES,Revenue,PRIVATE,ONE TO ONE CARE,780701,130246220,22/10/2015,966.65,RAINBOW MEDICAL SERVICES,SP0000037
WANDSWORTH COUNCIL,ASC,SOCIAL SERVICES,Revenue,PRIVATE,ONE TO ONE CARE,780702,130246220,22/10/2015,"2,740.15",RAINBOW MEDICAL SERVICES,SP0000037
WANDSWORTH COUNCIL,ASC,SOCIAL SERVICES,Revenue,PRIVATE,ONE TO ONE CARE,780704,130246220,22/10/2015,"1,910.65",RAINBOW MEDICAL SERVICES,SP0000037
WANDSWORTH COUNCIL,ASC,SOCIAL SERVICES,Revenue,PRIVATE,ONE TO ONE CARE,778501,130246220,20/10/2015,627.90,ST MARYS RESIDENTIAL HOME,SP0000215
WANDSWORTH COUNCIL,ASC,SOCIAL SERVICES,Revenue,PRIVATE,ONE TO ONE CARE,766030,130246220,05/10/2015,324.00,THE BRANDON TRUST,SP0005337
WANDSWORTH COUNCIL,ASC,SOCIAL SERVICES,Revenue,PRIVATE,ONE TO ONE CARE,766060,130246220,05/10/2015,"1,987.20",THE BRANDON TRUST,SP0005337
WANDSWORTH COUNCIL,ASC,SOCIAL SERVICES,Revenue,PRIVATE,ONE TO ONE CARE,766061,130246220,05/10/2015,"1,312.00",THE BRANDON TRUST,SP0005337
WANDSWORTH COUNCIL,ASC,SOCIAL SERVICES,Revenue,PRIVATE,ONE TO ONE CARE,766064,130246220,05/10/2015,"2,450.88",THE BRANDON TRUST,SP0005337
WANDSWORTH COUNCIL,ASC,SOCIAL SERVICES,Revenue,PRIVATE,ONE TO ONE CARE,766111,130246220,05/10/2015,600.04,THE BRANDON TRUST,SP0005337
WANDSWORTH COUNCIL,ASC,SOCIAL SERVICES,Revenue,PRIVATE,ONE TO ONE CARE,766122,130246220,05/10/2015,331.20,THE BRANDON TRUST,SP0005337
WANDSWORTH COUNCIL,ASC,SOCIAL SERVICES,Revenue,PRIVATE,ONE TO ONE CARE,766124,130246220,05/10/2015,331.20,THE BRANDON TRUST,SP0005337
WANDSWORTH COUNCIL,ASC,SOCIAL SERVICES,Revenue,PRIVATE,ONE TO ONE CARE,772607,130246220,13/10/2015,"1,164.40",THE COMMUNITY CARE COMPANY UK LTD,SP0000576
WANDSWORTH COUNCIL,ASC,SOCIAL SERVICES,Revenue,PRIVATE,ONE TO ONE CARE,772608,130246220,13/10/2015,"1,327.95",THE COMMUNITY CARE COMPANY UK LTD,SP0000576
WANDSWORTH COUNCIL,ASC,SOCIAL SERVICES,Revenue,PRIVATE,ONE TO ONE CARE,787354,130246220,29/10/2015,"1,597.44",TOTTERDOWN,SP0001113
WANDSWORTH COUNCIL,ASC,SOCIAL SERVICES,Revenue,VOL ASS,SUPPORTED HOUSING PROGRAMME,773127,130248030,13/10/2015,"1,687.76",C M CARE LTD,SP0000455
WANDSWORTH COUNCIL,ASC,SOCIAL SERVICES,Revenue,VOL ASS,SUPPORTED HOUSING PROGRAMME,777055,130248030,16/10/2015,"5,000.00",CAREOLINE,SP0000483
WANDSWORTH COUNCIL,ASC,SOCIAL SERVICES,Revenue,VOL ASS,SUPPORTED HOUSING PROGRAMME,787358,130248030,29/10/2015,"5,000.00",CAREOLINE,SP0000483
WANDSWORTH COUNCIL,ASC,SOCIAL SERVICES,Revenue,VOL ASS,SUPPORTED HOUSING PROGRAMME,773136,130248030,13/10/2015,"8,080.68",CHOICE SUPPORT,SP0000398
WANDSWORTH COUNCIL,ASC,SOCIAL SERVICES,Revenue,VOL ASS,SUPPORTED HOUSING PROGRAMME,777056,130248030,16/10/2015,"1,097.56",FRONTIER SUPPORT SERVICES LTD,SP0001132
WANDSWORTH COUNCIL,ASC,SOCIAL SERVICES,Revenue,VOL ASS,SUPPORTED HOUSING PROGRAMME,777057,130248030,16/10/2015,"15,870.84",FRONTIER SUPPORT SERVICES LTD,SP0001132
WANDSWORTH COUNCIL,ASC,SOCIAL SERVICES,Revenue,VOL ASS,SUPPORTED HOUSING PROGRAMME,777058,130248030,16/10/2015,"1,502.79",FRONTIER SUPPORT SERVICES LTD,SP0001132
WANDSWORTH COUNCIL,ASC,SOCIAL SERVICES,Revenue,VOL ASS,SUPPORTED HOUSING PROGRAMME,777059,130248030,16/10/2015,"1,097.52",FRONTIER SUPPORT SERVICES LTD,SP0001132
WANDSWORTH COUNCIL,ASC,SOCIAL SERVICES,Revenue,VOL ASS,SUPPORTED HOUSING PROGRAMME,777060,130248030,16/10/2015,"1,353.32",FRONTIER SUPPORT SERVICES LTD,SP0001132
WANDSWORTH COUNCIL,ASC,SOCIAL SERVICES,Revenue,VOL ASS,SUPPORTED HOUSING PROGRAMME,777063,130248030,16/10/2015,"1,533.00",FRONTIER SUPPORT SERVICES LTD,SP0001132
WANDSWORTH COUNCIL,ASC,SOCIAL SERVICES,Revenue,VOL ASS,SUPPORTED HOUSING PROGRAMME,777064,130248030,16/10/2015,"1,251.12",FRONTIER SUPPORT SERVICES LTD,SP0001132
WANDSWORTH COUNCIL,ASC,SOCIAL SERVICES,Revenue,VOL ASS,SUPPORTED HOUSING PROGRAMME,777065,130248030,16/10/2015,"1,097.60",FRONTIER SUPPORT SERVICES LTD,SP0001132
WANDSWORTH COUNCIL,ASC,SOCIAL SERVICES,Revenue,VOL ASS,SUPPORTED HOUSING PROGRAMME,777066,130248030,16/10/2015,"1,685.92",FRONTIER SUPPORT SERVICES LTD,SP0001132
WANDSWORTH COUNCIL,ASC,SOCIAL SERVICES,Revenue,VOL ASS,SUPPORTED HOUSING PROGRAMME,777068,130248030,16/10/2015,"1,353.32",FRONTIER SUPPORT SERVICES LTD,SP0001132
WANDSWORTH COUNCIL,ASC,SOCIAL SERVICES,Revenue,VOL ASS,SUPPORTED HOUSING PROGRAMME,777069,130248030,16/10/2015,"1,535.04",FRONTIER SUPPORT SERVICES LTD,SP0001132
WANDSWORTH COUNCIL,ASC,SOCIAL SERVICES,Revenue,VOL ASS,SUPPORTED HOUSING PROGRAMME,777070,130248030,16/10/2015,"1,864.88",FRONTIER SUPPORT SERVICES LTD,SP0001132
WANDSWORTH COUNCIL,ASC,SOCIAL SERVICES,Revenue,VOL ASS,SUPPORTED HOUSING PROGRAMME,777071,130248030,16/10/2015,657.80,FRONTIER SUPPORT SERVICES LTD,SP0001132
WANDSWORTH COUNCIL,ASC,SOCIAL SERVICES,Revenue,VOL ASS,SUPPORTED HOUSING PROGRAMME,777072,130248030,16/10/2015,"2,509.20",FRONTIER SUPPORT SERVICES LTD,SP0001132
WANDSWORTH COUNCIL,ASC,SOCIAL SERVICES,Revenue,VOL ASS,SUPPORTED HOUSING PROGRAMME,770516,130248030,09/10/2015,"1,041.33",HARINGEY ASSOCIATION FOR INDEPENDENT LIV,SP0000222
WANDSWORTH COUNCIL,ASC,SOCIAL SERVICES,Revenue,VOL ASS,SUPPORTED HOUSING PROGRAMME,770517,130248030,09/10/2015,590.10,HARINGEY ASSOCIATION FOR INDEPENDENT LIV,SP0000222
WANDSWORTH COUNCIL,ASC,SOCIAL SERVICES,Revenue,VOL ASS,SUPPORTED HOUSING PROGRAMME,770518,130248030,09/10/2015,"4,059.10",HARINGEY ASSOCIATION FOR INDEPENDENT LIV,SP0000222
WANDSWORTH COUNCIL,ASC,SOCIAL SERVICES,Revenue,VOL ASS,SUPPORTED HOUSING PROGRAMME,770519,130248030,09/10/2015,"1,901.90",HARINGEY ASSOCIATION FOR INDEPENDENT LIV,SP0000222
WANDSWORTH COUNCIL,ASC,SOCIAL SERVICES,Revenue,VOL ASS,SUPPORTED HOUSING PROGRAMME,771415,130248030,12/10/2015,833.06,HARINGEY ASSOCIATION FOR INDEPENDENT LIV,SP0000222
WANDSWORTH COUNCIL,ASC,SOCIAL SERVICES,Revenue,VOL ASS,SUPPORTED HOUSING PROGRAMME,771417,130248030,12/10/2015,"3,247.28",HARINGEY ASSOCIATION FOR INDEPENDENT LIV,SP0000222
WANDSWORTH COUNCIL,ASC,SOCIAL SERVICES,Revenue,VOL ASS,SUPPORTED HOUSING PROGRAMME,771418,130248030,12/10/2015,"1,521.52",HARINGEY ASSOCIATION FOR INDEPENDENT LIV,SP0000222
WANDSWORTH COUNCIL,ASC,SOCIAL SERVICES,Revenue,VOL ASS,SUPPORTED HOUSING PROGRAMME,771420,130248030,12/10/2015,833.06,HARINGEY ASSOCIATION FOR INDEPENDENT LIV,SP0000222
WANDSWORTH COUNCIL,ASC,SOCIAL SERVICES,Revenue,VOL ASS,SUPPORTED HOUSING PROGRAMME,771422,130248030,12/10/2015,"3,247.28",HARINGEY ASSOCIATION FOR INDEPENDENT LIV,SP0000222
WANDSWORTH COUNCIL,ASC,SOCIAL SERVICES,Revenue,VOL ASS,SUPPORTED HOUSING PROGRAMME,771423,130248030,12/10/2015,"1,521.52",HARINGEY ASSOCIATION FOR INDEPENDENT LIV,SP0000222
WANDSWORTH COUNCIL,ASC,SOCIAL SERVICES,Revenue,VOL ASS,SUPPORTED HOUSING PROGRAMME,776325,130248030,15/10/2015,"5,937.12",INDEPENDENCE HOMES LTD,SP0004378
WANDSWORTH COUNCIL,ASC,SOCIAL SERVICES,Revenue,VOL ASS,SUPPORTED HOUSING PROGRAMME,776326,130248030,15/10/2015,"6,215.81",INDEPENDENCE HOMES LTD,SP0004378
WANDSWORTH COUNCIL,ASC,SOCIAL SERVICES,Revenue,VOL ASS,SUPPORTED HOUSING PROGRAMME,782781,130248030,26/10/2015,"11,174.44",LAETUS LODGE,SP0000600
WANDSWORTH COUNCIL,ASC,SOCIAL SERVICES,Revenue,VOL ASS,SUPPORTED HOUSING PROGRAMME,782782,130248030,26/10/2015,"7,822.08",LAETUS LODGE,SP0000600
WANDSWORTH COUNCIL,ASC,SOCIAL SERVICES,Revenue,VOL ASS,SUPPORTED HOUSING PROGRAMME,764513,130248030,02/10/2015,"1,661.73",LIFEWAYS COMMUNITY CARE LTD,SP0000364
WANDSWORTH COUNCIL,ASC,SOCIAL SERVICES,Revenue,VOL ASS,SUPPORTED HOUSING PROGRAMME,764514,130248030,02/10/2015,"1,860.96",LIFEWAYS COMMUNITY CARE LTD,SP0000364
WANDSWORTH COUNCIL,ASC,SOCIAL SERVICES,Revenue,VOL ASS,SUPPORTED HOUSING PROGRAMME,764515,130248030,02/10/2015,"1,860.96",LIFEWAYS COMMUNITY CARE LTD,SP0000364
WANDSWORTH COUNCIL,ASC,SOCIAL SERVICES,Revenue,VOL ASS,SUPPORTED HOUSING PROGRAMME,764516,130248030,02/10/2015,"1,860.96",LIFEWAYS COMMUNITY CARE LTD,SP0000364
WANDSWORTH COUNCIL,ASC,SOCIAL SERVICES,Revenue,VOL ASS,SUPPORTED HOUSING PROGRAMME,764517,130248030,02/10/2015,"1,860.96",LIFEWAYS COMMUNITY CARE LTD,SP0000364
WANDSWORTH COUNCIL,ASC,SOCIAL SERVICES,Revenue,VOL ASS,SUPPORTED HOUSING PROGRAMME,764518,130248030,02/10/2015,"1,860.96",LIFEWAYS COMMUNITY CARE LTD,SP0000364
WANDSWORTH COUNCIL,ASC,SOCIAL SERVICES,Revenue,VOL ASS,SUPPORTED HOUSING PROGRAMME,764519,130248030,02/10/2015,"1,860.96",LIFEWAYS COMMUNITY CARE LTD,SP0000364
WANDSWORTH COUNCIL,ASC,SOCIAL SERVICES,Revenue,VOL ASS,SUPPORTED HOUSING PROGRAMME,772632,130248030,13/10/2015,"3,885.44",LIFEWAYS COMMUNITY CARE LTD,SP0000364
WANDSWORTH COUNCIL,ASC,SOCIAL SERVICES,Revenue,VOL ASS,SUPPORTED HOUSING PROGRAMME,772633,130248030,13/10/2015,"2,596.04",LIFEWAYS COMMUNITY CARE LTD,SP0000364
WANDSWORTH COUNCIL,ASC,SOCIAL SERVICES,Revenue,VOL ASS,SUPPORTED HOUSING PROGRAMME,772634,130248030,13/10/2015,"2,166.24",LIFEWAYS COMMUNITY CARE LTD,SP0000364
WANDSWORTH COUNCIL,ASC,SOCIAL SERVICES,Revenue,VOL ASS,SUPPORTED HOUSING PROGRAMME,772635,130248030,13/10/2015,"2,227.64",LIFEWAYS COMMUNITY CARE LTD,SP0000364
WANDSWORTH COUNCIL,ASC,SOCIAL SERVICES,Revenue,VOL ASS,SUPPORTED HOUSING PROGRAMME,772636,130248030,13/10/2015,"1,982.04",LIFEWAYS COMMUNITY CARE LTD,SP0000364
WANDSWORTH COUNCIL,ASC,SOCIAL SERVICES,Revenue,VOL ASS,SUPPORTED HOUSING PROGRAMME,772637,130248030,13/10/2015,"1,982.04",LIFEWAYS COMMUNITY CARE LTD,SP0000364
WANDSWORTH COUNCIL,ASC,SOCIAL SERVICES,Revenue,VOL ASS,SUPPORTED HOUSING PROGRAMME,772638,130248030,13/10/2015,"2,227.64",LIFEWAYS COMMUNITY CARE LTD,SP0000364
WANDSWORTH COUNCIL,ASC,SOCIAL SERVICES,Revenue,VOL ASS,SUPPORTED HOUSING PROGRAMME,772639,130248030,13/10/2015,"2,411.84",LIFEWAYS COMMUNITY CARE LTD,SP0000364
WANDSWORTH COUNCIL,ASC,SOCIAL SERVICES,Revenue,VOL ASS,SUPPORTED HOUSING PROGRAMME,772640,130248030,13/10/2015,"1,736.44",LIFEWAYS COMMUNITY CARE LTD,SP0000364
WANDSWORTH COUNCIL,ASC,SOCIAL SERVICES,Revenue,VOL ASS,SUPPORTED HOUSING PROGRAMME,772641,130248030,13/10/2015,"1,920.64",LIFEWAYS COMMUNITY CARE LTD,SP0000364
WANDSWORTH COUNCIL,ASC,SOCIAL SERVICES,Revenue,VOL ASS,SUPPORTED HOUSING PROGRAMME,772642,130248030,13/10/2015,"3,210.04",LIFEWAYS COMMUNITY CARE LTD,SP0000364
WANDSWORTH COUNCIL,ASC,SOCIAL SERVICES,Revenue,VOL ASS,SUPPORTED HOUSING PROGRAMME,772643,130248030,13/10/2015,"1,142.40",LIFEWAYS COMMUNITY CARE LTD,SP0000364
WANDSWORTH COUNCIL,ASC,SOCIAL SERVICES,Revenue,VOL ASS,SUPPORTED HOUSING PROGRAMME,772646,130248030,13/10/2015,"3,335.96",LIFEWAYS COMMUNITY CARE LTD,SP0000364
WANDSWORTH COUNCIL,ASC,SOCIAL SERVICES,Revenue,VOL ASS,SUPPORTED HOUSING PROGRAMME,772647,130248030,13/10/2015,"2,394.20",LIFEWAYS COMMUNITY CARE LTD,SP0000364
WANDSWORTH COUNCIL,ASC,SOCIAL SERVICES,Revenue,VOL ASS,SUPPORTED HOUSING PROGRAMME,772648,130248030,13/10/2015,"2,551.16",LIFEWAYS COMMUNITY CARE LTD,SP0000364
WANDSWORTH COUNCIL,ASC,SOCIAL SERVICES,Revenue,VOL ASS,SUPPORTED HOUSING PROGRAMME,772649,130248030,13/10/2015,"3,335.96",LIFEWAYS COMMUNITY CARE LTD,SP0000364
WANDSWORTH COUNCIL,ASC,SOCIAL SERVICES,Revenue,VOL ASS,SUPPORTED HOUSING PROGRAMME,772650,130248030,13/10/2015,"2,603.48",LIFEWAYS COMMUNITY CARE LTD,SP0000364
WANDSWORTH COUNCIL,ASC,SOCIAL SERVICES,Revenue,VOL ASS,SUPPORTED HOUSING PROGRAMME,772651,130248030,13/10/2015,"2,969.72",LIFEWAYS COMMUNITY CARE LTD,SP0000364
WANDSWORTH COUNCIL,ASC,SOCIAL SERVICES,Revenue,VOL ASS,SUPPORTED HOUSING PROGRAMME,772652,130248030,13/10/2015,"2,341.88",LIFEWAYS COMMUNITY CARE LTD,SP0000364
WANDSWORTH COUNCIL,ASC,SOCIAL SERVICES,Revenue,VOL ASS,SUPPORTED HOUSING PROGRAMME,772653,130248030,13/10/2015,"2,551.16",LIFEWAYS COMMUNITY CARE LTD,SP0000364
WANDSWORTH COUNCIL,ASC,SOCIAL SERVICES,Revenue,VOL ASS,SUPPORTED HOUSING PROGRAMME,772654,130248030,13/10/2015,"1,444.56",LIFEWAYS COMMUNITY CARE LTD,SP0000364
WANDSWORTH COUNCIL,ASC,SOCIAL SERVICES,Revenue,VOL ASS,SUPPORTED HOUSING PROGRAMME,772655,130248030,13/10/2015,560.00,LIFEWAYS COMMUNITY CARE LTD,SP0000364
WANDSWORTH COUNCIL,ASC,SOCIAL SERVICES,Revenue,VOL ASS,SUPPORTED HOUSING PROGRAMME,772656,130248030,13/10/2015,"2,025.24",LIFEWAYS COMMUNITY CARE LTD,SP0000364
WANDSWORTH COUNCIL,ASC,SOCIAL SERVICES,Revenue,VOL ASS,SUPPORTED HOUSING PROGRAMME,772657,130248030,13/10/2015,"2,025.24",LIFEWAYS COMMUNITY CARE LTD,SP0000364
WANDSWORTH COUNCIL,ASC,SOCIAL SERVICES,Revenue,VOL ASS,SUPPORTED HOUSING PROGRAMME,772658,130248030,13/10/2015,"2,025.24",LIFEWAYS COMMUNITY CARE LTD,SP0000364
WANDSWORTH COUNCIL,ASC,SOCIAL SERVICES,Revenue,VOL ASS,SUPPORTED HOUSING PROGRAMME,772659,130248030,13/10/2015,"2,244.28",LIFEWAYS COMMUNITY CARE LTD,SP0000364
WANDSWORTH COUNCIL,ASC,SOCIAL SERVICES,Revenue,VOL ASS,SUPPORTED HOUSING PROGRAMME,772660,130248030,13/10/2015,"2,518.08",LIFEWAYS COMMUNITY CARE LTD,SP0000364
WANDSWORTH COUNCIL,ASC,SOCIAL SERVICES,Revenue,VOL ASS,SUPPORTED HOUSING PROGRAMME,772661,130248030,13/10/2015,"2,025.24",LIFEWAYS COMMUNITY CARE LTD,SP0000364
WANDSWORTH COUNCIL,ASC,SOCIAL SERVICES,Revenue,VOL ASS,SUPPORTED HOUSING PROGRAMME,772662,130248030,13/10/2015,"2,244.28",LIFEWAYS COMMUNITY CARE LTD,SP0000364
WANDSWORTH COUNCIL,ASC,SOCIAL SERVICES,Revenue,VOL ASS,SUPPORTED HOUSING PROGRAMME,772663,130248030,13/10/2015,"1,860.96",LIFEWAYS COMMUNITY CARE LTD,SP0000364
WANDSWORTH COUNCIL,ASC,SOCIAL SERVICES,Revenue,VOL ASS,SUPPORTED HOUSING PROGRAMME,772664,130248030,13/10/2015,"2,345.32",LIFEWAYS COMMUNITY CARE LTD,SP0000364
WANDSWORTH COUNCIL,ASC,SOCIAL SERVICES,Revenue,VOL ASS,SUPPORTED HOUSING PROGRAMME,772665,130248030,13/10/2015,"2,867.20",LIFEWAYS COMMUNITY CARE LTD,SP0000364
WANDSWORTH COUNCIL,ASC,SOCIAL SERVICES,Revenue,VOL ASS,SUPPORTED HOUSING PROGRAMME,773139,130248030,13/10/2015,"2,289.04",LIFEWAYS COMMUNITY CARE LTD,SP0000364
WANDSWORTH COUNCIL,ASC,SOCIAL SERVICES,Revenue,VOL ASS,SUPPORTED HOUSING PROGRAMME,785521,130248030,28/10/2015,"7,336.00",LIFEWAYS COMMUNITY CARE LTD,SP0000364
WANDSWORTH COUNCIL,ASC,SOCIAL SERVICES,Revenue,VOL ASS,SUPPORTED HOUSING PROGRAMME,771478,130248030,12/10/2015,784.00,LIVE TOO LIMITED,SP0010112
WANDSWORTH COUNCIL,ASC,SOCIAL SERVICES,Revenue,VOL ASS,SUPPORTED HOUSING PROGRAMME,771480,130248030,12/10/2015,"1,800.00",LIVE TOO LIMITED,SP0010112
WANDSWORTH COUNCIL,ASC,SOCIAL SERVICES,Revenue,VOL ASS,SUPPORTED HOUSING PROGRAMME,771481,130248030,12/10/2015,"1,200.00",LIVE TOO LIMITED,SP0010112
WANDSWORTH COUNCIL,ASC,SOCIAL SERVICES,Revenue,VOL ASS,SUPPORTED HOUSING PROGRAMME,771483,130248030,12/10/2015,"11,760.00",LIVE TOO LIMITED,SP0010112
WANDSWORTH COUNCIL,ASC,SOCIAL SERVICES,Revenue,VOL ASS,SUPPORTED HOUSING PROGRAMME,771485,130248030,12/10/2015,"1,260.00",LIVE TOO LIMITED,SP0010112
WANDSWORTH COUNCIL,ASC,SOCIAL SERVICES,Revenue,VOL ASS,SUPPORTED HOUSING PROGRAMME,771486,130248030,12/10/2015,930.00,LIVE TOO LIMITED,SP0010112
WANDSWORTH COUNCIL,ASC,SOCIAL SERVICES,Revenue,VOL ASS,SUPPORTED HOUSING PROGRAMME,771487,130248030,12/10/2015,"1,440.00",LIVE TOO LIMITED,SP0010112
WANDSWORTH COUNCIL,ASC,SOCIAL SERVICES,Revenue,VOL ASS,SUPPORTED HOUSING PROGRAMME,771488,130248030,12/10/2015,"1,320.00",LIVE TOO LIMITED,SP0010112
WANDSWORTH COUNCIL,ASC,SOCIAL SERVICES,Revenue,VOL ASS,SUPPORTED HOUSING PROGRAMME,771489,130248030,12/10/2015,990.00,LIVE TOO LIMITED,SP0010112
WANDSWORTH COUNCIL,ASC,SOCIAL SERVICES,Revenue,VOL ASS,SUPPORTED HOUSING PROGRAMME,771490,130248030,12/10/2015,720.00,LIVE TOO LIMITED,SP0010112
WANDSWORTH COUNCIL,ASC,SOCIAL SERVICES,Revenue,VOL ASS,SUPPORTED HOUSING PROGRAMME,771491,130248030,12/10/2015,"1,710.00",LIVE TOO LIMITED,SP0010112
WANDSWORTH COUNCIL,ASC,SOCIAL SERVICES,Revenue,VOL ASS,SUPPORTED HOUSING PROGRAMME,771494,130248030,12/10/2015,"2,160.00",LIVE TOO LIMITED,SP0010112
WANDSWORTH COUNCIL,ASC,SOCIAL SERVICES,Revenue,VOL ASS,SUPPORTED HOUSING PROGRAMME,771495,130248030,12/10/2015,"1,350.00",LIVE TOO LIMITED,SP0010112
WANDSWORTH COUNCIL,ASC,SOCIAL SERVICES,Revenue,VOL ASS,SUPPORTED HOUSING PROGRAMME,771498,130248030,12/10/2015,"1,568.00",LIVE TOO LIMITED,SP0010112
WANDSWORTH COUNCIL,ASC,SOCIAL SERVICES,Revenue,VOL ASS,SUPPORTED HOUSING PROGRAMME,771499,130248030,12/10/2015,700.00,LIVE TOO LIMITED,SP0010112
WANDSWORTH COUNCIL,ASC,SOCIAL SERVICES,Revenue,VOL ASS,SUPPORTED HOUSING PROGRAMME,764520,130248030,02/10/2015,617.13,MCCALLUM CARE LTD CAREMARK (WANDSWORTH),SP0006036
WANDSWORTH COUNCIL,ASC,SOCIAL SERVICES,Revenue,VOL ASS,SUPPORTED HOUSING PROGRAMME,764521,130248030,02/10/2015,570.76,MCCALLUM CARE LTD CAREMARK (WANDSWORTH),SP0006036
WANDSWORTH COUNCIL,ASC,SOCIAL SERVICES,Revenue,VOL ASS,SUPPORTED HOUSING PROGRAMME,776324,130248030,15/10/2015,627.14,MCCALLUM CARE LTD CAREMARK (WANDSWORTH),SP0006036
WANDSWORTH COUNCIL,ASC,SOCIAL SERVICES,Revenue,VOL ASS,SUPPORTED HOUSING PROGRAMME,785654,130248030,28/10/2015,570.76,MCCALLUM CARE LTD CAREMARK (WANDSWORTH),SP0006036
WANDSWORTH COUNCIL,ASC,SOCIAL SERVICES,Revenue,VOL ASS,SUPPORTED HOUSING PROGRAMME,764505,130248030,02/10/2015,"4,400.00",MORTON GARDENS,SP0008639
WANDSWORTH COUNCIL,ASC,SOCIAL SERVICES,Revenue,VOL ASS,SUPPORTED HOUSING PROGRAMME,781527,130248030,23/10/2015,"4,400.00",MORTON GARDENS,SP0008639
WANDSWORTH COUNCIL,ASC,SOCIAL SERVICES,Revenue,VOL ASS,SUPPORTED HOUSING PROGRAMME,766156,130248030,05/10/2015,"6,120.00",RELIABLE PERSONNEL LTD,SP0005657
WANDSWORTH COUNCIL,ASC,SOCIAL SERVICES,Revenue,VOL ASS,SUPPORTED HOUSING PROGRAMME,771503,130248030,12/10/2015,"5,274.03",ST ELIZABETHS CENTRE,SP0001019
WANDSWORTH COUNCIL,ASC,SOCIAL SERVICES,Revenue,VOL ASS,SUPPORTED HOUSING PROGRAMME,780714,130248030,22/10/2015,"5,103.90",ST ELIZABETHS CENTRE,SP0001019
WANDSWORTH COUNCIL,ASC,SOCIAL SERVICES,Revenue,VOL ASS,SUPPORTED HOUSING PROGRAMME,766025,130248030,05/10/2015,"1,551.32",THE BRANDON TRUST,SP0005337
WANDSWORTH COUNCIL,ASC,SOCIAL SERVICES,Revenue,VOL ASS,SUPPORTED HOUSING PROGRAMME,766026,130248030,05/10/2015,"1,504.84",THE BRANDON TRUST,SP0005337
WANDSWORTH COUNCIL,ASC,SOCIAL SERVICES,Revenue,VOL ASS,SUPPORTED HOUSING PROGRAMME,766027,130248030,05/10/2015,"1,504.84",THE BRANDON TRUST,SP0005337
WANDSWORTH COUNCIL,ASC,SOCIAL SERVICES,Revenue,VOL ASS,SUPPORTED HOUSING PROGRAMME,766028,130248030,05/10/2015,"1,936.52",THE BRANDON TRUST,SP0005337
WANDSWORTH COUNCIL,ASC,SOCIAL SERVICES,Revenue,VOL ASS,SUPPORTED HOUSING PROGRAMME,766029,130248030,05/10/2015,"7,764.16",THE BRANDON TRUST,SP0005337
WANDSWORTH COUNCIL,ASC,SOCIAL SERVICES,Revenue,VOL ASS,SUPPORTED HOUSING PROGRAMME,766030,130248030,05/10/2015,"2,327.04",THE BRANDON TRUST,SP0005337
WANDSWORTH COUNCIL,ASC,SOCIAL SERVICES,Revenue,VOL ASS,SUPPORTED HOUSING PROGRAMME,766031,130248030,05/10/2015,"5,629.64",THE BRANDON TRUST,SP0005337
WANDSWORTH COUNCIL,ASC,SOCIAL SERVICES,Revenue,VOL ASS,SUPPORTED HOUSING PROGRAMME,766032,130248030,05/10/2015,"2,969.12",THE BRANDON TRUST,SP0005337
WANDSWORTH COUNCIL,ASC,SOCIAL SERVICES,Revenue,VOL ASS,SUPPORTED HOUSING PROGRAMME,766033,130248030,05/10/2015,"2,979.92",THE BRANDON TRUST,SP0005337
WANDSWORTH COUNCIL,ASC,SOCIAL SERVICES,Revenue,VOL ASS,SUPPORTED HOUSING PROGRAMME,766034,130248030,05/10/2015,"2,186.04",THE BRANDON TRUST,SP0005337
WANDSWORTH COUNCIL,ASC,SOCIAL SERVICES,Revenue,VOL ASS,SUPPORTED HOUSING PROGRAMME,766035,130248030,05/10/2015,"2,160.00",THE BRANDON TRUST,SP0005337
WANDSWORTH COUNCIL,ASC,SOCIAL SERVICES,Revenue,VOL ASS,SUPPORTED HOUSING PROGRAMME,766036,130248030,05/10/2015,"1,155.88",THE BRANDON TRUST,SP0005337
WANDSWORTH COUNCIL,ASC,SOCIAL SERVICES,Revenue,VOL ASS,SUPPORTED HOUSING PROGRAMME,766037,130248030,05/10/2015,"1,854.72",THE BRANDON TRUST,SP0005337
WANDSWORTH COUNCIL,ASC,SOCIAL SERVICES,Revenue,VOL ASS,SUPPORTED HOUSING PROGRAMME,766038,130248030,05/10/2015,"1,380.64",THE BRANDON TRUST,SP0005337
WANDSWORTH COUNCIL,ASC,SOCIAL SERVICES,Revenue,VOL ASS,SUPPORTED HOUSING PROGRAMME,766039,130248030,05/10/2015,"1,466.16",THE BRANDON TRUST,SP0005337
WANDSWORTH COUNCIL,ASC,SOCIAL SERVICES,Revenue,VOL ASS,SUPPORTED HOUSING PROGRAMME,766040,130248030,05/10/2015,"1,513.68",THE BRANDON TRUST,SP0005337
WANDSWORTH COUNCIL,ASC,SOCIAL SERVICES,Revenue,VOL ASS,SUPPORTED HOUSING PROGRAMME,766041,130248030,05/10/2015,"1,513.68",THE BRANDON TRUST,SP0005337
WANDSWORTH COUNCIL,ASC,SOCIAL SERVICES,Revenue,VOL ASS,SUPPORTED HOUSING PROGRAMME,766042,130248030,05/10/2015,"2,856.96",THE BRANDON TRUST,SP0005337
WANDSWORTH COUNCIL,ASC,SOCIAL SERVICES,Revenue,VOL ASS,SUPPORTED HOUSING PROGRAMME,766043,130248030,05/10/2015,"2,260.80",THE BRANDON TRUST,SP0005337
WANDSWORTH COUNCIL,ASC,SOCIAL SERVICES,Revenue,VOL ASS,SUPPORTED HOUSING PROGRAMME,766044,130248030,05/10/2015,"3,453.12",THE BRANDON TRUST,SP0005337
WANDSWORTH COUNCIL,ASC,SOCIAL SERVICES,Revenue,VOL ASS,SUPPORTED HOUSING PROGRAMME,766045,130248030,05/10/2015,"2,804.72",THE BRANDON TRUST,SP0005337
WANDSWORTH COUNCIL,ASC,SOCIAL SERVICES,Revenue,VOL ASS,SUPPORTED HOUSING PROGRAMME,766047,130248030,05/10/2015,"1,886.40",THE BRANDON TRUST,SP0005337
WANDSWORTH COUNCIL,ASC,SOCIAL SERVICES,Revenue,VOL ASS,SUPPORTED HOUSING PROGRAMME,766048,130248030,05/10/2015,"1,797.12",THE BRANDON TRUST,SP0005337
WANDSWORTH COUNCIL,ASC,SOCIAL SERVICES,Revenue,VOL ASS,SUPPORTED HOUSING PROGRAMME,766049,130248030,05/10/2015,"2,062.08",THE BRANDON TRUST,SP0005337
WANDSWORTH COUNCIL,ASC,SOCIAL SERVICES,Revenue,VOL ASS,SUPPORTED HOUSING PROGRAMME,766050,130248030,05/10/2015,"3,520.16",THE BRANDON TRUST,SP0005337
WANDSWORTH COUNCIL,ASC,SOCIAL SERVICES,Revenue,VOL ASS,SUPPORTED HOUSING PROGRAMME,766051,130248030,05/10/2015,"2,580.17",THE BRANDON TRUST,SP0005337
WANDSWORTH COUNCIL,ASC,SOCIAL SERVICES,Revenue,VOL ASS,SUPPORTED HOUSING PROGRAMME,766052,130248030,05/10/2015,"3,453.12",THE BRANDON TRUST,SP0005337
WANDSWORTH COUNCIL,ASC,SOCIAL SERVICES,Revenue,VOL ASS,SUPPORTED HOUSING PROGRAMME,766053,130248030,05/10/2015,"1,929.60",THE BRANDON TRUST,SP0005337
WANDSWORTH COUNCIL,ASC,SOCIAL SERVICES,Revenue,VOL ASS,SUPPORTED HOUSING PROGRAMME,766054,130248030,05/10/2015,"2,923.88",THE BRANDON TRUST,SP0005337
WANDSWORTH COUNCIL,ASC,SOCIAL SERVICES,Revenue,VOL ASS,SUPPORTED HOUSING PROGRAMME,766055,130248030,05/10/2015,"4,687.20",THE BRANDON TRUST,SP0005337
WANDSWORTH COUNCIL,ASC,SOCIAL SERVICES,Revenue,VOL ASS,SUPPORTED HOUSING PROGRAMME,766056,130248030,05/10/2015,"4,688.56",THE BRANDON TRUST,SP0005337
WANDSWORTH COUNCIL,ASC,SOCIAL SERVICES,Revenue,VOL ASS,SUPPORTED HOUSING PROGRAMME,766057,130248030,05/10/2015,"3,320.64",THE BRANDON TRUST,SP0005337
WANDSWORTH COUNCIL,ASC,SOCIAL SERVICES,Revenue,VOL ASS,SUPPORTED HOUSING PROGRAMME,766058,130248030,05/10/2015,"3,702.20",THE BRANDON TRUST,SP0005337
WANDSWORTH COUNCIL,ASC,SOCIAL SERVICES,Revenue,VOL ASS,SUPPORTED HOUSING PROGRAMME,766059,130248030,05/10/2015,"3,121.92",THE BRANDON TRUST,SP0005337
WANDSWORTH COUNCIL,ASC,SOCIAL SERVICES,Revenue,VOL ASS,SUPPORTED HOUSING PROGRAMME,766060,130248030,05/10/2015,"5,688.08",THE BRANDON TRUST,SP0005337
WANDSWORTH COUNCIL,ASC,SOCIAL SERVICES,Revenue,VOL ASS,SUPPORTED HOUSING PROGRAMME,766061,130248030,05/10/2015,"5,983.44",THE BRANDON TRUST,SP0005337
WANDSWORTH COUNCIL,ASC,SOCIAL SERVICES,Revenue,VOL ASS,SUPPORTED HOUSING PROGRAMME,766062,130248030,05/10/2015,"4,827.60",THE BRANDON TRUST,SP0005337
WANDSWORTH COUNCIL,ASC,SOCIAL SERVICES,Revenue,VOL ASS,SUPPORTED HOUSING PROGRAMME,766063,130248030,05/10/2015,"6,344.92",THE BRANDON TRUST,SP0005337
WANDSWORTH COUNCIL,ASC,SOCIAL SERVICES,Revenue,VOL ASS,SUPPORTED HOUSING PROGRAMME,766064,130248030,05/10/2015,"3,324.96",THE BRANDON TRUST,SP0005337
WANDSWORTH COUNCIL,ASC,SOCIAL SERVICES,Revenue,VOL ASS,SUPPORTED HOUSING PROGRAMME,766065,130248030,05/10/2015,"2,886.04",THE BRANDON TRUST,SP0005337
WANDSWORTH COUNCIL,ASC,SOCIAL SERVICES,Revenue,VOL ASS,SUPPORTED HOUSING PROGRAMME,766066,130248030,05/10/2015,"2,856.96",THE BRANDON TRUST,SP0005337
WANDSWORTH COUNCIL,ASC,SOCIAL SERVICES,Revenue,VOL ASS,SUPPORTED HOUSING PROGRAMME,766067,130248030,05/10/2015,"2,128.32",THE BRANDON TRUST,SP0005337
WANDSWORTH COUNCIL,ASC,SOCIAL SERVICES,Revenue,VOL ASS,SUPPORTED HOUSING PROGRAMME,766068,130248030,05/10/2015,"6,198.76",THE BRANDON TRUST,SP0005337
WANDSWORTH COUNCIL,ASC,SOCIAL SERVICES,Revenue,VOL ASS,SUPPORTED HOUSING PROGRAMME,766069,130248030,05/10/2015,"1,465.92",THE BRANDON TRUST,SP0005337
WANDSWORTH COUNCIL,ASC,SOCIAL SERVICES,Revenue,VOL ASS,SUPPORTED HOUSING PROGRAMME,766070,130248030,05/10/2015,"1,548.72",THE BRANDON TRUST,SP0005337
WANDSWORTH COUNCIL,ASC,SOCIAL SERVICES,Revenue,VOL ASS,SUPPORTED HOUSING PROGRAMME,766071,130248030,05/10/2015,"2,592.60",THE BRANDON TRUST,SP0005337
WANDSWORTH COUNCIL,ASC,SOCIAL SERVICES,Revenue,VOL ASS,SUPPORTED HOUSING PROGRAMME,766072,130248030,05/10/2015,"2,724.48",THE BRANDON TRUST,SP0005337
WANDSWORTH COUNCIL,ASC,SOCIAL SERVICES,Revenue,VOL ASS,SUPPORTED HOUSING PROGRAMME,766073,130248030,05/10/2015,"3,564.56",THE BRANDON TRUST,SP0005337
WANDSWORTH COUNCIL,ASC,SOCIAL SERVICES,Revenue,VOL ASS,SUPPORTED HOUSING PROGRAMME,766074,130248030,05/10/2015,"3,416.80",THE BRANDON TRUST,SP0005337
WANDSWORTH COUNCIL,ASC,SOCIAL SERVICES,Revenue,VOL ASS,SUPPORTED HOUSING PROGRAMME,766075,130248030,05/10/2015,"2,848.72",THE BRANDON TRUST,SP0005337
WANDSWORTH COUNCIL,ASC,SOCIAL SERVICES,Revenue,VOL ASS,SUPPORTED HOUSING PROGRAMME,766076,130248030,05/10/2015,"2,327.24",THE BRANDON TRUST,SP0005337
WANDSWORTH COUNCIL,ASC,SOCIAL SERVICES,Revenue,VOL ASS,SUPPORTED HOUSING PROGRAMME,766077,130248030,05/10/2015,"2,327.24",THE BRANDON TRUST,SP0005337
WANDSWORTH COUNCIL,ASC,SOCIAL SERVICES,Revenue,VOL ASS,SUPPORTED HOUSING PROGRAMME,766078,130248030,05/10/2015,"2,065.12",THE BRANDON TRUST,SP0005337
WANDSWORTH COUNCIL,ASC,SOCIAL SERVICES,Revenue,VOL ASS,SUPPORTED HOUSING PROGRAMME,766093,130248030,05/10/2015,"1,499.04",THE BRANDON TRUST,SP0005337
WANDSWORTH COUNCIL,ASC,SOCIAL SERVICES,Revenue,VOL ASS,SUPPORTED HOUSING PROGRAMME,766097,130248030,05/10/2015,591.04,THE BRANDON TRUST,SP0005337
WANDSWORTH COUNCIL,ASC,SOCIAL SERVICES,Revenue,VOL ASS,SUPPORTED HOUSING PROGRAMME,766099,130248030,05/10/2015,"1,034.48",THE BRANDON TRUST,SP0005337
WANDSWORTH COUNCIL,ASC,SOCIAL SERVICES,Revenue,VOL ASS,SUPPORTED HOUSING PROGRAMME,766112,130248030,05/10/2015,"1,385.04",THE BRANDON TRUST,SP0005337
WANDSWORTH COUNCIL,ASC,SOCIAL SERVICES,Revenue,VOL ASS,SUPPORTED HOUSING PROGRAMME,766118,130248030,05/10/2015,"1,625.36",THE BRANDON TRUST,SP0005337
WANDSWORTH COUNCIL,ASC,SOCIAL SERVICES,Revenue,VOL ASS,SUPPORTED HOUSING PROGRAMME,766119,130248030,05/10/2015,"1,674.84",THE BRANDON TRUST,SP0005337
WANDSWORTH COUNCIL,ASC,SOCIAL SERVICES,Revenue,VOL ASS,SUPPORTED HOUSING PROGRAMME,766122,130248030,05/10/2015,"2,459.52",THE BRANDON TRUST,SP0005337
WANDSWORTH COUNCIL,ASC,SOCIAL SERVICES,Revenue,VOL ASS,SUPPORTED HOUSING PROGRAMME,766123,130248030,05/10/2015,"3,883.68",THE BRANDON TRUST,SP0005337
WANDSWORTH COUNCIL,ASC,SOCIAL SERVICES,Revenue,VOL ASS,SUPPORTED HOUSING PROGRAMME,766124,130248030,05/10/2015,"2,618.48",THE BRANDON TRUST,SP0005337
WANDSWORTH COUNCIL,ASC,SOCIAL SERVICES,Revenue,VOL ASS,SUPPORTED HOUSING PROGRAMME,766125,130248030,05/10/2015,"1,730.88",THE BRANDON TRUST,SP0005337
WANDSWORTH COUNCIL,ASC,SOCIAL SERVICES,Revenue,VOL ASS,SUPPORTED HOUSING PROGRAMME,766133,130248030,05/10/2015,"1,465.92",THE BRANDON TRUST,SP0005337
WANDSWORTH COUNCIL,ASC,SOCIAL SERVICES,Revenue,VOL ASS,SUPPORTED HOUSING PROGRAMME,766134,130248030,05/10/2015,"2,606.80",THE BRANDON TRUST,SP0005337
WANDSWORTH COUNCIL,ASC,SOCIAL SERVICES,Revenue,VOL ASS,SUPPORTED HOUSING PROGRAMME,766136,130248030,05/10/2015,"2,631.48",THE BRANDON TRUST,SP0005337
WANDSWORTH COUNCIL,ASC,SOCIAL SERVICES,Revenue,VOL ASS,SUPPORTED HOUSING PROGRAMME,766139,130248030,05/10/2015,"4,177.52",THE BRANDON TRUST,SP0005337
WANDSWORTH COUNCIL,ASC,SOCIAL SERVICES,Revenue,VOL ASS,SUPPORTED HOUSING PROGRAMME,766140,130248030,05/10/2015,"6,346.04",THE BRANDON TRUST,SP0005337
WANDSWORTH COUNCIL,ASC,SOCIAL SERVICES,Revenue,VOL ASS,SUPPORTED HOUSING PROGRAMME,770594,130248030,09/10/2015,886.31,THE BRANDON TRUST,SP0005337
WANDSWORTH COUNCIL,ASC,SOCIAL SERVICES,Revenue,VOL ASS,SUPPORTED HOUSING PROGRAMME,770595,130248030,09/10/2015,733.04,THE BRANDON TRUST,SP0005337
WANDSWORTH COUNCIL,ASC,SOCIAL SERVICES,Revenue,VOL ASS,SUPPORTED HOUSING PROGRAMME,773137,130248030,13/10/2015,"3,988.40",THE BRANDON TRUST,SP0005337
WANDSWORTH COUNCIL,ASC,SOCIAL SERVICES,Revenue,DIRECT,DIRECT PAYMENTS,766854,130250380,06/10/2015,"3,176.28",I DECIDE LTD (DIRECT PAYMENT),SP0006159
WANDSWORTH COUNCIL,ASC,SOCIAL SERVICES,Revenue,DIRECT,DIRECT PAYMENTS,766859,130250380,06/10/2015,"1,884.96",I DECIDE LTD (DIRECT PAYMENT),SP0006159
WANDSWORTH COUNCIL,ASC,SOCIAL SERVICES,Revenue,DIRECT,DIRECT PAYMENTS,776339,130250380,15/10/2015,"3,004.72",I DECIDE LTD (DIRECT PAYMENT),SP0006159
WANDSWORTH COUNCIL,ASC,SOCIAL SERVICES,Revenue,DIRECT,DIRECT PAYMENTS,767146,130250380,06/10/2015,838.12,VIBRANCE,SP0005489
WANDSWORTH COUNCIL,ASC,SOCIAL SERVICES,Revenue,DIRECT,DIRECT PAYMENTS,787377,130250380,29/10/2015,"3,682.05",VIBRANCE,SP0005489
WANDSWORTH COUNCIL,ASC,SOCIAL SERVICES,Revenue,DIRECT,DIRECT PAYMENTS,767184,130250380,06/10/2015,"1,665.84",WESTMINSTER MIND,SP0005471
WANDSWORTH COUNCIL,ASC,SOCIAL SERVICES,Revenue,CUSTOMER & CLIENT RECPTS - EXT,CL CONT EXT RESIDEN S28A 100%,772485,130280680,13/10/2015,-505.20,ASHTON CARE,SP0000695
WANDSWORTH COUNCIL,ASC,SOCIAL SERVICES,Revenue,CUSTOMER & CLIENT RECPTS - EXT,CL CONT EXT RESIDEN S28A 100%,772997,130280680,13/10/2015,-505.20,ELEANOR NURSING & SOCIAL CARE,SP0000110
WANDSWORTH COUNCIL,ASC,SOCIAL SERVICES,Revenue,CUSTOMER & CLIENT RECPTS - EXT,CL CONT EXT RESIDEN S28A 100%,772998,130280680,13/10/2015,-505.20,ELEANOR NURSING & SOCIAL CARE,SP0000110
WANDSWORTH COUNCIL,ASC,SOCIAL SERVICES,Revenue,CUSTOMER & CLIENT RECPTS - EXT,CL CONT EXT RESIDEN S28A 100%,776133,130280680,15/10/2015,-531.21,ST MARYS RESIDENTIAL HOME,SP0000215
WANDSWORTH COUNCIL,ASC,SOCIAL SERVICES,Revenue,CUSTOMER & CLIENT RECPTS - EXT,CL CONT EXT RESIDEN S28A 100%,764346,130280680,02/10/2015,-546.05,VOYAGE CARE LTD,SP0000366
WANDSWORTH COUNCIL,ASC,SOCIAL SERVICES,Revenue,CUSTOMER & CLIENT RECPTS - EXT,CL CONT EXT RESIDEN S28A 100%,764646,130280680,02/10/2015,-528.43,VOYAGE CARE LTD,SP0000366
WANDSWORTH COUNCIL,ASC,SOCIAL SERVICES,Revenue,CUSTOMER & CLIENT RECPTS - EXT,CL CONT EXTERNAL RESIDENT S28A,764633,130280710,02/10/2015,-321.80,METROPOLITAN HOUSING TRUST,SP0000626
WANDSWORTH COUNCIL,ASC,SOCIAL SERVICES,Revenue,CUSTOMER & CLIENT RECPTS - EXT,CL CONT EXTERNAL RESIDENT S28A,774139,130280710,14/10/2015,-531.08,METROPOLITAN HOUSING TRUST,SP0000626
WANDSWORTH COUNCIL,ASC,SOCIAL SERVICES,Revenue,CUSTOMER & CLIENT RECPTS - EXT,CL CONT EXTERNAL RESIDENT S28A,782669,130280710,26/10/2015,-531.08,METROPOLITAN HOUSING TRUST,SP0000626
WANDSWORTH COUNCIL,ASC,SOCIAL SERVICES,Revenue,CUSTOMER & CLIENT RECPTS - EXT,CL CONT EXTERNAL RESIDENT S28A,782670,130280710,26/10/2015,-531.08,METROPOLITAN HOUSING TRUST,SP0000626
WANDSWORTH COUNCIL,ASC,SOCIAL SERVICES,Revenue,CUSTOMER & CLIENT RECPTS - EXT,CL CONT EXTERNAL RESIDENT S28A,781281,130280710,23/10/2015,-321.80,SURREY & BORDERS PARTNERSHIP NHS TRUST,SP0000501
WANDSWORTH COUNCIL,ASC,SOCIAL SERVICES,Revenue,CUSTOMER & CLIENT RECPTS - EXT,CL CONT EXTERNAL RESIDENT S28A,772496,130280710,13/10/2015,-559.33,THE COMMUNITY CARE COMPANY UK LTD,SP0000576
WANDSWORTH COUNCIL,ASC,SOCIAL SERVICES,Revenue,CUSTOMER & CLIENT RECPTS - EXT,CL CONT EXTERNAL RESIDENTIAL,776859,130280720,16/10/2015,-356.28,229 MITCHAM LANE LTD,SP0000884
WANDSWORTH COUNCIL,ASC,SOCIAL SERVICES,Revenue,CUSTOMER & CLIENT RECPTS - EXT,CL CONT EXTERNAL RESIDENTIAL,776860,130280720,16/10/2015,-356.28,229 MITCHAM LANE LTD,SP0000884
WANDSWORTH COUNCIL,ASC,SOCIAL SERVICES,Revenue,CUSTOMER & CLIENT RECPTS - EXT,CL CONT EXTERNAL RESIDENTIAL,778871,130280720,21/10/2015,-287.32,229 MITCHAM LANE LTD,SP0000884
WANDSWORTH COUNCIL,ASC,SOCIAL SERVICES,Revenue,CUSTOMER & CLIENT RECPTS - EXT,CL CONT EXTERNAL RESIDENTIAL,778873,130280720,21/10/2015,-57.04,229 MITCHAM LANE LTD,SP0000884
WANDSWORTH COUNCIL,ASC,SOCIAL SERVICES,Revenue,CUSTOMER & CLIENT RECPTS - EXT,CL CONT EXTERNAL RESIDENTIAL,778271,130280720,20/10/2015,-146.15,ACH OF LONDON LLP,SP0001688
WANDSWORTH COUNCIL,ASC,SOCIAL SERVICES,Revenue,CUSTOMER & CLIENT RECPTS - EXT,CL CONT EXTERNAL RESIDENTIAL,778272,130280720,20/10/2015,-443.52,ACH OF LONDON LLP,SP0001688
WANDSWORTH COUNCIL,ASC,SOCIAL SERVICES,Revenue,CUSTOMER & CLIENT RECPTS - EXT,CL CONT EXTERNAL RESIDENTIAL,770482,130280720,09/10/2015,-356.28,AIMS CARE PARTNERSHIP,SP0000561
WANDSWORTH COUNCIL,ASC,SOCIAL SERVICES,Revenue,CUSTOMER & CLIENT RECPTS - EXT,CL CONT EXTERNAL RESIDENTIAL,772517,130280720,13/10/2015,-275.50,ALLIED CARE (MHS) LTD,SP0001069
WANDSWORTH COUNCIL,ASC,SOCIAL SERVICES,Revenue,CUSTOMER & CLIENT RECPTS - EXT,CL CONT EXTERNAL RESIDENTIAL,772525,130280720,13/10/2015,-356.28,ALLIED CARE (MHS) LTD,SP0001069
WANDSWORTH COUNCIL,ASC,SOCIAL SERVICES,Revenue,CUSTOMER & CLIENT RECPTS - EXT,CL CONT EXTERNAL RESIDENTIAL,772516,130280720,13/10/2015,-356.28,ASHCROFT CARE SERVICES,SP0000872
WANDSWORTH COUNCIL,ASC,SOCIAL SERVICES,Revenue,CUSTOMER & CLIENT RECPTS - EXT,CL CONT EXTERNAL RESIDENTIAL,772520,130280720,13/10/2015,-405.65,BROOKDALE CARE,SP0000282
WANDSWORTH COUNCIL,ASC,SOCIAL SERVICES,Revenue,CUSTOMER & CLIENT RECPTS - EXT,CL CONT EXTERNAL RESIDENTIAL,772486,130280720,13/10/2015,-638.48,CAMERON LODGE LIMITED,SP0000271
WANDSWORTH COUNCIL,ASC,SOCIAL SERVICES,Revenue,CUSTOMER & CLIENT RECPTS - EXT,CL CONT EXTERNAL RESIDENTIAL,781283,130280720,23/10/2015,-559.33,CARE UNLIMITED GROUP LTD,SP0001575
WANDSWORTH COUNCIL,ASC,SOCIAL SERVICES,Revenue,CUSTOMER & CLIENT RECPTS - EXT,CL CONT EXTERNAL RESIDENTIAL,786174,130280720,28/10/2015,-356.28,CENTRUST CARE HOMES LTD,SP0000141
WANDSWORTH COUNCIL,ASC,SOCIAL SERVICES,Revenue,CUSTOMER & CLIENT RECPTS - EXT,CL CONT EXTERNAL RESIDENTIAL,772972,130280720,13/10/2015,-400.60,CHATSWORTH CARE,SP0000831
WANDSWORTH COUNCIL,ASC,SOCIAL SERVICES,Revenue,CUSTOMER & CLIENT RECPTS - EXT,CL CONT EXTERNAL RESIDENTIAL,772973,130280720,13/10/2015,-405.65,CHATSWORTH CARE,SP0000831
WANDSWORTH COUNCIL,ASC,SOCIAL SERVICES,Revenue,CUSTOMER & CLIENT RECPTS - EXT,CL CONT EXTERNAL RESIDENTIAL,778870,130280720,21/10/2015,-392.58,CHATSWORTH CARE,SP0000831
WANDSWORTH COUNCIL,ASC,SOCIAL SERVICES,Revenue,CUSTOMER & CLIENT RECPTS - EXT,CL CONT EXTERNAL RESIDENTIAL,776819,130280720,16/10/2015,-577.48,CHOICE CARE GROUP,SP0001367
WANDSWORTH COUNCIL,ASC,SOCIAL SERVICES,Revenue,CUSTOMER & CLIENT RECPTS - EXT,CL CONT EXTERNAL RESIDENTIAL,782653,130280720,26/10/2015,-400.60,CMG HOMES LTD,SP0000075
WANDSWORTH COUNCIL,ASC,SOCIAL SERVICES,Revenue,CUSTOMER & CLIENT RECPTS - EXT,CL CONT EXTERNAL RESIDENTIAL,782654,130280720,26/10/2015,-400.60,CMG HOMES LTD,SP0000075
WANDSWORTH COUNCIL,ASC,SOCIAL SERVICES,Revenue,CUSTOMER & CLIENT RECPTS - EXT,CL CONT EXTERNAL RESIDENTIAL,782656,130280720,26/10/2015,-132.00,CMG HOMES LTD,SP0000075
WANDSWORTH COUNCIL,ASC,SOCIAL SERVICES,Revenue,CUSTOMER & CLIENT RECPTS - EXT,CL CONT EXTERNAL RESIDENTIAL,782657,130280720,26/10/2015,-321.80,CMG HOMES LTD,SP0000075
WANDSWORTH COUNCIL,ASC,SOCIAL SERVICES,Revenue,CUSTOMER & CLIENT RECPTS - EXT,CL CONT EXTERNAL RESIDENTIAL,782658,130280720,26/10/2015,-321.80,CMG HOMES LTD,SP0000075
WANDSWORTH COUNCIL,ASC,SOCIAL SERVICES,Revenue,CUSTOMER & CLIENT RECPTS - EXT,CL CONT EXTERNAL RESIDENTIAL,782659,130280720,26/10/2015,-321.80,CMG HOMES LTD,SP0000075
WANDSWORTH COUNCIL,ASC,SOCIAL SERVICES,Revenue,CUSTOMER & CLIENT RECPTS - EXT,CL CONT EXTERNAL RESIDENTIAL,782660,130280720,26/10/2015,-505.20,CMG HOMES LTD,SP0000075
WANDSWORTH COUNCIL,ASC,SOCIAL SERVICES,Revenue,CUSTOMER & CLIENT RECPTS - EXT,CL CONT EXTERNAL RESIDENTIAL,782661,130280720,26/10/2015,-275.83,CMG HOMES LTD,SP0000075
WANDSWORTH COUNCIL,ASC,SOCIAL SERVICES,Revenue,CUSTOMER & CLIENT RECPTS - EXT,CL CONT EXTERNAL RESIDENTIAL,785461,130280720,28/10/2015,-321.80,CMG HOMES LTD,SP0000075
WANDSWORTH COUNCIL,ASC,SOCIAL SERVICES,Revenue,CUSTOMER & CLIENT RECPTS - EXT,CL CONT EXTERNAL RESIDENTIAL,781274,130280720,23/10/2015,-356.28,COUNTRY CARE,SP0000090
WANDSWORTH COUNCIL,ASC,SOCIAL SERVICES,Revenue,CUSTOMER & CLIENT RECPTS - EXT,CL CONT EXTERNAL RESIDENTIAL,770888,130280720,09/10/2015,-996.44,COUNTRY COURT CARE,SP0009215
WANDSWORTH COUNCIL,ASC,SOCIAL SERVICES,Revenue,CUSTOMER & CLIENT RECPTS - EXT,CL CONT EXTERNAL RESIDENTIAL,782667,130280720,26/10/2015,-321.80,CRAEGMOOR FACILITIES CO LTD,SP0000306
WANDSWORTH COUNCIL,ASC,SOCIAL SERVICES,Revenue,CUSTOMER & CLIENT RECPTS - EXT,CL CONT EXTERNAL RESIDENTIAL,780523,130280720,22/10/2015,-318.42,CRAEGMOOR OLD RECTORY BREDE PRIORY,SP0001621
WANDSWORTH COUNCIL,ASC,SOCIAL SERVICES,Revenue,CUSTOMER & CLIENT RECPTS - EXT,CL CONT EXTERNAL RESIDENTIAL,776813,130280720,16/10/2015,-321.80,DOLPHIN HOMES LTD,SP0000331
WANDSWORTH COUNCIL,ASC,SOCIAL SERVICES,Revenue,CUSTOMER & CLIENT RECPTS - EXT,CL CONT EXTERNAL RESIDENTIAL,776814,130280720,16/10/2015,-321.80,DOLPHIN HOMES LTD,SP0000331
WANDSWORTH COUNCIL,ASC,SOCIAL SERVICES,Revenue,CUSTOMER & CLIENT RECPTS - EXT,CL CONT EXTERNAL RESIDENTIAL,772522,130280720,13/10/2015,-353.62,DOWNING (CHERTSEY ROAD) LTD,SP0000959
WANDSWORTH COUNCIL,ASC,SOCIAL SERVICES,Revenue,CUSTOMER & CLIENT RECPTS - EXT,CL CONT EXTERNAL RESIDENTIAL,772999,130280720,13/10/2015,-400.60,ENHAM,SP0005845
WANDSWORTH COUNCIL,ASC,SOCIAL SERVICES,Revenue,CUSTOMER & CLIENT RECPTS - EXT,CL CONT EXTERNAL RESIDENTIAL,776177,130280720,15/10/2015,-356.28,ESSEX CARE CONSORTIUM,SP0000387
WANDSWORTH COUNCIL,ASC,SOCIAL SERVICES,Revenue,CUSTOMER & CLIENT RECPTS - EXT,CL CONT EXTERNAL RESIDENTIAL,765934,130280720,05/10/2015,-333.29,EVERGREEN PARTNERSHIP,SP0000597
WANDSWORTH COUNCIL,ASC,SOCIAL SERVICES,Revenue,CUSTOMER & CLIENT RECPTS - EXT,CL CONT EXTERNAL RESIDENTIAL,776866,130280720,16/10/2015,-356.61,FIRCROFT,SP0000840
WANDSWORTH COUNCIL,ASC,SOCIAL SERVICES,Revenue,CUSTOMER & CLIENT RECPTS - EXT,CL CONT EXTERNAL RESIDENTIAL,776867,130280720,16/10/2015,-368.50,FIRCROFT,SP0000840
WANDSWORTH COUNCIL,ASC,SOCIAL SERVICES,Revenue,CUSTOMER & CLIENT RECPTS - EXT,CL CONT EXTERNAL RESIDENTIAL,776140,130280720,15/10/2015,-373.77,FRANCES TAYLOR FOUNDATION,SP0000142
WANDSWORTH COUNCIL,ASC,SOCIAL SERVICES,Revenue,CUSTOMER & CLIENT RECPTS - EXT,CL CONT EXTERNAL RESIDENTIAL,776141,130280720,15/10/2015,-344.79,FRANCES TAYLOR FOUNDATION,SP0000142
WANDSWORTH COUNCIL,ASC,SOCIAL SERVICES,Revenue,CUSTOMER & CLIENT RECPTS - EXT,CL CONT EXTERNAL RESIDENTIAL,776142,130280720,15/10/2015,-429.21,FRANCES TAYLOR FOUNDATION,SP0000142
WANDSWORTH COUNCIL,ASC,SOCIAL SERVICES,Revenue,CUSTOMER & CLIENT RECPTS - EXT,CL CONT EXTERNAL RESIDENTIAL,776143,130280720,15/10/2015,-443.52,FRANCES TAYLOR FOUNDATION,SP0000142
WANDSWORTH COUNCIL,ASC,SOCIAL SERVICES,Revenue,CUSTOMER & CLIENT RECPTS - EXT,CL CONT EXTERNAL RESIDENTIAL,776868,130280720,16/10/2015,-356.28,FRANCES TAYLOR FOUNDATION,SP0000142
WANDSWORTH COUNCIL,ASC,SOCIAL SERVICES,Revenue,CUSTOMER & CLIENT RECPTS - EXT,CL CONT EXTERNAL RESIDENTIAL,780518,130280720,22/10/2015,-321.80,FREEWAYS TRUST LTD,SP0000793
WANDSWORTH COUNCIL,ASC,SOCIAL SERVICES,Revenue,CUSTOMER & CLIENT RECPTS - EXT,CL CONT EXTERNAL RESIDENTIAL,765913,130280720,05/10/2015,-506.88,GLENCARE GROUP,SP0000791
WANDSWORTH COUNCIL,ASC,SOCIAL SERVICES,Revenue,CUSTOMER & CLIENT RECPTS - EXT,CL CONT EXTERNAL RESIDENTIAL,767726,130280720,07/10/2015,-321.80,GLENCARE GROUP,SP0000791
WANDSWORTH COUNCIL,ASC,SOCIAL SERVICES,Revenue,CUSTOMER & CLIENT RECPTS - EXT,CL CONT EXTERNAL RESIDENTIAL,767727,130280720,07/10/2015,-321.80,GLENCARE GROUP,SP0000791
WANDSWORTH COUNCIL,ASC,SOCIAL SERVICES,Revenue,CUSTOMER & CLIENT RECPTS - EXT,CL CONT EXTERNAL RESIDENTIAL,785496,130280720,28/10/2015,-559.33,HEYWOODS GRANGE LTD,SP0000361
WANDSWORTH COUNCIL,ASC,SOCIAL SERVICES,Revenue,CUSTOMER & CLIENT RECPTS - EXT,CL CONT EXTERNAL RESIDENTIAL,776784,130280720,16/10/2015,-356.28,HOME FROM HOME CARE LIMITED,SP0001373
WANDSWORTH COUNCIL,ASC,SOCIAL SERVICES,Revenue,CUSTOMER & CLIENT RECPTS - EXT,CL CONT EXTERNAL RESIDENTIAL,786159,130280720,28/10/2015,-380.63,IN CHORUS LTD,SP0000129
WANDSWORTH COUNCIL,ASC,SOCIAL SERVICES,Revenue,CUSTOMER & CLIENT RECPTS - EXT,CL CONT EXTERNAL RESIDENTIAL,786160,130280720,28/10/2015,-368.36,IN CHORUS LTD,SP0000129
WANDSWORTH COUNCIL,ASC,SOCIAL SERVICES,Revenue,CUSTOMER & CLIENT RECPTS - EXT,CL CONT EXTERNAL RESIDENTIAL,785488,130280720,28/10/2015,-321.80,LAETUS LODGE,SP0000600
WANDSWORTH COUNCIL,ASC,SOCIAL SERVICES,Revenue,CUSTOMER & CLIENT RECPTS - EXT,CL CONT EXTERNAL RESIDENTIAL,785490,130280720,28/10/2015,-400.60,LAETUS LODGE,SP0000600
WANDSWORTH COUNCIL,ASC,SOCIAL SERVICES,Revenue,CUSTOMER & CLIENT RECPTS - EXT,CL CONT EXTERNAL RESIDENTIAL,785492,130280720,28/10/2015,-366.40,LAETUS LODGE,SP0000600
WANDSWORTH COUNCIL,ASC,SOCIAL SERVICES,Revenue,CUSTOMER & CLIENT RECPTS - EXT,CL CONT EXTERNAL RESIDENTIAL,785493,130280720,28/10/2015,-321.80,LAETUS LODGE,SP0000600
WANDSWORTH COUNCIL,ASC,SOCIAL SERVICES,Revenue,CUSTOMER & CLIENT RECPTS - EXT,CL CONT EXTERNAL RESIDENTIAL,785494,130280720,28/10/2015,-319.40,LAETUS LODGE,SP0000600
WANDSWORTH COUNCIL,ASC,SOCIAL SERVICES,Revenue,CUSTOMER & CLIENT RECPTS - EXT,CL CONT EXTERNAL RESIDENTIAL,776864,130280720,16/10/2015,-366.40,LARKFIELD HALL LTD T/A PEPENBURY,SP0001378
WANDSWORTH COUNCIL,ASC,SOCIAL SERVICES,Revenue,CUSTOMER & CLIENT RECPTS - EXT,CL CONT EXTERNAL RESIDENTIAL,776865,130280720,16/10/2015,-366.40,LARKFIELD HALL LTD T/A PEPENBURY,SP0001378
WANDSWORTH COUNCIL,ASC,SOCIAL SERVICES,Revenue,CUSTOMER & CLIENT RECPTS - EXT,CL CONT EXTERNAL RESIDENTIAL,764658,130280720,02/10/2015,-344.79,LEONARD CHESHIRE,SP0000976
WANDSWORTH COUNCIL,ASC,SOCIAL SERVICES,Revenue,CUSTOMER & CLIENT RECPTS - EXT,CL CONT EXTERNAL RESIDENTIAL,776807,130280720,16/10/2015,-321.80,LIVABILITY,SP0000669
WANDSWORTH COUNCIL,ASC,SOCIAL SERVICES,Revenue,CUSTOMER & CLIENT RECPTS - EXT,CL CONT EXTERNAL RESIDENTIAL,764314,130280720,02/10/2015,-405.66,LONDON CARE PARTNERSHIP LTD,SP0001138
WANDSWORTH COUNCIL,ASC,SOCIAL SERVICES,Revenue,CUSTOMER & CLIENT RECPTS - EXT,CL CONT EXTERNAL RESIDENTIAL,764315,130280720,02/10/2015,-405.66,LONDON CARE PARTNERSHIP LTD,SP0001138
WANDSWORTH COUNCIL,ASC,SOCIAL SERVICES,Revenue,CUSTOMER & CLIENT RECPTS - EXT,CL CONT EXTERNAL RESIDENTIAL,764316,130280720,02/10/2015,-392.57,LONDON CARE PARTNERSHIP LTD,SP0001138
WANDSWORTH COUNCIL,ASC,SOCIAL SERVICES,Revenue,CUSTOMER & CLIENT RECPTS - EXT,CL CONT EXTERNAL RESIDENTIAL,773022,130280720,13/10/2015,-405.65,LONDON CARE PARTNERSHIP LTD,SP0001138
WANDSWORTH COUNCIL,ASC,SOCIAL SERVICES,Revenue,CUSTOMER & CLIENT RECPTS - EXT,CL CONT EXTERNAL RESIDENTIAL,773023,130280720,13/10/2015,-299.01,LONDON CARE PARTNERSHIP LTD,SP0001138
WANDSWORTH COUNCIL,ASC,SOCIAL SERVICES,Revenue,CUSTOMER & CLIENT RECPTS - EXT,CL CONT EXTERNAL RESIDENTIAL,773024,130280720,13/10/2015,-356.28,LONDON CARE PARTNERSHIP LTD,SP0001138
WANDSWORTH COUNCIL,ASC,SOCIAL SERVICES,Revenue,CUSTOMER & CLIENT RECPTS - EXT,CL CONT EXTERNAL RESIDENTIAL,773025,130280720,13/10/2015,-443.52,LONDON CARE PARTNERSHIP LTD,SP0001138
WANDSWORTH COUNCIL,ASC,SOCIAL SERVICES,Revenue,CUSTOMER & CLIENT RECPTS - EXT,CL CONT EXTERNAL RESIDENTIAL,773026,130280720,13/10/2015,-213.45,LONDON CARE PARTNERSHIP LTD,SP0001138
WANDSWORTH COUNCIL,ASC,SOCIAL SERVICES,Revenue,CUSTOMER & CLIENT RECPTS - EXT,CL CONT EXTERNAL RESIDENTIAL,773027,130280720,13/10/2015,-405.65,LONDON CARE PARTNERSHIP LTD,SP0001138
WANDSWORTH COUNCIL,ASC,SOCIAL SERVICES,Revenue,CUSTOMER & CLIENT RECPTS - EXT,CL CONT EXTERNAL RESIDENTIAL,776135,130280720,15/10/2015,-429.21,LONDON CARE PARTNERSHIP LTD,SP0001138
WANDSWORTH COUNCIL,ASC,SOCIAL SERVICES,Revenue,CUSTOMER & CLIENT RECPTS - EXT,CL CONT EXTERNAL RESIDENTIAL,774134,130280720,14/10/2015,-321.80,LOTUS CARE HOME LTD,SP0001006
WANDSWORTH COUNCIL,ASC,SOCIAL SERVICES,Revenue,CUSTOMER & CLIENT RECPTS - EXT,CL CONT EXTERNAL RESIDENTIAL,786148,130280720,28/10/2015,-321.80,LOTUS CARE HOME LTD,SP0001006
WANDSWORTH COUNCIL,ASC,SOCIAL SERVICES,Revenue,CUSTOMER & CLIENT RECPTS - EXT,CL CONT EXTERNAL RESIDENTIAL,764639,130280720,02/10/2015,-321.80,LOVING CARE LTD,SP0000670
WANDSWORTH COUNCIL,ASC,SOCIAL SERVICES,Revenue,CUSTOMER & CLIENT RECPTS - EXT,CL CONT EXTERNAL RESIDENTIAL,764640,130280720,02/10/2015,-321.80,LOVING CARE LTD,SP0000670
WANDSWORTH COUNCIL,ASC,SOCIAL SERVICES,Revenue,CUSTOMER & CLIENT RECPTS - EXT,CL CONT EXTERNAL RESIDENTIAL,764641,130280720,02/10/2015,-339.36,LOVING CARE LTD,SP0000670
WANDSWORTH COUNCIL,ASC,SOCIAL SERVICES,Revenue,CUSTOMER & CLIENT RECPTS - EXT,CL CONT EXTERNAL RESIDENTIAL,764642,130280720,02/10/2015,-321.80,LOVING CARE LTD,SP0000670
WANDSWORTH COUNCIL,ASC,SOCIAL SERVICES,Revenue,CUSTOMER & CLIENT RECPTS - EXT,CL CONT EXTERNAL RESIDENTIAL,764643,130280720,02/10/2015,-321.80,LOVING CARE LTD,SP0000670
WANDSWORTH COUNCIL,ASC,SOCIAL SERVICES,Revenue,CUSTOMER & CLIENT RECPTS - EXT,CL CONT EXTERNAL RESIDENTIAL,764644,130280720,02/10/2015,-321.80,LOVING CARE LTD,SP0000670
WANDSWORTH COUNCIL,ASC,SOCIAL SERVICES,Revenue,CUSTOMER & CLIENT RECPTS - EXT,CL CONT EXTERNAL RESIDENTIAL,782671,130280720,26/10/2015,-310.31,LOVING CARE LTD,SP0000670
WANDSWORTH COUNCIL,ASC,SOCIAL SERVICES,Revenue,CUSTOMER & CLIENT RECPTS - EXT,CL CONT EXTERNAL RESIDENTIAL,765914,130280720,05/10/2015,-321.80,MACINTYRE CARE,SP0000473
WANDSWORTH COUNCIL,ASC,SOCIAL SERVICES,Revenue,CUSTOMER & CLIENT RECPTS - EXT,CL CONT EXTERNAL RESIDENTIAL,765915,130280720,05/10/2015,-321.80,MACINTYRE CARE,SP0000473
WANDSWORTH COUNCIL,ASC,SOCIAL SERVICES,Revenue,CUSTOMER & CLIENT RECPTS - EXT,CL CONT EXTERNAL RESIDENTIAL,765916,130280720,05/10/2015,-505.20,MACINTYRE CARE,SP0000473
WANDSWORTH COUNCIL,ASC,SOCIAL SERVICES,Revenue,CUSTOMER & CLIENT RECPTS - EXT,CL CONT EXTERNAL RESIDENTIAL,765918,130280720,05/10/2015,-321.80,MACINTYRE CARE,SP0000473
WANDSWORTH COUNCIL,ASC,SOCIAL SERVICES,Revenue,CUSTOMER & CLIENT RECPTS - EXT,CL CONT EXTERNAL RESIDENTIAL,765919,130280720,05/10/2015,-321.80,MACINTYRE CARE,SP0000473
WANDSWORTH COUNCIL,ASC,SOCIAL SERVICES,Revenue,CUSTOMER & CLIENT RECPTS - EXT,CL CONT EXTERNAL RESIDENTIAL,765920,130280720,05/10/2015,-366.40,MACINTYRE CARE,SP0000473
WANDSWORTH COUNCIL,ASC,SOCIAL SERVICES,Revenue,CUSTOMER & CLIENT RECPTS - EXT,CL CONT EXTERNAL RESIDENTIAL,765921,130280720,05/10/2015,-321.80,MACINTYRE CARE,SP0000473
WANDSWORTH COUNCIL,ASC,SOCIAL SERVICES,Revenue,CUSTOMER & CLIENT RECPTS - EXT,CL CONT EXTERNAL RESIDENTIAL,765922,130280720,05/10/2015,-321.80,MACINTYRE CARE,SP0000473
WANDSWORTH COUNCIL,ASC,SOCIAL SERVICES,Revenue,CUSTOMER & CLIENT RECPTS - EXT,CL CONT EXTERNAL RESIDENTIAL,765923,130280720,05/10/2015,-321.80,MACINTYRE CARE,SP0000473
WANDSWORTH COUNCIL,ASC,SOCIAL SERVICES,Revenue,CUSTOMER & CLIENT RECPTS - EXT,CL CONT EXTERNAL RESIDENTIAL,765924,130280720,05/10/2015,-321.80,MACINTYRE CARE,SP0000473
WANDSWORTH COUNCIL,ASC,SOCIAL SERVICES,Revenue,CUSTOMER & CLIENT RECPTS - EXT,CL CONT EXTERNAL RESIDENTIAL,765926,130280720,05/10/2015,-409.80,MACINTYRE CARE,SP0000473
WANDSWORTH COUNCIL,ASC,SOCIAL SERVICES,Revenue,CUSTOMER & CLIENT RECPTS - EXT,CL CONT EXTERNAL RESIDENTIAL,765927,130280720,05/10/2015,-321.80,MACINTYRE CARE,SP0000473
WANDSWORTH COUNCIL,ASC,SOCIAL SERVICES,Revenue,CUSTOMER & CLIENT RECPTS - EXT,CL CONT EXTERNAL RESIDENTIAL,765928,130280720,05/10/2015,-505.20,MACINTYRE CARE,SP0000473
WANDSWORTH COUNCIL,ASC,SOCIAL SERVICES,Revenue,CUSTOMER & CLIENT RECPTS - EXT,CL CONT EXTERNAL RESIDENTIAL,765929,130280720,05/10/2015,-321.80,MACINTYRE CARE,SP0000473
WANDSWORTH COUNCIL,ASC,SOCIAL SERVICES,Revenue,CUSTOMER & CLIENT RECPTS - EXT,CL CONT EXTERNAL RESIDENTIAL,765930,130280720,05/10/2015,-505.20,MACINTYRE CARE,SP0000473
WANDSWORTH COUNCIL,ASC,SOCIAL SERVICES,Revenue,CUSTOMER & CLIENT RECPTS - EXT,CL CONT EXTERNAL RESIDENTIAL,765936,130280720,05/10/2015,-505.20,MACINTYRE CARE,SP0000473
WANDSWORTH COUNCIL,ASC,SOCIAL SERVICES,Revenue,CUSTOMER & CLIENT RECPTS - EXT,CL CONT EXTERNAL RESIDENTIAL,765937,130280720,05/10/2015,-505.20,MACINTYRE CARE,SP0000473
WANDSWORTH COUNCIL,ASC,SOCIAL SERVICES,Revenue,CUSTOMER & CLIENT RECPTS - EXT,CL CONT EXTERNAL RESIDENTIAL,765939,130280720,05/10/2015,-524.64,MACINTYRE CARE,SP0000473
WANDSWORTH COUNCIL,ASC,SOCIAL SERVICES,Revenue,CUSTOMER & CLIENT RECPTS - EXT,CL CONT EXTERNAL RESIDENTIAL,765940,130280720,05/10/2015,-321.80,MACINTYRE CARE,SP0000473
WANDSWORTH COUNCIL,ASC,SOCIAL SERVICES,Revenue,CUSTOMER & CLIENT RECPTS - EXT,CL CONT EXTERNAL RESIDENTIAL,765941,130280720,05/10/2015,-528.72,MACINTYRE CARE,SP0000473
WANDSWORTH COUNCIL,ASC,SOCIAL SERVICES,Revenue,CUSTOMER & CLIENT RECPTS - EXT,CL CONT EXTERNAL RESIDENTIAL,765942,130280720,05/10/2015,-321.80,MACINTYRE CARE,SP0000473
WANDSWORTH COUNCIL,ASC,SOCIAL SERVICES,Revenue,CUSTOMER & CLIENT RECPTS - EXT,CL CONT EXTERNAL RESIDENTIAL,776821,130280720,16/10/2015,-356.28,MENCAP,SP0000604
WANDSWORTH COUNCIL,ASC,SOCIAL SERVICES,Revenue,CUSTOMER & CLIENT RECPTS - EXT,CL CONT EXTERNAL RESIDENTIAL,776822,130280720,16/10/2015,-356.28,MENCAP,SP0000604
WANDSWORTH COUNCIL,ASC,SOCIAL SERVICES,Revenue,CUSTOMER & CLIENT RECPTS - EXT,CL CONT EXTERNAL RESIDENTIAL,776823,130280720,16/10/2015,-356.28,MENCAP,SP0000604
WANDSWORTH COUNCIL,ASC,SOCIAL SERVICES,Revenue,CUSTOMER & CLIENT RECPTS - EXT,CL CONT EXTERNAL RESIDENTIAL,764627,130280720,02/10/2015,-505.20,METROPOLITAN HOUSING TRUST,SP0000626
WANDSWORTH COUNCIL,ASC,SOCIAL SERVICES,Revenue,CUSTOMER & CLIENT RECPTS - EXT,CL CONT EXTERNAL RESIDENTIAL,764628,130280720,02/10/2015,-400.60,METROPOLITAN HOUSING TRUST,SP0000626
WANDSWORTH COUNCIL,ASC,SOCIAL SERVICES,Revenue,CUSTOMER & CLIENT RECPTS - EXT,CL CONT EXTERNAL RESIDENTIAL,764629,130280720,02/10/2015,-321.80,METROPOLITAN HOUSING TRUST,SP0000626
WANDSWORTH COUNCIL,ASC,SOCIAL SERVICES,Revenue,CUSTOMER & CLIENT RECPTS - EXT,CL CONT EXTERNAL RESIDENTIAL,764630,130280720,02/10/2015,-321.80,METROPOLITAN HOUSING TRUST,SP0000626
WANDSWORTH COUNCIL,ASC,SOCIAL SERVICES,Revenue,CUSTOMER & CLIENT RECPTS - EXT,CL CONT EXTERNAL RESIDENTIAL,764632,130280720,02/10/2015,-321.80,METROPOLITAN HOUSING TRUST,SP0000626
WANDSWORTH COUNCIL,ASC,SOCIAL SERVICES,Revenue,CUSTOMER & CLIENT RECPTS - EXT,CL CONT EXTERNAL RESIDENTIAL,764634,130280720,02/10/2015,-321.80,METROPOLITAN HOUSING TRUST,SP0000626
WANDSWORTH COUNCIL,ASC,SOCIAL SERVICES,Revenue,CUSTOMER & CLIENT RECPTS - EXT,CL CONT EXTERNAL RESIDENTIAL,774136,130280720,14/10/2015,-505.20,METROPOLITAN HOUSING TRUST,SP0000626
WANDSWORTH COUNCIL,ASC,SOCIAL SERVICES,Revenue,CUSTOMER & CLIENT RECPTS - EXT,CL CONT EXTERNAL RESIDENTIAL,774137,130280720,14/10/2015,-321.80,METROPOLITAN HOUSING TRUST,SP0000626
WANDSWORTH COUNCIL,ASC,SOCIAL SERVICES,Revenue,CUSTOMER & CLIENT RECPTS - EXT,CL CONT EXTERNAL RESIDENTIAL,774138,130280720,14/10/2015,-400.60,METROPOLITAN HOUSING TRUST,SP0000626
WANDSWORTH COUNCIL,ASC,SOCIAL SERVICES,Revenue,CUSTOMER & CLIENT RECPTS - EXT,CL CONT EXTERNAL RESIDENTIAL,774140,130280720,14/10/2015,-321.80,METROPOLITAN HOUSING TRUST,SP0000626
WANDSWORTH COUNCIL,ASC,SOCIAL SERVICES,Revenue,CUSTOMER & CLIENT RECPTS - EXT,CL CONT EXTERNAL RESIDENTIAL,774141,130280720,14/10/2015,-321.80,METROPOLITAN HOUSING TRUST,SP0000626
WANDSWORTH COUNCIL,ASC,SOCIAL SERVICES,Revenue,CUSTOMER & CLIENT RECPTS - EXT,CL CONT EXTERNAL RESIDENTIAL,780529,130280720,22/10/2015,-310.31,METROPOLITAN HOUSING TRUST,SP0000626
WANDSWORTH COUNCIL,ASC,SOCIAL SERVICES,Revenue,CUSTOMER & CLIENT RECPTS - EXT,CL CONT EXTERNAL RESIDENTIAL,776790,130280720,16/10/2015,-321.80,MISSION CARE,SP0000958
WANDSWORTH COUNCIL,ASC,SOCIAL SERVICES,Revenue,CUSTOMER & CLIENT RECPTS - EXT,CL CONT EXTERNAL RESIDENTIAL,767853,130280720,07/10/2015,-321.80,NAS SERVICES LIMITED,SP0000217
WANDSWORTH COUNCIL,ASC,SOCIAL SERVICES,Revenue,CUSTOMER & CLIENT RECPTS - EXT,CL CONT EXTERNAL RESIDENTIAL,767856,130280720,07/10/2015,-321.80,NAS SERVICES LIMITED,SP0000217
WANDSWORTH COUNCIL,ASC,SOCIAL SERVICES,Revenue,CUSTOMER & CLIENT RECPTS - EXT,CL CONT EXTERNAL RESIDENTIAL,780503,130280720,22/10/2015,-385.95,NATIONAL SOCIETY FOR EPILEPSY,SP0000120
WANDSWORTH COUNCIL,ASC,SOCIAL SERVICES,Revenue,CUSTOMER & CLIENT RECPTS - EXT,CL CONT EXTERNAL RESIDENTIAL,786154,130280720,28/10/2015,-321.80,NORCREST (2000) HOME LTD,SP0008343
WANDSWORTH COUNCIL,ASC,SOCIAL SERVICES,Revenue,CUSTOMER & CLIENT RECPTS - EXT,CL CONT EXTERNAL RESIDENTIAL,776799,130280720,16/10/2015,-391.70,NUTLEY HALL LTD,SP0001581
WANDSWORTH COUNCIL,ASC,SOCIAL SERVICES,Revenue,CUSTOMER & CLIENT RECPTS - EXT,CL CONT EXTERNAL RESIDENTIAL,781285,130280720,23/10/2015,-298.81,ORCHARD VALE TRUST,SP0000214
WANDSWORTH COUNCIL,ASC,SOCIAL SERVICES,Revenue,CUSTOMER & CLIENT RECPTS - EXT,CL CONT EXTERNAL RESIDENTIAL,773016,130280720,13/10/2015,-344.79,PATHWAY HEALTHCARE,SP0001779
WANDSWORTH COUNCIL,ASC,SOCIAL SERVICES,Revenue,CUSTOMER & CLIENT RECPTS - EXT,CL CONT EXTERNAL RESIDENTIAL,773018,130280720,13/10/2015,-356.28,PATHWAY HEALTHCARE,SP0001779
WANDSWORTH COUNCIL,ASC,SOCIAL SERVICES,Revenue,CUSTOMER & CLIENT RECPTS - EXT,CL CONT EXTERNAL RESIDENTIAL,781284,130280720,23/10/2015,-321.80,POTENSIAL LTD,SP0000395
WANDSWORTH COUNCIL,ASC,SOCIAL SERVICES,Revenue,CUSTOMER & CLIENT RECPTS - EXT,CL CONT EXTERNAL RESIDENTIAL,776803,130280720,16/10/2015,-321.80,PROSPECTS,SP0000800
WANDSWORTH COUNCIL,ASC,SOCIAL SERVICES,Revenue,CUSTOMER & CLIENT RECPTS - EXT,CL CONT EXTERNAL RESIDENTIAL,770484,130280720,09/10/2015,-559.33,RALEIGH HOUSE LTD,SP0000760
WANDSWORTH COUNCIL,ASC,SOCIAL SERVICES,Revenue,CUSTOMER & CLIENT RECPTS - EXT,CL CONT EXTERNAL RESIDENTIAL,770485,130280720,09/10/2015,-559.33,RALEIGH HOUSE LTD,SP0000760
WANDSWORTH COUNCIL,ASC,SOCIAL SERVICES,Revenue,CUSTOMER & CLIENT RECPTS - EXT,CL CONT EXTERNAL RESIDENTIAL,776869,130280720,16/10/2015,-321.80,RESIDENTIAL CARE SERVICES T/A FRANKLYN L,SP0000147
WANDSWORTH COUNCIL,ASC,SOCIAL SERVICES,Revenue,CUSTOMER & CLIENT RECPTS - EXT,CL CONT EXTERNAL RESIDENTIAL,776870,130280720,16/10/2015,-321.80,RESIDENTIAL CARE SERVICES T/A FRANKLYN L,SP0000147
WANDSWORTH COUNCIL,ASC,SOCIAL SERVICES,Revenue,CUSTOMER & CLIENT RECPTS - EXT,CL CONT EXTERNAL RESIDENTIAL,782675,130280720,26/10/2015,-321.80,RESIDENTIAL CARE SERVICES T/A FRANKLYN L,SP0000147
WANDSWORTH COUNCIL,ASC,SOCIAL SERVICES,Revenue,CUSTOMER & CLIENT RECPTS - EXT,CL CONT EXTERNAL RESIDENTIAL,767619,130280720,07/10/2015,-321.80,RIDGEWOOD CARE SERVICES LTD,SP0000969
WANDSWORTH COUNCIL,ASC,SOCIAL SERVICES,Revenue,CUSTOMER & CLIENT RECPTS - EXT,CL CONT EXTERNAL RESIDENTIAL,767712,130280720,07/10/2015,-405.65,ROOKERY HOVE PRIORY,SP0001498
WANDSWORTH COUNCIL,ASC,SOCIAL SERVICES,Revenue,CUSTOMER & CLIENT RECPTS - EXT,CL CONT EXTERNAL RESIDENTIAL,770694,130280720,09/10/2015,-321.80,SANCTUARY CARE LTD,SP0000121
WANDSWORTH COUNCIL,ASC,SOCIAL SERVICES,Revenue,CUSTOMER & CLIENT RECPTS - EXT,CL CONT EXTERNAL RESIDENTIAL,764348,130280720,02/10/2015,-344.79,SAXON COURT,SP0001100
WANDSWORTH COUNCIL,ASC,SOCIAL SERVICES,Revenue,CUSTOMER & CLIENT RECPTS - EXT,CL CONT EXTERNAL RESIDENTIAL,764349,130280720,02/10/2015,-356.28,SAXON COURT,SP0001100
WANDSWORTH COUNCIL,ASC,SOCIAL SERVICES,Revenue,CUSTOMER & CLIENT RECPTS - EXT,CL CONT EXTERNAL RESIDENTIAL,785486,130280720,28/10/2015,-443.52,SCOPE,SP0000852
WANDSWORTH COUNCIL,ASC,SOCIAL SERVICES,Revenue,CUSTOMER & CLIENT RECPTS - EXT,CL CONT EXTERNAL RESIDENTIAL,785487,130280720,28/10/2015,-380.63,SCOPE,SP0000852
WANDSWORTH COUNCIL,ASC,SOCIAL SERVICES,Revenue,CUSTOMER & CLIENT RECPTS - EXT,CL CONT EXTERNAL RESIDENTIAL,782562,130280720,26/10/2015,-433.55,SEEABILITY,SP0000572
WANDSWORTH COUNCIL,ASC,SOCIAL SERVICES,Revenue,CUSTOMER & CLIENT RECPTS - EXT,CL CONT EXTERNAL RESIDENTIAL,764322,130280720,02/10/2015,-344.78,ST DAVIDS CARE IN THE COMMUNITY,SP0000379
WANDSWORTH COUNCIL,ASC,SOCIAL SERVICES,Revenue,CUSTOMER & CLIENT RECPTS - EXT,CL CONT EXTERNAL RESIDENTIAL,764323,130280720,02/10/2015,-344.78,ST DAVIDS CARE IN THE COMMUNITY,SP0000379
WANDSWORTH COUNCIL,ASC,SOCIAL SERVICES,Revenue,CUSTOMER & CLIENT RECPTS - EXT,CL CONT EXTERNAL RESIDENTIAL,764324,130280720,02/10/2015,-344.78,ST DAVIDS CARE IN THE COMMUNITY,SP0000379
WANDSWORTH COUNCIL,ASC,SOCIAL SERVICES,Revenue,CUSTOMER & CLIENT RECPTS - EXT,CL CONT EXTERNAL RESIDENTIAL,772527,130280720,13/10/2015,-356.28,ST DAVIDS CARE IN THE COMMUNITY,SP0000379
WANDSWORTH COUNCIL,ASC,SOCIAL SERVICES,Revenue,CUSTOMER & CLIENT RECPTS - EXT,CL CONT EXTERNAL RESIDENTIAL,772528,130280720,13/10/2015,-356.28,ST DAVIDS CARE IN THE COMMUNITY,SP0000379
WANDSWORTH COUNCIL,ASC,SOCIAL SERVICES,Revenue,CUSTOMER & CLIENT RECPTS - EXT,CL CONT EXTERNAL RESIDENTIAL,772529,130280720,13/10/2015,-356.28,ST DAVIDS CARE IN THE COMMUNITY,SP0000379
WANDSWORTH COUNCIL,ASC,SOCIAL SERVICES,Revenue,CUSTOMER & CLIENT RECPTS - EXT,CL CONT EXTERNAL RESIDENTIAL,776125,130280720,15/10/2015,-261.00,ST MARYS RESIDENTIAL HOME,SP0000215
WANDSWORTH COUNCIL,ASC,SOCIAL SERVICES,Revenue,CUSTOMER & CLIENT RECPTS - EXT,CL CONT EXTERNAL RESIDENTIAL,776126,130280720,15/10/2015,-344.79,ST MARYS RESIDENTIAL HOME,SP0000215
WANDSWORTH COUNCIL,ASC,SOCIAL SERVICES,Revenue,CUSTOMER & CLIENT RECPTS - EXT,CL CONT EXTERNAL RESIDENTIAL,776127,130280720,15/10/2015,-541.29,ST MARYS RESIDENTIAL HOME,SP0000215
WANDSWORTH COUNCIL,ASC,SOCIAL SERVICES,Revenue,CUSTOMER & CLIENT RECPTS - EXT,CL CONT EXTERNAL RESIDENTIAL,776128,130280720,15/10/2015,-358.33,ST MARYS RESIDENTIAL HOME,SP0000215
WANDSWORTH COUNCIL,ASC,SOCIAL SERVICES,Revenue,CUSTOMER & CLIENT RECPTS - EXT,CL CONT EXTERNAL RESIDENTIAL,776129,130280720,15/10/2015,-344.79,ST MARYS RESIDENTIAL HOME,SP0000215
WANDSWORTH COUNCIL,ASC,SOCIAL SERVICES,Revenue,CUSTOMER & CLIENT RECPTS - EXT,CL CONT EXTERNAL RESIDENTIAL,776130,130280720,15/10/2015,-344.79,ST MARYS RESIDENTIAL HOME,SP0000215
WANDSWORTH COUNCIL,ASC,SOCIAL SERVICES,Revenue,CUSTOMER & CLIENT RECPTS - EXT,CL CONT EXTERNAL RESIDENTIAL,776131,130280720,15/10/2015,-551.68,ST MARYS RESIDENTIAL HOME,SP0000215
WANDSWORTH COUNCIL,ASC,SOCIAL SERVICES,Revenue,CUSTOMER & CLIENT RECPTS - EXT,CL CONT EXTERNAL RESIDENTIAL,776134,130280720,15/10/2015,-567.00,ST MARYS RESIDENTIAL HOME,SP0000215
WANDSWORTH COUNCIL,ASC,SOCIAL SERVICES,Revenue,CUSTOMER & CLIENT RECPTS - EXT,CL CONT EXTERNAL RESIDENTIAL,776871,130280720,16/10/2015,-966.20,ST MARYS RESIDENTIAL HOME,SP0000215
WANDSWORTH COUNCIL,ASC,SOCIAL SERVICES,Revenue,CUSTOMER & CLIENT RECPTS - EXT,CL CONT EXTERNAL RESIDENTIAL,776872,130280720,16/10/2015,-321.80,ST MARYS RESIDENTIAL HOME,SP0000215
WANDSWORTH COUNCIL,ASC,SOCIAL SERVICES,Revenue,CUSTOMER & CLIENT RECPTS - EXT,CL CONT EXTERNAL RESIDENTIAL,781282,130280720,23/10/2015,-505.20,SURREY & BORDERS PARTNERSHIP NHS TRUST,SP0000501
WANDSWORTH COUNCIL,ASC,SOCIAL SERVICES,Revenue,CUSTOMER & CLIENT RECPTS - EXT,CL CONT EXTERNAL RESIDENTIAL,772518,130280720,13/10/2015,-443.52,SUSSEX HEALTH CARE,SP0001115
WANDSWORTH COUNCIL,ASC,SOCIAL SERVICES,Revenue,CUSTOMER & CLIENT RECPTS - EXT,CL CONT EXTERNAL RESIDENTIAL,776786,130280720,16/10/2015,-443.52,SUSSEX HEALTH CARE,SP0001115
WANDSWORTH COUNCIL,ASC,SOCIAL SERVICES,Revenue,CUSTOMER & CLIENT RECPTS - EXT,CL CONT EXTERNAL RESIDENTIAL,774135,130280720,14/10/2015,-344.79,TANGLEWOOD CARE HOME,SP0000167
WANDSWORTH COUNCIL,ASC,SOCIAL SERVICES,Revenue,CUSTOMER & CLIENT RECPTS - EXT,CL CONT EXTERNAL RESIDENTIAL,770476,130280720,09/10/2015,-321.80,THE BRANDON TRUST,SP0005337
WANDSWORTH COUNCIL,ASC,SOCIAL SERVICES,Revenue,CUSTOMER & CLIENT RECPTS - EXT,CL CONT EXTERNAL RESIDENTIAL,772498,130280720,13/10/2015,-559.33,THE COMMUNITY CARE COMPANY UK LTD,SP0000576
WANDSWORTH COUNCIL,ASC,SOCIAL SERVICES,Revenue,CUSTOMER & CLIENT RECPTS - EXT,CL CONT EXTERNAL RESIDENTIAL,772499,130280720,13/10/2015,-356.28,THE COMMUNITY CARE COMPANY UK LTD,SP0000576
WANDSWORTH COUNCIL,ASC,SOCIAL SERVICES,Revenue,CUSTOMER & CLIENT RECPTS - EXT,CL CONT EXTERNAL RESIDENTIAL,772500,130280720,13/10/2015,-356.28,THE COMMUNITY CARE COMPANY UK LTD,SP0000576
WANDSWORTH COUNCIL,ASC,SOCIAL SERVICES,Revenue,CUSTOMER & CLIENT RECPTS - EXT,CL CONT EXTERNAL RESIDENTIAL,772501,130280720,13/10/2015,-356.28,THE COMMUNITY CARE COMPANY UK LTD,SP0000576
WANDSWORTH COUNCIL,ASC,SOCIAL SERVICES,Revenue,CUSTOMER & CLIENT RECPTS - EXT,CL CONT EXTERNAL RESIDENTIAL,776825,130280720,16/10/2015,-356.28,THE COMMUNITY CARE COMPANY UK LTD,SP0000576
WANDSWORTH COUNCIL,ASC,SOCIAL SERVICES,Revenue,CUSTOMER & CLIENT RECPTS - EXT,CL CONT EXTERNAL RESIDENTIAL,771393,130280720,12/10/2015,-321.80,THE HOME FARM TRUST LTD,SP0001048
WANDSWORTH COUNCIL,ASC,SOCIAL SERVICES,Revenue,CUSTOMER & CLIENT RECPTS - EXT,CL CONT EXTERNAL RESIDENTIAL,771394,130280720,12/10/2015,-505.20,THE HOME FARM TRUST LTD,SP0001048
WANDSWORTH COUNCIL,ASC,SOCIAL SERVICES,Revenue,CUSTOMER & CLIENT RECPTS - EXT,CL CONT EXTERNAL RESIDENTIAL,771395,130280720,12/10/2015,-505.20,THE HOME FARM TRUST LTD,SP0001048
WANDSWORTH COUNCIL,ASC,SOCIAL SERVICES,Revenue,CUSTOMER & CLIENT RECPTS - EXT,CL CONT EXTERNAL RESIDENTIAL,771396,130280720,12/10/2015,-505.20,THE HOME FARM TRUST LTD,SP0001048
WANDSWORTH COUNCIL,ASC,SOCIAL SERVICES,Revenue,CUSTOMER & CLIENT RECPTS - EXT,CL CONT EXTERNAL RESIDENTIAL,772534,130280720,13/10/2015,-321.80,THE HOME FARM TRUST LTD,SP0001048
WANDSWORTH COUNCIL,ASC,SOCIAL SERVICES,Revenue,CUSTOMER & CLIENT RECPTS - EXT,CL CONT EXTERNAL RESIDENTIAL,772535,130280720,13/10/2015,-522.00,THE HOME FARM TRUST LTD,SP0001048
WANDSWORTH COUNCIL,ASC,SOCIAL SERVICES,Revenue,CUSTOMER & CLIENT RECPTS - EXT,CL CONT EXTERNAL RESIDENTIAL,772536,130280720,13/10/2015,-505.20,THE HOME FARM TRUST LTD,SP0001048
WANDSWORTH COUNCIL,ASC,SOCIAL SERVICES,Revenue,CUSTOMER & CLIENT RECPTS - EXT,CL CONT EXTERNAL RESIDENTIAL,786172,130280720,28/10/2015,-321.80,THE LEO TRUST,SP0000908
WANDSWORTH COUNCIL,ASC,SOCIAL SERVICES,Revenue,CUSTOMER & CLIENT RECPTS - EXT,CL CONT EXTERNAL RESIDENTIAL,778874,130280720,21/10/2015,-559.33,THE MANOR,SP0000340
WANDSWORTH COUNCIL,ASC,SOCIAL SERVICES,Revenue,CUSTOMER & CLIENT RECPTS - EXT,CL CONT EXTERNAL RESIDENTIAL,778875,130280720,21/10/2015,-541.29,THE MANOR,SP0000340
WANDSWORTH COUNCIL,ASC,SOCIAL SERVICES,Revenue,CUSTOMER & CLIENT RECPTS - EXT,CL CONT EXTERNAL RESIDENTIAL,781276,130280720,23/10/2015,-356.28,THE MANOR HOUSE,SP0000728
WANDSWORTH COUNCIL,ASC,SOCIAL SERVICES,Revenue,CUSTOMER & CLIENT RECPTS - EXT,CL CONT EXTERNAL RESIDENTIAL,770503,130280720,09/10/2015,-443.52,THE REGARD PARTNERSHIP,SP0000588
WANDSWORTH COUNCIL,ASC,SOCIAL SERVICES,Revenue,CUSTOMER & CLIENT RECPTS - EXT,CL CONT EXTERNAL RESIDENTIAL,770504,130280720,09/10/2015,-356.28,THE REGARD PARTNERSHIP,SP0000588
WANDSWORTH COUNCIL,ASC,SOCIAL SERVICES,Revenue,CUSTOMER & CLIENT RECPTS - EXT,CL CONT EXTERNAL RESIDENTIAL,770505,130280720,09/10/2015,-575.00,THE REGARD PARTNERSHIP,SP0000588
WANDSWORTH COUNCIL,ASC,SOCIAL SERVICES,Revenue,CUSTOMER & CLIENT RECPTS - EXT,CL CONT EXTERNAL RESIDENTIAL,770506,130280720,09/10/2015,-443.52,THE REGARD PARTNERSHIP,SP0000588
WANDSWORTH COUNCIL,ASC,SOCIAL SERVICES,Revenue,CUSTOMER & CLIENT RECPTS - EXT,CL CONT EXTERNAL RESIDENTIAL,770508,130280720,09/10/2015,-443.52,THE REGARD PARTNERSHIP,SP0000588
WANDSWORTH COUNCIL,ASC,SOCIAL SERVICES,Revenue,CUSTOMER & CLIENT RECPTS - EXT,CL CONT EXTERNAL RESIDENTIAL,767736,130280720,07/10/2015,-366.40,THE WELL HOUSE,SP0000448
WANDSWORTH COUNCIL,ASC,SOCIAL SERVICES,Revenue,CUSTOMER & CLIENT RECPTS - EXT,CL CONT EXTERNAL RESIDENTIAL,780520,130280720,22/10/2015,-379.49,THE WELL HOUSE,SP0000448
WANDSWORTH COUNCIL,ASC,SOCIAL SERVICES,Revenue,CUSTOMER & CLIENT RECPTS - EXT,CL CONT EXTERNAL RESIDENTIAL,780521,130280720,22/10/2015,-344.78,THE WELL HOUSE,SP0000448
WANDSWORTH COUNCIL,ASC,SOCIAL SERVICES,Revenue,CUSTOMER & CLIENT RECPTS - EXT,CL CONT EXTERNAL RESIDENTIAL,786151,130280720,28/10/2015,-366.40,TOTTERDOWN,SP0001113
WANDSWORTH COUNCIL,ASC,SOCIAL SERVICES,Revenue,CUSTOMER & CLIENT RECPTS - EXT,CL CONT EXTERNAL RESIDENTIAL,774130,130280720,14/10/2015,-405.65,TRACS,SP0000914
WANDSWORTH COUNCIL,ASC,SOCIAL SERVICES,Revenue,CUSTOMER & CLIENT RECPTS - EXT,CL CONT EXTERNAL RESIDENTIAL,780522,130280720,22/10/2015,-392.57,TRACS,SP0000914
WANDSWORTH COUNCIL,ASC,SOCIAL SERVICES,Revenue,CUSTOMER & CLIENT RECPTS - EXT,CL CONT EXTERNAL RESIDENTIAL,787324,130280720,29/10/2015,-321.80,UNITED RESPONSE,SP0000797
WANDSWORTH COUNCIL,ASC,SOCIAL SERVICES,Revenue,CUSTOMER & CLIENT RECPTS - EXT,CL CONT EXTERNAL RESIDENTIAL,780526,130280720,22/10/2015,-348.60,WHITE ROSE CARE,SP0000780
WANDSWORTH COUNCIL,ASC,SOCIAL SERVICES,Revenue,CUSTOMER & CLIENT RECPTS - EXT,CL CONT EXTERNAL RESIDENTIAL,767620,130280720,07/10/2015,-505.20,WHITMORE VALE HOUSING ASSOCIATION LTD,SP0000694
WANDSWORTH COUNCIL,ASC,SOCIAL SERVICES,Revenue,CUSTOMER & CLIENT RECPTS - EXT,CL CONT EXTERNAL RESIDENTIAL,785470,130280720,28/10/2015,-505.20,WHITMORE VALE HOUSING ASSOCIATION LTD,SP0000694
WANDSWORTH COUNCIL,ASC,SOCIAL SERVICES,Revenue,CUSTOMER & CLIENT RECPTS - EXT,CL CONT EXTERNAL RESIDENTIAL,786164,130280720,28/10/2015,-321.80,WINSLOW COURT,SP0000886
WANDSWORTH COUNCIL,ASC,SOCIAL SERVICES,Revenue,CUSTOMER & CLIENT RECPTS - EXT,CL CONT EXTERNAL RESIDENTIAL,786167,130280720,28/10/2015,-321.80,WINSLOW COURT,SP0000886
WANDSWORTH COUNCIL,ASC,SOCIAL SERVICES,Revenue,CUSTOMER & CLIENT RECPTS - EXT,CL CONT EXTERNAL RESIDENTIAL,786168,130280720,28/10/2015,-321.80,WINSLOW COURT,SP0000886
WANDSWORTH COUNCIL,ASC,SOCIAL SERVICES,Revenue,CUSTOMER & CLIENT RECPTS - EXT,CLIENT CONTS - DIRECT PAYMENTS,776339,130280790,15/10/2015,-135.80,I DECIDE LTD (DIRECT PAYMENT),SP0006159
WANDSWORTH COUNCIL,ASC,SOCIAL SERVICES,Revenue,CUSTOMER & CLIENT RECPTS - EXT,CLIENT CONTS EXTERNAL NURSING,770809,130280820,09/10/2015,-204.76,BUPA CARE SERVICES BACS RECEIPTS,SP0000644
WANDSWORTH COUNCIL,ASC,SOCIAL SERVICES,Revenue,CUSTOMER & CLIENT RECPTS - EXT,CLIENT CONTS EXTERNAL NURSING,765925,130280820,05/10/2015,-343.80,HIGH HURLANDS HOMES,SP0000668
WANDSWORTH COUNCIL,ASC,SOCIAL SERVICES,Revenue,CUSTOMER & CLIENT RECPTS - EXT,CLIENT CONTS EXTERNAL NURSING,786170,130280820,28/10/2015,-343.80,HIGH HURLANDS HOMES,SP0000668
WANDSWORTH COUNCIL,ASC,SOCIAL SERVICES,Revenue,CUSTOMER & CLIENT RECPTS - EXT,CLIENT CONTS EXTERNAL NURSING,773004,130280820,13/10/2015,-564.88,ROSEDENE NURSING HOME,SP0000316
WANDSWORTH COUNCIL,ASC,SOCIAL SERVICES,Revenue,CUSTOMER & CLIENT RECPTS - EXT,CLIENT CONTS EXTERNAL NURSING,773007,130280820,13/10/2015,-564.88,ROSEDENE NURSING HOME,SP0000316
WANDSWORTH COUNCIL,ASC,SOCIAL SERVICES,Revenue,CUSTOMER & CLIENT RECPTS - EXT,CLIENT CONTS EXTERNAL NURSING,776844,130280820,16/10/2015,-786.80,ROSEDENE NURSING HOME,SP0000316
WANDSWORTH COUNCIL,ASC,SOCIAL SERVICES,Revenue,CUSTOMER & CLIENT RECPTS - EXT,CLIENT CONTS EXTERNAL NURSING,772530,130280820,13/10/2015,-405.65,SUSSEX HEALTH CARE,SP0001115
WANDSWORTH COUNCIL,ASC,SOCIAL SERVICES,Revenue,CUSTOMER & CLIENT RECPTS - EXT,CLIENT CONTS EXTERNAL NURSING,764649,130280820,02/10/2015,-400.60,VOYAGE CARE LTD,SP0000366
WANDSWORTH COUNCIL,ASC,SOCIAL SERVICES,Revenue,CUSTOMER & CLIENT RECPTS - EXT,CLIENT CONTS EXTERNAL NURSING,764650,130280820,02/10/2015,-400.60,VOYAGE CARE LTD,SP0000366
WANDSWORTH COUNCIL,ASC,SOCIAL SERVICES,Revenue,CUSTOMER & CLIENT RECPTS - EXT,CLIENT CONTS EXTERNAL NURSING,785460,130280820,28/10/2015,-364.60,VOYAGE CARE LTD,SP0000366
WANDSWORTH COUNCIL,ASC,SOCIAL SERVICES,Revenue,CUSTOMER & CLIENT RECPTS - EXT,CLIENT CONTS EXTERNAL NURSING,770483,130280820,09/10/2015,-505.20,YEW TREE NURSING HOME,SP0000454
WANDSWORTH COUNCIL,ASC,SOCIAL SERVICES,Revenue,CUSTOMER & CLIENT RECPTS - EXT,CLIENT CONTS EXTERNAL NURSING,770684,130280820,09/10/2015,-505.20,YORK COURT CARE HOME,SP0006091
WANDSWORTH COUNCIL,ASC,SOCIAL SERVICES,Revenue,CUSTOMER & CLIENT RECPTS - EXT,RNCC,770809,130284120,09/10/2015,-448.00,BUPA CARE SERVICES BACS RECEIPTS,SP0000644
WANDSWORTH COUNCIL,ASC,SOCIAL SERVICES,Revenue,CUSTOMER & CLIENT RECPTS - EXT,RNCC,765925,130284120,05/10/2015,-616.56,HIGH HURLANDS HOMES,SP0000668
WANDSWORTH COUNCIL,ASC,SOCIAL SERVICES,Revenue,CUSTOMER & CLIENT RECPTS - EXT,RNCC,786170,130284120,28/10/2015,-616.56,HIGH HURLANDS HOMES,SP0000668
WANDSWORTH COUNCIL,ASC,SOCIAL SERVICES,Revenue,CUSTOMER & CLIENT RECPTS - EXT,RNCC,773004,130284120,13/10/2015,-448.00,ROSEDENE NURSING HOME,SP0000316
WANDSWORTH COUNCIL,ASC,SOCIAL SERVICES,Revenue,CUSTOMER & CLIENT RECPTS - EXT,RNCC,773007,130284120,13/10/2015,-448.00,ROSEDENE NURSING HOME,SP0000316
WANDSWORTH COUNCIL,ASC,SOCIAL SERVICES,Revenue,CUSTOMER & CLIENT RECPTS - EXT,RNCC,776844,130284120,16/10/2015,-624.00,ROSEDENE NURSING HOME,SP0000316
WANDSWORTH COUNCIL,ASC,SOCIAL SERVICES,Revenue,CUSTOMER & CLIENT RECPTS - EXT,RNCC,770655,130284120,09/10/2015,-448.00,TRINITY COURT NURSING HOME,SP0001001
WANDSWORTH COUNCIL,ASC,SOCIAL SERVICES,Revenue,CUSTOMER & CLIENT RECPTS - EXT,RNCC,764649,130284120,02/10/2015,-448.00,VOYAGE CARE LTD,SP0000366
WANDSWORTH COUNCIL,ASC,SOCIAL SERVICES,Revenue,CUSTOMER & CLIENT RECPTS - EXT,RNCC,764650,130284120,02/10/2015,-448.00,VOYAGE CARE LTD,SP0000366
WANDSWORTH COUNCIL,ASC,SOCIAL SERVICES,Revenue,CUSTOMER & CLIENT RECPTS - EXT,RNCC,785460,130284120,28/10/2015,-448.00,VOYAGE CARE LTD,SP0000366
WANDSWORTH COUNCIL,ASC,SOCIAL SERVICES,Revenue,CUSTOMER & CLIENT RECPTS - EXT,RNCC,770483,130284120,09/10/2015,-448.00,YEW TREE NURSING HOME,SP0000454
WANDSWORTH COUNCIL,ASC,SOCIAL SERVICES,Revenue,CUSTOMER & CLIENT RECPTS - EXT,RNCC,770684,130284120,09/10/2015,-448.00,YORK COURT CARE HOME,SP0006091
WANDSWORTH COUNCIL,ASC,,Revenue,MISC,MISCELLANEOUS EXPENSES,764806,134038500,06/10/2015,"7,500.00",WANDSWORTH CARE ALLIANCE,SP0002942
WANDSWORTH COUNCIL,ASC,,Revenue,GRANTS & SUBSCRIPTIONS,CONTRACTS TO VOLUNTARY ORGS,774592,136137550,15/10/2015,"1,258.54",HARINGEY ASSOCIATION FOR INDEPENDENT LIV,SP0000222
WANDSWORTH COUNCIL,ASC,,Revenue,GRANTS & SUBSCRIPTIONS,CONTRACTS TO VOLUNTARY ORGS,774593,136137550,15/10/2015,"1,186.51",HARINGEY ASSOCIATION FOR INDEPENDENT LIV,SP0000222
WANDSWORTH COUNCIL,ASC,,Revenue,GRANTS & SUBSCRIPTIONS,CONTRACTS TO VOLUNTARY ORGS,774597,136137550,15/10/2015,936.49,HARINGEY ASSOCIATION FOR INDEPENDENT LIV,SP0000222
WANDSWORTH COUNCIL,ASC,,Revenue,DIRECT2,AGENCY STAFF,765656,140000510,05/10/2015,"4,576.91",SOUTH WEST LONDON & ST GEORGES MENTAL HE,SP0000358
WANDSWORTH COUNCIL,PH,,Revenue,"EQUIPMENT, FURNITURE & MATS",DOGS EQUIPMENT & FOOD,772957,140130120,13/10/2015,527.00,PAULWAY KENNELS & CATTERIES,SP0001848
WANDSWORTH COUNCIL,PH,SOCIAL SERVICES,Revenue,PRIVATE,EXTERNAL RESIDENTIAL CARE,767714,140145330,07/10/2015,"3,062.37",FOUNDATION 66,SP0005873
WANDSWORTH COUNCIL,PH,SOCIAL SERVICES,Revenue,PRIVATE,EXTERNAL RESIDENTIAL CARE,780498,140145330,22/10/2015,"2,956.71",FOUNDATION 66,SP0005873
WANDSWORTH COUNCIL,PH,SOCIAL SERVICES,Revenue,PRIVATE,EXTERNAL RESIDENTIAL CARE,767716,140145330,07/10/2015,"2,357.14",MOUNT CARMEL,SP0001309
WANDSWORTH COUNCIL,PH,SOCIAL SERVICES,Revenue,PRIVATE,EXTERNAL RESIDENTIAL CARE,780500,140145330,22/10/2015,771.43,MOUNT CARMEL,SP0001309
WANDSWORTH COUNCIL,PH,SOCIAL SERVICES,Revenue,PRIVATE,EXTERNAL RESIDENTIAL CARE,780501,140145330,22/10/2015,"2,657.15",MOUNT CARMEL,SP0001309
WANDSWORTH COUNCIL,PH,SOCIAL SERVICES,Revenue,PRIVATE,EXTERNAL RESIDENTIAL CARE,780502,140145330,22/10/2015,"1,628.56",MOUNT CARMEL,SP0001309
WANDSWORTH COUNCIL,PH,SOCIAL SERVICES,Revenue,PRIVATE,EXTERNAL RESIDENTIAL CARE,776855,140145330,16/10/2015,"2,980.00",STREETSCENE ADDICTION RECOVERY,SP0001163
WANDSWORTH COUNCIL,PH,SOCIAL SERVICES,Revenue,PRIVATE,EXTERNAL RESIDENTIAL CARE,776857,140145330,16/10/2015,"2,980.00",STREETSCENE ADDICTION RECOVERY,SP0001163
WANDSWORTH COUNCIL,PH,SOCIAL SERVICES,Revenue,VOL ASS,SUPPORTED HOUSING PROGRAMME,772471,140148030,13/10/2015,"1,740.00",ADDICTION RECOVERY CENTRE,SP0001547
WANDSWORTH COUNCIL,PH,SOCIAL SERVICES,Revenue,VOL ASS,SUPPORTED HOUSING PROGRAMME,778889,140148030,21/10/2015,"2,320.00",ADDICTION RECOVERY CENTRE,SP0001547
WANDSWORTH COUNCIL,PH,SOCIAL SERVICES,Revenue,CUSTOMER & CLIENT RECPTS - EXT,CL CONT EXTERNAL RESIDENTIAL,767714,140180720,07/10/2015,-212.58,FOUNDATION 66,SP0005873
WANDSWORTH COUNCIL,PH,SOCIAL SERVICES,Revenue,CUSTOMER & CLIENT RECPTS - EXT,CL CONT EXTERNAL RESIDENTIAL,780498,140180720,22/10/2015,-198.85,FOUNDATION 66,SP0005873
WANDSWORTH COUNCIL,PH,SOCIAL SERVICES,Revenue,CUSTOMER & CLIENT RECPTS - EXT,CL CONT EXTERNAL RESIDENTIAL,767716,140180720,07/10/2015,-206.57,MOUNT CARMEL,SP0001309
WANDSWORTH COUNCIL,PH,SOCIAL SERVICES,Revenue,CUSTOMER & CLIENT RECPTS - EXT,CL CONT EXTERNAL RESIDENTIAL,780500,140180720,22/10/2015,-61.97,MOUNT CARMEL,SP0001309
WANDSWORTH COUNCIL,PH,SOCIAL SERVICES,Revenue,CUSTOMER & CLIENT RECPTS - EXT,CL CONT EXTERNAL RESIDENTIAL,780501,140180720,22/10/2015,-213.46,MOUNT CARMEL,SP0001309
WANDSWORTH COUNCIL,PH,SOCIAL SERVICES,Revenue,CUSTOMER & CLIENT RECPTS - EXT,CL CONT EXTERNAL RESIDENTIAL,780502,140180720,22/10/2015,-130.82,MOUNT CARMEL,SP0001309
WANDSWORTH COUNCIL,PH,SOCIAL SERVICES,Revenue,CUSTOMER & CLIENT RECPTS - EXT,CL CONT EXTERNAL RESIDENTIAL,776855,140180720,16/10/2015,-192.80,STREETSCENE ADDICTION RECOVERY,SP0001163
WANDSWORTH COUNCIL,PH,SOCIAL SERVICES,Revenue,CUSTOMER & CLIENT RECPTS - EXT,CL CONT EXTERNAL RESIDENTIAL,776857,140180720,16/10/2015,-192.80,STREETSCENE ADDICTION RECOVERY,SP0001163
WANDSWORTH COUNCIL,ASC,,Revenue,DIRECT2,AGENCY STAFF,764287,140400510,05/10/2015,"2,696.06",SOUTH WEST LONDON & ST GEORGES MENTAL HE,SP0000358
WANDSWORTH COUNCIL,ASC,SOCIAL SERVICES,Revenue,OTHER AGENCIES,EXTERNAL OUTREACH,764739,140543330,02/10/2015,940.56,ACTION ON HEARING LOSS,SP0000563
WANDSWORTH COUNCIL,ASC,SOCIAL SERVICES,Revenue,OTHER AGENCIES,EXTERNAL OUTREACH,776332,140543330,15/10/2015,775.00,ACTION ON HEARING LOSS,SP0001359
WANDSWORTH COUNCIL,ASC,SOCIAL SERVICES,Revenue,OTHER AGENCIES,EXTERNAL OUTREACH,776333,140543330,15/10/2015,557.70,ACTION ON HEARING LOSS,SP0001359
WANDSWORTH COUNCIL,ASC,SOCIAL SERVICES,Revenue,OTHER AGENCIES,EXTERNAL OUTREACH,776334,140543330,15/10/2015,940.56,ACTION ON HEARING LOSS,SP0000563
WANDSWORTH COUNCIL,ASC,SOCIAL SERVICES,Revenue,OTHER AGENCIES,EXTERNAL OUTREACH,785656,140543330,28/10/2015,919.60,ACTION ON HEARING LOSS,SP0001359
WANDSWORTH COUNCIL,ASC,SOCIAL SERVICES,Revenue,OTHER AGENCIES,EXTERNAL OUTREACH,781529,140543330,23/10/2015,556.51,ROYAL ASSOCIATION FOR DEAF PEOPLE,SP0001251
WANDSWORTH COUNCIL,ASC,SOCIAL SERVICES,Revenue,PRIVATE,EXTERNAL RESIDENTIAL CARE,776815,140545330,16/10/2015,"3,984.80",ACTION ON HEARING LOSS,SP0001359
WANDSWORTH COUNCIL,ASC,SOCIAL SERVICES,Revenue,PRIVATE,EXTERNAL RESIDENTIAL CARE,776816,140545330,16/10/2015,"3,984.80",ACTION ON HEARING LOSS,SP0001359
WANDSWORTH COUNCIL,ASC,SOCIAL SERVICES,Revenue,PRIVATE,EXTERNAL RESIDENTIAL CARE,776817,140545330,16/10/2015,"3,398.72",ACTION ON HEARING LOSS,SP0001359
WANDSWORTH COUNCIL,ASC,SOCIAL SERVICES,Revenue,PRIVATE,EXTERNAL RESIDENTIAL CARE,776818,140545330,16/10/2015,"3,679.96",ACTION ON HEARING LOSS,SP0001359
WANDSWORTH COUNCIL,ASC,SOCIAL SERVICES,Revenue,PRIVATE,EXTERNAL RESIDENTIAL CARE,766214,140545330,05/10/2015,"17,452.05",BUTTERFLYS CARE HOMES LTD,SP0008006
WANDSWORTH COUNCIL,ASC,SOCIAL SERVICES,Revenue,PRIVATE,EXTERNAL RESIDENTIAL CARE,766215,140545330,05/10/2015,"18,394.32",BUTTERFLYS CARE HOMES LTD,SP0008006
WANDSWORTH COUNCIL,ASC,SOCIAL SERVICES,Revenue,PRIVATE,EXTERNAL RESIDENTIAL CARE,766216,140545330,05/10/2015,"18,394.32",BUTTERFLYS CARE HOMES LTD,SP0008006
WANDSWORTH COUNCIL,ASC,SOCIAL SERVICES,Revenue,PRIVATE,EXTERNAL RESIDENTIAL CARE,772502,140545330,13/10/2015,"6,038.36",SIGNHEALTH,SP0000496
WANDSWORTH COUNCIL,ASC,SOCIAL SERVICES,Revenue,PRIVATE,EXTERNAL RESIDENTIAL CARE,772503,140545330,13/10/2015,"7,041.92",SIGNHEALTH,SP0000496
WANDSWORTH COUNCIL,ASC,SOCIAL SERVICES,Revenue,PRIVATE,EXTERNAL RESIDENTIAL CARE,772504,140545330,13/10/2015,"5,950.76",SIGNHEALTH,SP0000496
WANDSWORTH COUNCIL,ASC,SOCIAL SERVICES,Revenue,CUSTOMER & CLIENT RECPTS - EXT,CL CONT EXTERNAL RESIDENTIAL,776815,140580720,16/10/2015,-321.80,ACTION ON HEARING LOSS,SP0001359
WANDSWORTH COUNCIL,ASC,SOCIAL SERVICES,Revenue,CUSTOMER & CLIENT RECPTS - EXT,CL CONT EXTERNAL RESIDENTIAL,776816,140580720,16/10/2015,-321.80,ACTION ON HEARING LOSS,SP0001359
WANDSWORTH COUNCIL,ASC,SOCIAL SERVICES,Revenue,PRIVATE,EXTERNAL HOMECARE,776191,142045300,15/10/2015,"1,116.95",HOLISTIC COMMUNITY CARE LTD,SP0000032
WANDSWORTH COUNCIL,ASC,SOCIAL SERVICES,Revenue,PRIVATE,EXTERNAL HOMECARE,776228,142045300,15/10/2015,630.50,HOLISTIC COMMUNITY CARE LTD,SP0000032
WANDSWORTH COUNCIL,ASC,SOCIAL SERVICES,Revenue,PRIVATE,EXTERNAL HOMECARE,778425,142045300,20/10/2015,"1,039.32",LONDON HOMECARE LTD,SP0009029
WANDSWORTH COUNCIL,ASC,SOCIAL SERVICES,Revenue,PRIVATE,EXTERNAL HOMECARE,780539,142045300,22/10/2015,744.00,PROFESSIONAL CARE SUPPORT SERVICES LTD,SP0010033
WANDSWORTH COUNCIL,ASC,SOCIAL SERVICES,Revenue,PRIVATE,EXTERNAL HOMECARE,781304,142045300,23/10/2015,620.64,SUPREME CARE SERVICE LTD,SP0001600
WANDSWORTH COUNCIL,ASC,SOCIAL SERVICES,Revenue,PRIVATE,EXTERNAL HOMECARE,781309,142045300,23/10/2015,566.52,SUPREME CARE SERVICE LTD,SP0001600
WANDSWORTH COUNCIL,ASC,SOCIAL SERVICES,Revenue,PRIVATE,EXTERNAL NURSING CARE,771388,142045310,12/10/2015,"3,120.00",ROSEDENE NURSING HOME,SP0000316
WANDSWORTH COUNCIL,ASC,SOCIAL SERVICES,Revenue,PRIVATE,EXTERNAL NURSING CARE,771389,142045310,12/10/2015,"3,120.00",ROSEDENE NURSING HOME,SP0000316
WANDSWORTH COUNCIL,ASC,SOCIAL SERVICES,Revenue,PRIVATE,EXTERNAL NURSING CARE,773006,142045310,13/10/2015,"1,604.00",ROSEDENE NURSING HOME,SP0000316
WANDSWORTH COUNCIL,ASC,SOCIAL SERVICES,Revenue,PRIVATE,EXTERNAL NURSING CARE,773008,142045310,13/10/2015,"3,120.00",ROSEDENE NURSING HOME,SP0000316
WANDSWORTH COUNCIL,ASC,SOCIAL SERVICES,Revenue,PRIVATE,EXTERNAL NURSING CARE,776831,142045310,16/10/2015,"18,285.20",ROSEDENE NURSING HOME,SP0000316
WANDSWORTH COUNCIL,ASC,SOCIAL SERVICES,Revenue,PRIVATE,EXTERNAL NURSING CARE,776834,142045310,16/10/2015,"5,125.71",ROSEDENE NURSING HOME,SP0000316
WANDSWORTH COUNCIL,ASC,SOCIAL SERVICES,Revenue,PRIVATE,EXTERNAL NURSING CARE,776836,142045310,16/10/2015,"5,125.71",ROSEDENE NURSING HOME,SP0000316
WANDSWORTH COUNCIL,ASC,SOCIAL SERVICES,Revenue,PRIVATE,EXTERNAL NURSING CARE,776839,142045310,16/10/2015,"5,125.71",ROSEDENE NURSING HOME,SP0000316
WANDSWORTH COUNCIL,ASC,SOCIAL SERVICES,Revenue,PRIVATE,EXTERNAL NURSING CARE,776845,142045310,16/10/2015,"4,011.43",ROSEDENE NURSING HOME,SP0000316
WANDSWORTH COUNCIL,ASC,SOCIAL SERVICES,Revenue,PRIVATE,EXTERNAL NURSING CARE,780504,142045310,22/10/2015,"3,011.38",ROSEDENE NURSING HOME,SP0000316
WANDSWORTH COUNCIL,ASC,SOCIAL SERVICES,Revenue,PRIVATE,EXTERNAL NURSING CARE,780505,142045310,22/10/2015,"3,120.00",ROSEDENE NURSING HOME,SP0000316
WANDSWORTH COUNCIL,ASC,SOCIAL SERVICES,Revenue,PRIVATE,EXTERNAL NURSING CARE,780506,142045310,22/10/2015,"5,125.71",ROSEDENE NURSING HOME,SP0000316
WANDSWORTH COUNCIL,ASC,SOCIAL SERVICES,Revenue,PRIVATE,EXTERNAL NURSING CARE,770644,142045310,09/10/2015,"8,376.38",TRINITY COURT NURSING HOME,SP0001001
WANDSWORTH COUNCIL,ASC,SOCIAL SERVICES,Revenue,PRIVATE,EXTERNAL NURSING CARE,770648,142045310,09/10/2015,"4,133.92",TRINITY COURT NURSING HOME,SP0001001
WANDSWORTH COUNCIL,ASC,SOCIAL SERVICES,Revenue,PRIVATE,EXTERNAL NURSING CARE,770666,142045310,09/10/2015,"3,333.00",TRINITY COURT NURSING HOME,SP0001001
WANDSWORTH COUNCIL,ASC,SOCIAL SERVICES,Revenue,PRIVATE,EXTERNAL NURSING CARE,770667,142045310,09/10/2015,"2,856.28",TRINITY COURT NURSING HOME,SP0001001
WANDSWORTH COUNCIL,ASC,SOCIAL SERVICES,Revenue,PRIVATE,EXTERNAL NURSING CARE,770669,142045310,09/10/2015,"3,169.44",TRINITY COURT NURSING HOME,SP0001001
WANDSWORTH COUNCIL,ASC,SOCIAL SERVICES,Revenue,PRIVATE,EXTERNAL RESIDENTIAL CARE,776862,142045330,16/10/2015,"5,092.99",229 MITCHAM LANE LTD,SP0000884
WANDSWORTH COUNCIL,ASC,SOCIAL SERVICES,Revenue,PRIVATE,EXTERNAL RESIDENTIAL CARE,776165,142045330,15/10/2015,"2,400.00",ABBEY HOUSE,SP0001434
WANDSWORTH COUNCIL,ASC,SOCIAL SERVICES,Revenue,PRIVATE,EXTERNAL RESIDENTIAL CARE,776166,142045330,15/10/2015,"3,200.00",ABBEY HOUSE,SP0001434
WANDSWORTH COUNCIL,ASC,SOCIAL SERVICES,Revenue,PRIVATE,EXTERNAL RESIDENTIAL CARE,764338,142045330,02/10/2015,"4,424.00",ADMIRAL HEALTHCARE LTD,SP0001227
WANDSWORTH COUNCIL,ASC,SOCIAL SERVICES,Revenue,PRIVATE,EXTERNAL RESIDENTIAL CARE,764341,142045330,02/10/2015,"4,800.00",ADMIRAL HEALTHCARE LTD,SP0001227
WANDSWORTH COUNCIL,ASC,SOCIAL SERVICES,Revenue,PRIVATE,EXTERNAL RESIDENTIAL CARE,773011,142045330,13/10/2015,"4,424.00",ADMIRAL HEALTHCARE LTD,SP0001227
WANDSWORTH COUNCIL,ASC,SOCIAL SERVICES,Revenue,PRIVATE,EXTERNAL RESIDENTIAL CARE,773014,142045330,13/10/2015,"4,800.00",ADMIRAL HEALTHCARE LTD,SP0001227
WANDSWORTH COUNCIL,ASC,SOCIAL SERVICES,Revenue,PRIVATE,EXTERNAL RESIDENTIAL CARE,776852,142045330,16/10/2015,"4,430.00",ADMIRAL HEALTHCARE LTD,SP0001227
WANDSWORTH COUNCIL,ASC,SOCIAL SERVICES,Revenue,PRIVATE,EXTERNAL RESIDENTIAL CARE,776853,142045330,16/10/2015,"4,430.00",ADMIRAL HEALTHCARE LTD,SP0001227
WANDSWORTH COUNCIL,ASC,SOCIAL SERVICES,Revenue,PRIVATE,EXTERNAL RESIDENTIAL CARE,776854,142045330,16/10/2015,"3,164.28",ADMIRAL HEALTHCARE LTD,SP0001227
WANDSWORTH COUNCIL,ASC,SOCIAL SERVICES,Revenue,PRIVATE,EXTERNAL RESIDENTIAL CARE,776159,142045330,15/10/2015,"3,454.02",ASSURANCE CARE SERVICES LTD,SP0006652
WANDSWORTH COUNCIL,ASC,SOCIAL SERVICES,Revenue,PRIVATE,EXTERNAL RESIDENTIAL CARE,780513,142045330,22/10/2015,"2,490.50",ASTRA HOMES LTD,SP0000374
WANDSWORTH COUNCIL,ASC,SOCIAL SERVICES,Revenue,PRIVATE,EXTERNAL RESIDENTIAL CARE,780514,142045330,22/10/2015,"2,490.50",ASTRA HOMES LTD,SP0000374
WANDSWORTH COUNCIL,ASC,SOCIAL SERVICES,Revenue,PRIVATE,EXTERNAL RESIDENTIAL CARE,780515,142045330,22/10/2015,"2,795.54",ASTRA HOMES LTD,SP0000374
WANDSWORTH COUNCIL,ASC,SOCIAL SERVICES,Revenue,PRIVATE,EXTERNAL RESIDENTIAL CARE,782662,142045330,26/10/2015,"7,782.08",CMG HOMES LTD,SP0000075
WANDSWORTH COUNCIL,ASC,SOCIAL SERVICES,Revenue,PRIVATE,EXTERNAL RESIDENTIAL CARE,772481,142045330,13/10/2015,"2,171.37",CROWNWISE LTD,SP0001202
WANDSWORTH COUNCIL,ASC,SOCIAL SERVICES,Revenue,PRIVATE,EXTERNAL RESIDENTIAL CARE,776170,142045330,15/10/2015,"2,460.07",DEEPDENE CARE LTD,SP0001199
WANDSWORTH COUNCIL,ASC,SOCIAL SERVICES,Revenue,PRIVATE,EXTERNAL RESIDENTIAL CARE,776173,142045330,15/10/2015,"3,058.99",DEEPDENE CARE LTD,SP0001199
WANDSWORTH COUNCIL,ASC,SOCIAL SERVICES,Revenue,PRIVATE,EXTERNAL RESIDENTIAL CARE,776174,142045330,15/10/2015,"2,228.72",DEEPDENE CARE LTD,SP0001199
WANDSWORTH COUNCIL,ASC,SOCIAL SERVICES,Revenue,PRIVATE,EXTERNAL RESIDENTIAL CARE,776175,142045330,15/10/2015,"3,156.16",DEEPDENE CARE LTD,SP0001199
WANDSWORTH COUNCIL,ASC,SOCIAL SERVICES,Revenue,PRIVATE,EXTERNAL RESIDENTIAL CARE,776176,142045330,15/10/2015,"2,228.68",DEEPDENE CARE LTD,SP0001199
WANDSWORTH COUNCIL,ASC,SOCIAL SERVICES,Revenue,PRIVATE,EXTERNAL RESIDENTIAL CARE,776162,142045330,15/10/2015,"4,413.73",FIRST CARE LODGE,SP0009965
WANDSWORTH COUNCIL,ASC,SOCIAL SERVICES,Revenue,PRIVATE,EXTERNAL RESIDENTIAL CARE,770872,142045330,09/10/2015,"2,424.00",JOYCARE HOME SERVICES LTD,SP0000339
WANDSWORTH COUNCIL,ASC,SOCIAL SERVICES,Revenue,PRIVATE,EXTERNAL RESIDENTIAL CARE,764329,142045330,02/10/2015,"3,434.00",KIMBERLEY RD,SP0005694
WANDSWORTH COUNCIL,ASC,SOCIAL SERVICES,Revenue,PRIVATE,EXTERNAL RESIDENTIAL CARE,778876,142045330,21/10/2015,"3,675.71",LA ROSA LONDON LTD,SP0000957
WANDSWORTH COUNCIL,ASC,SOCIAL SERVICES,Revenue,PRIVATE,EXTERNAL RESIDENTIAL CARE,776151,142045330,15/10/2015,"7,971.34",LANCASTER LODGE,SP0009668
WANDSWORTH COUNCIL,ASC,SOCIAL SERVICES,Revenue,PRIVATE,EXTERNAL RESIDENTIAL CARE,776152,142045330,15/10/2015,"7,971.34",LANCASTER LODGE,SP0009668
WANDSWORTH COUNCIL,ASC,SOCIAL SERVICES,Revenue,PRIVATE,EXTERNAL RESIDENTIAL CARE,767717,142045330,07/10/2015,"4,457.14",LONA LODGE,SP0001570
WANDSWORTH COUNCIL,ASC,SOCIAL SERVICES,Revenue,PRIVATE,EXTERNAL RESIDENTIAL CARE,767718,142045330,07/10/2015,"5,200.00",LONA LODGE,SP0001570
WANDSWORTH COUNCIL,ASC,SOCIAL SERVICES,Revenue,PRIVATE,EXTERNAL RESIDENTIAL CARE,767720,142045330,07/10/2015,"5,400.00",LONA LODGE,SP0001570
WANDSWORTH COUNCIL,ASC,SOCIAL SERVICES,Revenue,PRIVATE,EXTERNAL RESIDENTIAL CARE,770509,142045330,09/10/2015,"5,978.57",LONA LODGE,SP0001570
WANDSWORTH COUNCIL,ASC,SOCIAL SERVICES,Revenue,PRIVATE,EXTERNAL RESIDENTIAL CARE,770510,142045330,09/10/2015,"5,400.00",LONA LODGE,SP0001570
WANDSWORTH COUNCIL,ASC,SOCIAL SERVICES,Revenue,PRIVATE,EXTERNAL RESIDENTIAL CARE,776184,142045330,15/10/2015,"3,054.03",PRIMROSE HOUSE RESIDENTIAL HOME,SP0008026
WANDSWORTH COUNCIL,ASC,SOCIAL SERVICES,Revenue,PRIVATE,EXTERNAL RESIDENTIAL CARE,778890,142045330,21/10/2015,"2,424.00",QUANTUM CARE LTD,SP0001151
WANDSWORTH COUNCIL,ASC,SOCIAL SERVICES,Revenue,PRIVATE,EXTERNAL RESIDENTIAL CARE,764347,142045330,02/10/2015,"3,131.00",REDACTED PERSONAL DATA,SP0000408
WANDSWORTH COUNCIL,ASC,SOCIAL SERVICES,Revenue,PRIVATE,EXTERNAL RESIDENTIAL CARE,776155,142045330,15/10/2015,"2,625.04",REDACTED PERSONAL DATA,SP0001200
WANDSWORTH COUNCIL,ASC,SOCIAL SERVICES,Revenue,PRIVATE,EXTERNAL RESIDENTIAL CARE,776156,142045330,15/10/2015,"2,714.40",REDACTED PERSONAL DATA,SP0001200
WANDSWORTH COUNCIL,ASC,SOCIAL SERVICES,Revenue,PRIVATE,EXTERNAL RESIDENTIAL CARE,770629,142045330,09/10/2015,"2,421.64",RICHARD CUSDEN HOMES LTD,SP0000268
WANDSWORTH COUNCIL,ASC,SOCIAL SERVICES,Revenue,PRIVATE,EXTERNAL RESIDENTIAL CARE,767713,142045330,07/10/2015,"5,192.20",TOGETHER WORKING FOR WELLBEING,SP0000950
WANDSWORTH COUNCIL,ASC,SOCIAL SERVICES,Revenue,PRIVATE,ONE TO ONE CARE,777053,142046220,16/10/2015,"3,632.80",ROSEDENE NURSING HOME,SP0000316
WANDSWORTH COUNCIL,ASC,SOCIAL SERVICES,Revenue,PRIVATE,ONE TO ONE CARE,777073,142046220,16/10/2015,"5,838.43",ROSEDENE NURSING HOME,SP0000316
WANDSWORTH COUNCIL,ASC,SOCIAL SERVICES,Revenue,VOL ASS,SUPPORTED HOUSING PROGRAMME,780511,142048030,22/10/2015,"1,064.19",ASTRA HOMES LTD,SP0000374
WANDSWORTH COUNCIL,ASC,SOCIAL SERVICES,Revenue,VOL ASS,SUPPORTED HOUSING PROGRAMME,780709,142048030,22/10/2015,"1,545.57",ASTRA HOMES LTD,SP0000374
WANDSWORTH COUNCIL,ASC,SOCIAL SERVICES,Revenue,VOL ASS,SUPPORTED HOUSING PROGRAMME,780710,142048030,22/10/2015,"1,678.43",ASTRA HOMES LTD,SP0000374
